TRANS No.,Service Area Categorisation,Service Division Categorisation,Responsible Unit,Unit Code,Expenses Type,Expenses Sub Type,Expense Code,Narrative,Amount,Invoice Date,Cap/rev,Supplier Name
1,Central Services,SupS Chief Execs,Local Involvement Network,A01039,Third Party Payments          ,Private Contractors           ,EH10,Contract Payments                       ,"10,423.75",03/03/2015,REV,MERTON VOLUNTARY SERV COUNCIL 
2,Cultural Env Reg&Plan Services,Comm Safety (Crime Reduction),Crime and Strategy Team,A01100,Supplies & Services           ,Expenses                      ,DH02,Conferences                             ,648,30/06/2014,REV,RESPECT                       
3,Cultural Env Reg&Plan Services,Comm Safety (Crime Reduction),Crime and Strategy Team,A01100,Third Party Payments          ,Private Contractors           ,EH02,Miscellaneous Hired Services            ,"47,000.00",12/02/2015,REV,VICTIM SUPPORT                
4,Cultural Env Reg&Plan Services,Comm Safety (Crime Reduction),Crime and Strategy Team,A01100,Third Party Payments          ,Private Contractors           ,EH02,Miscellaneous Hired Services            ,"1,350.00",17/02/2015,REV,STOP HATE UK                  
5,Cultural Env Reg&Plan Services,Comm Safety (Crime Reduction),Crime and Strategy Team,A01100,Third Party Payments          ,Private Contractors           ,EH02,Miscellaneous Hired Services            ,"2,800.00",10/03/2015,REV,TENDER EDUCATION AND ARTS     
6,Cultural Env Reg&Plan Services,Comm Safety (Crime Reduction),Prolific & Priority Offenders,A01105,Third Party Payments          ,Private Contractors           ,EH02,Miscellaneous Hired Services            ,"1,379.53",03/03/2015,REV,GLOBAL MSC SECURITY LTD       
7,Cultural Env Reg&Plan Services,Comm Safety (Crime Reduction),Prolific & Priority Offenders,A01105,Third Party Payments          ,Private Contractors           ,EH02,Miscellaneous Hired Services            ,"2,500.00",03/03/2015,REV,GLOBAL MSC SECURITY LTD       
8,Cultural Env Reg&Plan Services,Comm Safety (Crime Reduction),CCTV,A01200,Premises Related Expenditure  ,Energy Costs                  ,BB02,Electricity                             ,"1,063.93",13/02/2015,REV,SCOTTISHPOWER                 
9,Cultural Env Reg&Plan Services,Comm Safety (Crime Reduction),CCTV,A01200,Supplies & Services           ,Equip Furniture/Materials     ,DA01,Equipment - R & M                       ,"3,448.84",20/02/2015,REV,EUROVIA INFRASTRUCTURE LTD    
10,Cultural Env Reg&Plan Services,Comm Safety (Crime Reduction),CCTV,A01200,Supplies & Services           ,Equip Furniture/Materials     ,DA01,Equipment - R & M                       ,"1,347.06",18/03/2015,REV,EUROVIA INFRASTRUCTURE LTD    
11,Cultural Env Reg&Plan Services,Comm Safety (Crime Reduction),CCTV,A01200,Supplies & Services           ,Equip Furniture/Materials     ,DA01,Equipment - R & M                       ,661.85,24/02/2015,REV,EUROVIA INFRASTRUCTURE LTD    
12,Cultural Env Reg&Plan Services,Comm Safety (Crime Reduction),CCTV,A01200,Supplies & Services           ,Equip Furniture/Materials     ,DA01,Equipment - R & M                       ,"3,448.84",17/03/2015,REV,EUROVIA INFRASTRUCTURE LTD    
13,Cultural Env Reg&Plan Services,Comm Safety (Crime Reduction),CCTV,A01200,Supplies & Services           ,Comms and Computing           ,DG09,Computer Purchases - Misc               ,"1,772.95",24/02/2015,REV,EUROVIA INFRASTRUCTURE LTD    
14,Central Services,SupS Chief Execs,NON-STATUTORY MARKETING & COMM,A02019,Supplies & Services           ,Services                      ,DF35,Graphic Design                          ,"1,000.00",25/02/2015,REV,JACK KENT LTD                 
15,Central Services,SupS Chief Execs,NON-STATUTORY MARKETING & COMM,A02019,Supplies & Services           ,Services                      ,DF35,Graphic Design                          ,"3,800.00",03/03/2015,REV,DOMINO 4 LIMITED              
16,Central Services,SupS Chief Execs,NON-STATUTORY MARKETING & COMM,A02019,Supplies & Services           ,Services                      ,DF35,Graphic Design                          ,"5,300.00",11/02/2015,REV,THE BIG IDEA 
17,Central Services,SupS Chief Execs,NON-STATUTORY MARKETING & COMM,A02019,Supplies & Services           ,Comms and Computing           ,DG04,Postage - General                       ,"1,538.84",26/03/2015,REV,ROYAL MAIL                    
18,Central Services,SupS Chief Execs,NON-STATUTORY MARKETING & COMM,A02019,Supplies & Services           ,Expenses                      ,DH14,Prizes and Awards                       ,"1,418.20",23/02/2015,REV,DEBENHAMS BUSINESS SERVICES   
19,Central Services,SupS Chief Execs,Democratic Services,A02023,Transport Related Expenditure ,Direct Transport Costs        ,CA50,Mayoral Exps Car                        ,"2,149.00",11/03/2015,REV,BMW INSURED WARRANTY SERVICES 
20,Central Services,SupS Chief Execs,Democratic Services,A02023,Transport Related Expenditure ,Direct Transport Costs        ,CA50,Mayoral Exps Car                        ,737.47,26/02/2015,REV,COOPER CROYDON                
21,Central Services,SupS Chief Execs,Democratic Services,A02023,Supplies & Services           ,Clothing Unfrms Laundry       ,DC02,Clothing & Uniforms                     ,981.6,25/03/2015,REV,TOYE KENNING & SPENCER LTD    
22,Central Services,SupS Chief Execs,Democratic Services,A02023,Supplies & Services           ,Clothing Unfrms Laundry       ,DC02,Clothing & Uniforms                     ,592.4,25/03/2015,REV,TOYE KENNING & SPENCER LTD    
23,Central Services,SupS Chief Execs,Democratic Services,A02023,Supplies & Services           ,Comms and Computing           ,DG09,Computer Purchases - Misc               ,"8,870.00",01/11/2014,REV,MODERN MINDSET                
24,Central Services,SupS Chief Execs,Democratic Services,A02023,Supplies & Services           ,Comms and Computing           ,DG50,Other IT Expenditure                    ,"12,604.50",16/03/2015,REV,PUBLIC-I GROUP LTD            
25,Central Services,SupS Chief Execs,Press and Public Relations.,A02026,Supplies & Services           ,Grants and Subscriptions      ,DJ04,Subscriptions                           ,"6,638.00",12/03/2015,REV,ACCESS INTEL. MEDIA & COM LTD 
26,CS -Oth Operating Inc & Expend,T/A Corporate Services,Prtng Jobs - Ext Agncy,A03041,Supplies & Services           ,Prntng Stnry Gen Off Exp      ,DE01,External Printing                       ,"3,366.00",16/03/2015,REV,IMPRESS PRINT SERVICES LTD    
27,CS -Oth Operating Inc & Expend,T/A Corporate Services,Prtng Jobs - Ext Agncy,A03041,Supplies & Services           ,Prntng Stnry Gen Off Exp      ,DE01,External Printing                       ,"1,573.50",24/03/2015,REV,IMPRESS PRINT SERVICES LTD    
28,CS -Oth Operating Inc & Expend,T/A Corporate Services,Prtng Jobs - Ext Agncy,A03041,Supplies & Services           ,Prntng Stnry Gen Off Exp      ,DE01,External Printing                       ,555,05/03/2015,REV,LIMETREE OFFSET LTD           
29,CS -Oth Operating Inc & Expend,T/A Corporate Services,Prtng Jobs - Ext Agncy,A03041,Supplies & Services           ,Prntng Stnry Gen Off Exp      ,DE01,External Printing                       ,"7,930.50",11/03/2015,REV,CLIFFE ENTERPRISE             
30,CS -Oth Operating Inc & Expend,T/A Corporate Services,Prtng Jobs - Ext Agncy,A03041,Supplies & Services           ,Prntng Stnry Gen Off Exp      ,DE01,External Printing                       ,614.75,27/02/2015,REV,PR PRODUCTS TA (MYLANDS)      
31,CS -Oth Operating Inc & Expend,T/A Corporate Services,Prtng Jobs - Ext Agncy,A03041,Supplies & Services           ,Prntng Stnry Gen Off Exp      ,DE01,External Printing                       ,"9,088.00",17/02/2015,REV,ULTIMATE INVOICE FINANCE LTD  
32,CS -Oth Operating Inc & Expend,T/A Corporate Services,Prtng Jobs - Ext Agncy,A03041,Supplies & Services           ,Prntng Stnry Gen Off Exp      ,DE01,External Printing                       ,"1,405.00",16/03/2015,REV,IMPRESS PRINT SERVICES LTD    
33,CS -Oth Operating Inc & Expend,T/A Corporate Services,PrintUnit-HighVolPhtcopying,A03042,Supplies & Services           ,Equip Furniture/Materials     ,DA01,Equipment - R & M                       ,"1,917.63",06/03/2015,REV,PARAGON GROUP UK LIMITED      
34,CS -Oth Operating Inc & Expend,T/A Corporate Services,PrintUnit-HighVolPhtcopying,A03042,Supplies & Services           ,Equip Furniture/Materials     ,DA04,Materials                               ,"8,990.00",17/03/2015,REV,MORGANA SYSTEMS LIMITED       
35,CS -Oth Operating Inc & Expend,T/A Corporate Services,PrintUnit-HighVolPhtcopying,A03042,Supplies & Services           ,Equip Furniture/Materials     ,DA51,Films                                   ,653.4,02/03/2015,REV,LION PICTURE FRAMING SUPPLIES 
36,CS -Oth Operating Inc & Expend,T/A Corporate Services,PrintUnit-HighVolPhtcopying,A03042,Supplies & Services           ,Equip Furniture/Materials     ,DA51,Films                                   ,"1,095.00",24/03/2015,REV,PRESCO                        
37,CS -Oth Operating Inc & Expend,T/A Corporate Services,PrintUnit-HighVolPhtcopying,A03042,Supplies & Services           ,Prntng Stnry Gen Off Exp      ,DE03,Stationery                              ,899.2,17/02/2015,REV,ENCORE ENVELOPES LIMITED      
38,CS -Oth Operating Inc & Expend,T/A Corporate Services,Translation Services,A04060,Supplies & Services           ,Services                      ,DF45,Payment of Sessional Workers            ,558,10/03/2015,REV,COSMIC EUROPE LIMTED          
39,CS -Oth Operating Inc & Expend,T/A Corporate Services,Translation Services,A04060,Supplies & Services           ,Services                      ,DF45,Payment of Sessional Workers            ,648,23/03/2015,REV,COSMIC EUROPE LIMTED          
40,CS -Oth Operating Inc & Expend,T/A Corporate Services,Translation Services,A04060,Supplies & Services           ,Services                      ,DF45,Payment of Sessional Workers            ,549,27/02/2015,REV,REDACTED
41,Central Services,SupS Comm and Member Services,PROGRAMME OFFICE,A04068,Employees                     ,Indirect Employee Expenses    ,AB02,RECRUITMENT ADVERTS                     ,"1,050.00",04/02/2015,REV,TOTAL JOBS GROUP (CWJOBS)     
42,Central Services,Grants - Voluntary Groups,VOLUNTARY SECTOR COORDINATION,A04082,Supplies & Services           ,Grants and Subscriptions      ,DJ01,Grants                                  ,"72,000.00",11/03/2015,REV,MERTON VOLUNTARY SERV COUNCIL 
43,Central Services,SupS Comm and Member Services,COMMERICIAL SERVICES,A04085,Employees                     ,Direct Employee Expenses      ,AA17,Agency Staff & Casual Paymts            ,"10,355.00",11/03/2015,REV,V4 SERVICES LIMITED           
44,Central Services,SupS Comm and Member Services,COMMERICIAL SERVICES,A04085,Employees                     ,Direct Employee Expenses      ,AA17,Agency Staff & Casual Paymts            ,"3,390.00",25/02/2015,REV,HAYS RECRUITING EXPERTS       
45,Central Services,SupS Comm and Member Services,COMMERICIAL SERVICES,A04085,Employees                     ,Direct Employee Expenses      ,AA17,Agency Staff & Casual Paymts            ,"3,390.00",25/03/2015,REV,HAYS RECRUITING EXPERTS       
46,Central Services,SupS Comm and Member Services,COMMERICIAL SERVICES,A04085,Employees                     ,Direct Employee Expenses      ,AA17,Agency Staff & Casual Paymts            ,"9,319.50",16/02/2015,REV,REDACTED
47,Central Services,SupS Comm and Member Services,COMMERICIAL SERVICES,A04085,Employees                     ,Direct Employee Expenses      ,AA17,Agency Staff & Casual Paymts            ,"3,390.00",04/03/2015,REV,HAYS RECRUITING EXPERTS       
48,Central Services,SupS Comm and Member Services,COMMERICIAL SERVICES,A04085,Employees                     ,Direct Employee Expenses      ,AA17,Agency Staff & Casual Paymts            ,"3,390.00",18/03/2015,REV,HAYS RECRUITING EXPERTS       
49,Central Services,SupS Comm and Member Services,COMMERICIAL SERVICES,A04085,Employees                     ,Direct Employee Expenses      ,AA17,Agency Staff & Casual Paymts            ,"2,712.00",11/03/2015,REV,HAYS RECRUITING EXPERTS       
50,Central Services,SupS Comm and Member Services,COMMERICIAL SERVICES,A04085,Employees                     ,Indirect Employee Expenses    ,AB02,Recruitment Adverts                     ,795,26/03/2015,REV,PENNA COMMUNICATIONS (NO 2 A/C
51,Highways & Transport Services,On-street parking,Blue Badge Service,A04088,Supplies & Services           ,Services                      ,DF14,Doctors and Other Fees                  ,600,16/03/2015,REV,LLOYDS TSB COMMERCIAL FINANCE 
52,Highways & Transport Services,On-street parking,Blue Badge Service,A04088,Supplies & Services           ,Services                      ,DF14,Doctors and Other Fees                  ,900,26/02/2015,REV,LLOYDS TSB COMMERCIAL FINANCE 
53,Highways & Transport Services,On-street parking,Blue Badge Service,A04088,Supplies & Services           ,Comms and Computing           ,DG15,Network Maintenance                     ,714.28,02/03/2015,REV,NORTHGATE  INFORMATION SOLUT. 
54,Central Services,Emergency Planning (Cent Serv),Emergency Planning,B06138,Supplies & Services           ,Services                      ,DF04,Miscellaneous Expenses                  ,"11,092.00",11/03/2015,REV,CITY OF WESTMINSTER           
55,Central Services,Registn Birth/Death/Marriage,Reg of B. Deaths & Ms,B06143,Supplies & Services           ,Equip Furniture/Materials     ,DA09,Equip-Purchases                         ,"4,500.00",07/02/2015,REV,BLINKY MEDIA LTD              
56,Central Services,Registn Birth/Death/Marriage,Reg of B. Deaths & Ms,B06143,Supplies & Services           ,Equip Furniture/Materials     ,DA09,Equip-Purchases                         ,743,06/03/2015,REV,SOUND ADVICE PA INSTALLATIONS 
57,Central Services,SupS Health & Safety,Learning and Development,B06146,Employees                     ,Indirect Employee Expenses    ,AB56,Internal Training Costs                 ,"1,020.00",17/03/2015,REV,CIPFA                         
58,Central Services,SupS Health & Safety,Learning and Development,B06146,Employees                     ,Indirect Employee Expenses    ,AB57,EXTERNAL TRAINING COSTS                 ,975,01/03/2015,REV,MEDI AID(UK) LTD              
59,Central Services,SupS Health & Safety,Learning and Development,B06146,Employees                     ,Indirect Employee Expenses    ,AB57,EXTERNAL TRAINING COSTS                 ,500,20/02/2015,REV,LAND BASED TRAINING           
60,Central Services,SupS Health & Safety,Learning and Development,B06146,Employees                     ,Indirect Employee Expenses    ,AB57,EXTERNAL TRAINING COSTS                 ,"1,805.00",17/03/2015,REV,CIPFA                         
61,Central Services,SupS Health & Safety,Learning and Development,B06146,Employees                     ,Indirect Employee Expenses    ,AB57,EXTERNAL TRAINING COSTS                 ,665,22/01/2015,REV,THE BAIKIE-WOOD CONSULT'CY LTD
62,Central Services,SupS Health & Safety,Learning and Development,B06146,Employees                     ,Indirect Employee Expenses    ,AB57,EXTERNAL TRAINING COSTS                 ,"5,970.00",12/03/2015,REV,RIDGEWAY TRAINING LTD         
63,Central Services,SupS Health & Safety,Learning and Development,B06146,Employees                     ,Indirect Employee Expenses    ,AB57,EXTERNAL TRAINING COSTS                 ,659,01/03/2015,REV,THE BAIKIE-WOOD CONSULT'CY LTD
64,Central Services,SupS Health & Safety,Learning and Development,B06146,Employees                     ,Indirect Employee Expenses    ,AB57,EXTERNAL TRAINING COSTS                 ,"2,238.75",17/03/2015,REV,RIDGEWAY TRAINING LTD         
65,Central Services,SupS Health & Safety,Learning and Development,B06146,Employees                     ,Indirect Employee Expenses    ,AB57,EXTERNAL TRAINING COSTS                 ,"1,805.00",17/03/2015,REV,CIPFA                         
66,Central Services,SupS Health & Safety,Learning and Development,B06146,Employees                     ,Indirect Employee Expenses    ,AB57,EXTERNAL TRAINING COSTS                 ,"1,380.00",11/03/2015,REV,LONDON BOROUGH OF CROYDON     
67,Central Services,SupS Health & Safety,Learning and Development,B06146,Employees                     ,Indirect Employee Expenses    ,AB57,EXTERNAL TRAINING COSTS                 ,769,03/03/2015,REV,SUZY LAMPLUGH TRUST 2014      
68,Central Services,SupS Health & Safety,Learning and Development,B06146,Employees                     ,Indirect Employee Expenses    ,AB57,EXTERNAL TRAINING COSTS                 ,800,20/11/2014,REV,WALLACE SCHOOL OF MOTORING    
69,Central Services,SupS Health & Safety,Learning and Development,B06146,Employees                     ,Indirect Employee Expenses    ,AB57,EXTERNAL TRAINING COSTS                 ,"2,255.00",29/01/2015,REV,GLOBAL MSC SECURITY LTD       
70,Central Services,SupS Health & Safety,Learning and Development,B06146,Employees                     ,Indirect Employee Expenses    ,AB57,EXTERNAL TRAINING COSTS                 ,790,16/03/2015,REV,GOV TODAY LTD                 
71,Central Services,SupS Health & Safety,Learning and Development,B06146,Employees                     ,Indirect Employee Expenses    ,AB57,EXTERNAL TRAINING COSTS                 ,"2,200.00",01/03/2015,REV,LONDON CENTRE FOR PSYCHODRAMA 
72,Central Services,SupS Health & Safety,Learning and Development,B06146,Employees                     ,Indirect Employee Expenses    ,AB57,EXTERNAL TRAINING COSTS                 ,800,20/11/2014,REV,WALLACE SCHOOL OF MOTORING    
73,Central Services,SupS Health & Safety,Learning and Development,B06146,Employees                     ,Indirect Employee Expenses    ,AB57,EXTERNAL TRAINING COSTS                 ,"1,550.00",11/03/2015,REV,P M MANAGEMENT CONSULTANTS LTD
74,Central Services,SupS Health & Safety,Learning and Development,B06146,Employees                     ,Indirect Employee Expenses    ,AB57,EXTERNAL TRAINING COSTS                 ,"1,805.00",19/03/2015,REV,CIPFA                         
75,Central Services,SupS Health & Safety,Learning and Development,B06146,Employees                     ,Indirect Employee Expenses    ,AB57,EXTERNAL TRAINING COSTS                 ,550,09/03/2015,REV,MSH TRAINING & CONSULTANCY LTD
76,Central Services,SupS Health & Safety,Learning and Development,B06146,Employees                     ,Indirect Employee Expenses    ,AB57,EXTERNAL TRAINING COSTS                 ,500,10/01/2015,REV,SOUTH LONDON & SOUTH WEST ASW 
77,Central Services,SupS Health & Safety,Learning and Development,B06146,Employees                     ,Indirect Employee Expenses    ,AB57,EXTERNAL TRAINING COSTS                 ,"3,477.00",14/01/2015,REV,THE LODDON SCHOOL             
78,Central Services,SupS Health & Safety,Learning and Development,B06146,Employees                     ,Indirect Employee Expenses    ,AB57,EXTERNAL TRAINING COSTS                 ,"1,260.00",06/11/2014,REV,CAPEL MANOR COLLEGE           
79,Central Services,SupS Health & Safety,Learning and Development,B06146,Employees                     ,Indirect Employee Expenses    ,AB57,EXTERNAL TRAINING COSTS                 ,750,01/03/2015,REV,KW TRAINING SERVICES          
80,Central Services,SupS Health & Safety,Learning and Development,B06146,Employees                     ,Indirect Employee Expenses    ,AB57,EXTERNAL TRAINING COSTS                 ,995,10/03/2015,REV,THE PRESCRIPTION TRAINING COMP
81,Central Services,SupS Health & Safety,Strategic Personnel Management,B06151,Supplies & Services           ,Grants and Subscriptions      ,DJ04,Subscriptions                           ,625,09/03/2015,REV,LONDON COUNCILS               
192,,,8 Wilton Road                           ,CC017AA,New Construction Conversion and Renovation,,B2,Site Surveys D&S Structure              ,"1,610.00",21/02/2014,CAP,SITE ANALYICAL SERVICES LTD   
193,,,8 Wilton Road                           ,CC017AA,New Construction Conversion and Renovation,,B4,Contractor - Site works                 ,"40,080.46",10/11/2014,CAP,OAKLAND BUILDING SERVICES LTD 
194,,,8 Wilton Road                           ,CC017AA,New Construction Conversion and Renovation,,B4,Contractor - Site works                 ,"56,201.18",09/02/2015,CAP,OAKLAND BUILDING SERVICES LTD 
195,,,8 Wilton Road                           ,CC017AA,New Construction Conversion and Renovation,,B4,Contractor - Site works                 ,"42,063.55",29/12/2014,CAP,OAKLAND BUILDING SERVICES LTD 
196,,,Merton Dementia Hub                     ,CC021AA,New Construction Conversion and Renovation,,B4,Contractor - Site works                 ,"8,374.94",11/03/2015,CAP,MILLANE CONTRACT SERVICES LTD 
197,,,Disabled Facilities Grant               ,CC022RA,Other Capital Expenditure,,E1,Grants                                  ,"12,000.00",17/03/2015,CAP,S & S CONSTRUCTION            
198,,,Disabled Facilities Grant               ,CC022RA,Other Capital Expenditure,,E1,Grants                                  ,"7,914.03",17/03/2015,CAP,AQUANEED LIMITED              
199,,,Disabled Facilities Grant               ,CC022RA,Other Capital Expenditure,,E1,Grants                                  ,"2,280.00",17/03/2015,CAP,ASCENDIT LIFTS LTD            
200,,,Disabled Facilities Grant               ,CC022RA,Other Capital Expenditure,,E1,Grants                                  ,"12,181.00",17/03/2015,CAP,TBS ADAPTATIONS LTD           
201,,,Disabled Facilities Grant               ,CC022RA,Other Capital Expenditure,,E1,Grants                                  ,754.16,24/03/2015,CAP,TBS ADAPTATIONS LTD           
202,,,Disabled Facilities Grant               ,CC022RA,Other Capital Expenditure,,E1,Grants                                  ,"3,542.44",03/03/2015,CAP,TBS ADAPTATIONS LTD           
203,,,Disabled Facilities Grant               ,CC022RA,Other Capital Expenditure,,E1,Grants                                  ,"4,869.00",17/03/2015,CAP,TLC STAIRLIFTS                
204,,,Disabled Facilities Grant               ,CC022RA,Other Capital Expenditure,,E1,Grants                                  ,"19,610.00",27/03/2015,CAP,LONDON BOROUGH OF CROYDON     
205,,,Disabled Facilities Grant               ,CC022RA,Other Capital Expenditure,,E1,Grants                                  ,"14,783.50",17/03/2015,CAP,S & S CONSTRUCTION            
206,,,Disabled Facilities Grant               ,CC022RA,Other Capital Expenditure,,E1,Grants                                  ,"1,847.52",17/03/2015,CAP,STAYING FIRST                 
207,,,Disabled Facilities Grant               ,CC022RA,Other Capital Expenditure,,E1,Grants                                  ,"4,257.25",25/03/2015,CAP,TBS ADAPTATIONS LTD           
208,,,Disabled Facilities Grant               ,CC022RA,Other Capital Expenditure,,E1,Grants                                  ,"1,973.81",17/03/2015,CAP,STAYING FIRST                 
209,,,Parks Bin Finance Lease                 ,CE003EA,Vehicles Plant Equipment and Machinery,,D3,Equipment                               ,"5,460.00",30/01/2015,CAP,MACQUARIE EQUIP FINANCE (UK)LT
210,,,Colliers Wd- Regeneration Fund          ,CE006FB,New Construction Conversion and Renovation,,B3,Other Expenses D&S Structure            ,"12,950.00",10/03/2015,CAP,ROBUS CERAMICS                
211,,,Colliers Wd- Regeneration Fund          ,CE006FB,New Construction Conversion and Renovation,,B6,Other Costs - Site works                ,"99,545.54",19/03/2015,CAP,TRANSPORT FOR LONDON          
212,,,Colliers Wd- Regeneration Fund          ,CE006FB,Other Capital Expenditure,,E4,TFL Other                               ,700,26/03/2015,CAP,GORT SCOTT LTD                
213,,,Mitcham - Outer London Fund             ,CE006FC,New Construction Conversion and Renovation,,B3,Other Expenses D&S Structure            ,"7,267.13",30/05/2014,CAP,FM CONWAY LTD                 
214,,,Mitcham Major schemes                   ,CE006FD,New Construction Conversion and Renovation,,B1,Consultants Fees D&S Structure          ,"8,657.00",12/03/2015,CAP,HYDER CONSULTING (UK) LTD     
215,,,Mitcham Major schemes                   ,CE006FD,New Construction Conversion and Renovation,,B2,Site Surveys D&S Structure              ,995,11/03/2015,CAP,CAPITAL TRAFFIC               
216,,,Parks Investment                        ,CE013SA,New Construction Conversion and Renovation,,B4,Contractor - Site works                 ,"1,995.40",07/01/2015,CAP,REDACTED
217,,,Parks Investment                        ,CE013SA,New Construction Conversion and Renovation,,B4,Contractor - Site works                 ,"7,398.00",27/02/2015,CAP,REDACTED
218,,,Parks Investment                        ,CE013SA,New Construction Conversion and Renovation,,B4,Contractor - Site works                 ,"8,632.00",16/01/2015,CAP,TAYLOR BUILDING COMPANY LTD   
219,,,Parks Investment                        ,CE013SA,New Construction Conversion and Renovation,,B4,Contractor - Site works                 ,"8,750.00",06/03/2015,CAP,REDDINGTON & SONS             
220,,,S106 South Park Gardens B346            ,CE015CB,New Construction Conversion and Renovation,,B2,Site Surveys D&S Structure              ,"1,610.00",14/03/2014,CAP,SITE ANALYICAL SERVICES LTD   
221,,,B489 Landscape Colliers Wd Rc           ,CE022CA,New Construction Conversion and Renovation,,B4,Contractor - Site works                 ,"2,778.00",09/03/2015,CAP,REDACTED
222,,,Surface Water Drainage                  ,CE024FA,New Construction Conversion and Renovation,,B4,Contractor - Site works                 ,"3,008.90",20/03/2015,CAP,FM CONWAY LTD                 
223,,,Highways bridges & structures           ,CE025FA,New Construction Conversion and Renovation,,B1,Consultants Fees D&S Structure          ,"7,457.00",24/03/2015,CAP,HYDER CONSULTING (UK) LTD     
224,,,Highways bridges & structures           ,CE025FA,New Construction Conversion and Renovation,,B4,Contractor - Site works                 ,"4,682.87",20/03/2015,CAP,FM CONWAY LTD                 
225,,,Highways bridges & structures           ,CE025FA,New Construction Conversion and Renovation,,B4,Contractor - Site works                 ,"9,000.00",20/03/2015,CAP,FM CONWAY LTD                 
226,,,Borough Roads Maintenance               ,CE026FA,New Construction Conversion and Renovation,,B4,Contractor - Site works                 ,"25,000.00",26/03/2015,CAP,FM CONWAY LTD                 
227,,,Borough Roads Maintenance               ,CE026FA,New Construction Conversion and Renovation,,B4,Contractor - Site works                 ,"25,205.02",24/03/2015,CAP,FM CONWAY LTD                 
228,,,Borough Roads Maintenance               ,CE026FA,New Construction Conversion and Renovation,,B4,Contractor - Site works                 ,"10,000.00",25/03/2015,CAP,FM CONWAY LTD                 
229,,,Borough Roads Maintenance               ,CE026FA,New Construction Conversion and Renovation,,B4,Contractor - Site works                 ,"17,000.00",20/03/2015,CAP,FM CONWAY LTD                 
230,,,Borough Roads Maintenance               ,CE026FA,New Construction Conversion and Renovation,,B4,Contractor - Site works                 ,"46,297.29",20/03/2015,CAP,FM CONWAY LTD                 
231,,,Borough Roads Maintenance               ,CE026FA,New Construction Conversion and Renovation,,B4,Contractor - Site works                 ,"25,000.00",26/03/2015,CAP,FM CONWAY LTD                 
232,,,Borough Roads Maintenance               ,CE026FA,New Construction Conversion and Renovation,,B4,Contractor - Site works                 ,"4,755.24",20/03/2015,CAP,FM CONWAY LTD                 
233,,,Borough Roads Maintenance               ,CE026FA,New Construction Conversion and Renovation,,B4,Contractor - Site works                 ,"13,000.00",20/03/2015,CAP,FM CONWAY LTD                 
234,,,Borough Roads Maintenance               ,CE026FA,New Construction Conversion and Renovation,,B4,Contractor - Site works                 ,"28,200.21",20/03/2015,CAP,FM CONWAY LTD                 
235,,,Borough Roads Maintenance               ,CE026FA,New Construction Conversion and Renovation,,B4,Contractor - Site works                 ,"48,748.59",20/03/2015,CAP,FM CONWAY LTD                 
236,,,Borough Roads Maintenance               ,CE026FA,New Construction Conversion and Renovation,,B4,Contractor - Site works                 ,"13,197.78",26/03/2015,CAP,FM CONWAY LTD                 
237,,,Borough Roads Maintenance               ,CE026FA,New Construction Conversion and Renovation,,B4,Contractor - Site works                 ,"25,000.00",26/03/2015,CAP,FM CONWAY LTD                 
238,,,Borough Roads Maintenance               ,CE026FA,New Construction Conversion and Renovation,,B4,Contractor - Site works                 ,"79,704.21",24/03/2015,CAP,FM CONWAY LTD                 
239,,,Borough Roads Maintenance               ,CE026FA,New Construction Conversion and Renovation,,B4,Contractor - Site works                 ,"2,329.52",20/03/2015,CAP,FM CONWAY LTD                 
240,,,Borough Roads Maintenance               ,CE026FA,New Construction Conversion and Renovation,,B4,Contractor - Site works                 ,"35,000.00",20/03/2015,CAP,FM CONWAY LTD                 
241,,,Borough Roads Maintenance               ,CE026FA,New Construction Conversion and Renovation,,B4,Contractor - Site works                 ,"62,233.08",20/03/2015,CAP,FM CONWAY LTD                 
242,,,Borough Roads Maintenance               ,CE026FA,New Construction Conversion and Renovation,,B4,Contractor - Site works                 ,"74,581.57",20/03/2015,CAP,FM CONWAY LTD                 
243,,,Borough Roads Maintenance               ,CE026FA,New Construction Conversion and Renovation,,B4,Contractor - Site works                 ,"42,000.00",24/03/2015,CAP,FM CONWAY LTD                 
244,,,Borough Roads Maintenance               ,CE026FA,New Construction Conversion and Renovation,,B4,Contractor - Site works                 ,"6,061.82",25/03/2015,CAP,FM CONWAY LTD                 
245,,,Borough Roads Maintenance               ,CE026FA,New Construction Conversion and Renovation,,B4,Contractor - Site works                 ,"20,500.00",20/03/2015,CAP,FM CONWAY LTD                 
246,,,Borough Roads Maintenance               ,CE026FA,New Construction Conversion and Renovation,,B4,Contractor - Site works                 ,"30,000.00",20/03/2015,CAP,FM CONWAY LTD                 
247,,,Borough Roads Maintenance               ,CE026FA,New Construction Conversion and Renovation,,B4,Contractor - Site works                 ,"38,000.00",20/03/2015,CAP,FM CONWAY LTD                 
248,,,Severe Weather Road Maintenanc          ,CE026FD,New Construction Conversion and Renovation,,B4,Contractor - Site works                 ,"80,000.00",20/03/2015,CAP,FM CONWAY LTD                 
249,,,TFL Projected Slippage                  ,CE026SA,New Construction Conversion and Renovation,,B4,Contractor - Site works                 ,"3,623.00",27/03/2015,CAP,FM CONWAY LTD                 
250,,,Maintain AntiSkid and Coloured          ,CE027FA,New Construction Conversion and Renovation,,B4,Contractor - Site works                 ,"4,500.00",26/03/2015,CAP,FM CONWAY LTD                 
251,,,Maintain AntiSkid and Coloured          ,CE027FA,New Construction Conversion and Renovation,,B4,Contractor - Site works                 ,"23,000.00",26/03/2015,CAP,FM CONWAY LTD                 
252,,,Maintain AntiSkid and Coloured          ,CE027FA,New Construction Conversion and Renovation,,B4,Contractor - Site works                 ,"4,960.28",27/02/2015,CAP,FM CONWAY LTD                 
253,,,Repairs to Footways                     ,CE029FA,New Construction Conversion and Renovation,,B4,Contractor - Site works                 ,"10,000.00",26/03/2015,CAP,FM CONWAY LTD                 
254,,,Repairs to Footways                     ,CE029FA,New Construction Conversion and Renovation,,B4,Contractor - Site works                 ,"21,110.44",26/03/2015,CAP,FM CONWAY LTD                 
255,,,Repairs to Footways                     ,CE029FA,New Construction Conversion and Renovation,,B4,Contractor - Site works                 ,"7,672.30",24/03/2015,CAP,FM CONWAY LTD                 
256,,,Repairs to Footways                     ,CE029FA,New Construction Conversion and Renovation,,B4,Contractor - Site works                 ,"20,600.83",25/03/2015,CAP,FM CONWAY LTD                 
257,,,Repairs to Footways                     ,CE029FA,New Construction Conversion and Renovation,,B4,Contractor - Site works                 ,"40,000.00",18/03/2015,CAP,FM CONWAY LTD                 
258,,,Repairs to Footways                     ,CE029FA,New Construction Conversion and Renovation,,B4,Contractor - Site works                 ,"30,000.00",20/03/2015,CAP,FM CONWAY LTD                 
259,,,Repairs to Footways                     ,CE029FA,New Construction Conversion and Renovation,,B4,Contractor - Site works                 ,"100,000.00",20/03/2015,CAP,FM CONWAY LTD                 
260,,,Repairs to Footways                     ,CE029FA,New Construction Conversion and Renovation,,B4,Contractor - Site works                 ,941.22,24/03/2015,CAP,FM CONWAY LTD                 
261,,,Repairs to Footways                     ,CE029FA,New Construction Conversion and Renovation,,B4,Contractor - Site works                 ,570.9,19/03/2015,CAP,MAY GURNEY LTD T/A CARTLEDGE  
262,,,Repairs to Footways                     ,CE029FA,New Construction Conversion and Renovation,,B4,Contractor - Site works                 ,"140,000.00",20/03/2015,CAP,FM CONWAY LTD                 
263,,,Repairs to Footways                     ,CE029FA,New Construction Conversion and Renovation,,B4,Contractor - Site works                 ,"1,703.11",24/03/2015,CAP,FM CONWAY LTD                 
264,,,Repairs to Footways                     ,CE029FA,New Construction Conversion and Renovation,,B4,Contractor - Site works                 ,"45,000.00",26/03/2015,CAP,FM CONWAY LTD                 
265,,,Repairs to Footways                     ,CE029FA,New Construction Conversion and Renovation,,B4,Contractor - Site works                 ,"35,000.00",20/03/2015,CAP,FM CONWAY LTD                 
266,,,Leisure Centre Plant & Machine          ,CE038MA,New Construction Conversion and Renovation,,B4,Contractor - Site works                 ,"30,905.88",25/03/2015,CAP,ENERGY SAVING LIGHTING (UK) LT
267,,,Garth Rd Workshop                       ,CE041AA,New Construction Conversion and Renovation,,B4,Contractor - Site works                 ,"5,875.00",19/03/2015,CAP,FARNRISE CONSTRUCTION LTD     
268,,,Big Lottery Play Areas                  ,CE044MA,New Construction Conversion and Renovation,,B4,Contractor - Site works                 ,"6,847.00",24/03/2015,CAP,REDACTED
269,,,Big Lottery Play Areas                  ,CE044MA,New Construction Conversion and Renovation,,B4,Contractor - Site works                 ,"1,550.00",12/03/2015,CAP,REDDINGTON & SONS             
270,,,Wimbledon Library Flat                  ,CE047CA,New Construction Conversion and Renovation,,B4,Contractor - Site works                 ,"3,280.70",10/03/2015,CAP,MOY CONSTRUCTION CO LTD       
271,,,Climate Change Initiatives              ,CE052MA,New Construction Conversion and Renovation,,B4,Contractor - Site works                 ,"44,256.07",17/03/2015,CAP,MARK GROUP                    
272,,,Mitcham Town Centre Imprvmnt            ,CE061FE,New Construction Conversion and Renovation,,B4,Contractor - Site works                 ,"4,325.44",27/02/2015,CAP,FM CONWAY LTD                 
273,,,Mitcham Town Centre Imprvmnt            ,CE061FE,New Construction Conversion and Renovation,,B4,Contractor - Site works                 ,"204,096.16",27/03/2015,CAP,FM CONWAY LTD                 
274,,,Mitcham Town Centre Imprvmnt            ,CE061FE,New Construction Conversion and Renovation,,B5,Suppliers - Site works                  ,"174,302.88",27/03/2015,CAP,FM CONWAY LTD                 
275,,,Improve markings & road signs           ,CE066EA,New Construction Conversion and Renovation,,B4,Contractor - Site works                 ,"1,981.13",27/02/2015,CAP,FM CONWAY LTD                 
276,,,Street Tree Programme                   ,CE067FA,New Construction Conversion and Renovation,,B5,Suppliers - Site works                  ,"1,346.40",11/03/2015,CAP,BARCHAM TREES P.L.C.          
277,,,Street Tree Programme                   ,CE067FA,New Construction Conversion and Renovation,,B5,Suppliers - Site works                  ,"2,161.31",18/02/2015,CAP,BARKLANDS TREE SPECIALISTS    
278,,,Street Tree Programme                   ,CE067FA,New Construction Conversion and Renovation,,B5,Suppliers - Site works                  ,842.4,25/02/2015,CAP,BARCHAM TREES P.L.C.          
279,,,Street Tree Programme                   ,CE067FA,New Construction Conversion and Renovation,,B5,Suppliers - Site works                  ,"6,564.60",25/02/2015,CAP,BARCHAM TREES P.L.C.          
280,,,Street Tree Programme                   ,CE067FA,New Construction Conversion and Renovation,,B5,Suppliers - Site works                  ,824.4,11/03/2015,CAP,BARCHAM TREES P.L.C.          
281,,,Street Tree Programme                   ,CE067FA,New Construction Conversion and Renovation,,B5,Suppliers - Site works                  ,"16,090.04",18/02/2015,CAP,BARKLANDS TREE SPECIALISTS    
282,,,Street Lighting Replacement Pr          ,CE068FA,New Construction Conversion and Renovation,,B4,Contractor - Site works                 ,"28,115.70",13/03/2015,CAP,MAY GURNEY LTD T/A CARTLEDGE  
283,,,Street Lighting Replacement Pr          ,CE068FA,New Construction Conversion and Renovation,,B4,Contractor - Site works                 ,"1,823.41",24/03/2015,CAP,MAY GURNEY LTD T/A CARTLEDGE  
284,,,Street Lighting Replacement Pr          ,CE068FA,New Construction Conversion and Renovation,,B4,Contractor - Site works                 ,"50,000.00",20/02/2015,CAP,MAY GURNEY LTD T/A CARTLEDGE  
285,,,Street Lighting Replacement Pr          ,CE068FA,New Construction Conversion and Renovation,,B4,Contractor - Site works                 ,"3,696.53",27/02/2015,CAP,MAY GURNEY LTD T/A CARTLEDGE  
286,,,Street Lighting Replacement Pr          ,CE068FA,New Construction Conversion and Renovation,,B4,Contractor - Site works                 ,655.73,27/02/2015,CAP,MAY GURNEY LTD T/A CARTLEDGE  
287,,,Street Lighting Replacement Pr          ,CE068FA,New Construction Conversion and Renovation,,B4,Contractor - Site works                 ,"21,884.30",13/03/2015,CAP,MAY GURNEY LTD T/A CARTLEDGE  
288,,,Street Lighting Replacement Pr          ,CE068FA,New Construction Conversion and Renovation,,B4,Contractor - Site works                 ,"50,000.00",23/03/2015,CAP,MAY GURNEY LTD T/A CARTLEDGE  
289,,,Street Lighting Replacement Pr          ,CE068FA,New Construction Conversion and Renovation,,B4,Contractor - Site works                 ,"2,710.00",20/03/2015,CAP,FM CONWAY LTD                 
290,,,Street Lighting Replacement Pr          ,CE068FA,New Construction Conversion and Renovation,,B4,Contractor - Site works                 ,"50,000.00",06/03/2015,CAP,MAY GURNEY LTD T/A CARTLEDGE  
291,,,Street Lighting Replacement Pr          ,CE068FA,New Construction Conversion and Renovation,,B4,Contractor - Site works                 ,"2,142.00",27/02/2015,CAP,MAY GURNEY LTD T/A CARTLEDGE  
292,,,Street Lighting Replacement Pr          ,CE068FA,New Construction Conversion and Renovation,,B4,Contractor - Site works                 ,737,27/02/2015,CAP,MAY GURNEY LTD T/A CARTLEDGE  
293,,,Street Lighting Replacement Pr          ,CE068FA,New Construction Conversion and Renovation,,B4,Contractor - Site works                 ,"1,574.73",27/02/2015,CAP,MAY GURNEY LTD T/A CARTLEDGE  
294,,,Street Lighting Replacement Pr          ,CE068FA,New Construction Conversion and Renovation,,B4,Contractor - Site works                 ,"50,000.00",20/03/2015,CAP,MAY GURNEY LTD T/A CARTLEDGE  
295,,,Street Lighting Replacement Pr          ,CE068FA,New Construction Conversion and Renovation,,B4,Contractor - Site works                 ,"50,000.00",27/02/2015,CAP,MAY GURNEY LTD T/A CARTLEDGE  
296,,,Street Lighting Replacement Pr          ,CE068FA,New Construction Conversion and Renovation,,B4,Contractor - Site works                 ,"3,250.10",24/03/2015,CAP,MAY GURNEY LTD T/A CARTLEDGE  
297,,,Replacement of Fleet Vehicles           ,CE082EA,New Construction Conversion and Renovation,,B4,Contractor - Site works                 ,"1,541.40",20/03/2015,CAP,OAKLAND BUILDING SERVICES LTD 
298,,,Replacement of Fleet Vehicles           ,CE082EA,New Construction Conversion and Renovation,,B4,Contractor - Site works                 ,"6,003.60",20/03/2015,CAP,OAKLAND BUILDING SERVICES LTD 
299,,,Replacement of Fleet Vehicles           ,CE082EA,Vehicles Plant Equipment and Machinery,,D1,Vehicles                                ,"16,995.00",26/01/2015,CAP,REDACTED
300,,,Replacement of Fleet Vehicles           ,CE082EA,Vehicles Plant Equipment and Machinery,,D1,Vehicles                                ,"80,000.00",18/03/2015,CAP,ADDEX GROUP                   
301,,,Re-use/recycling Site Maintena          ,CE090SA,Vehicles Plant Equipment and Machinery,,D3,Equipment                               ,"4,378.00",17/02/2015,CAP,UK CONTAINER MAINTENANCE LTD  
302,,,Re-use/recycling Site Maintena          ,CE090SA,Vehicles Plant Equipment and Machinery,,D3,Equipment                               ,"2,388.00",17/03/2015,CAP,UK CONTAINER MAINTENANCE LTD  
303,,,Cycle access/parking                    ,CE104FG,New Construction Conversion and Renovation,,B4,Contractor - Site works                 ,"25,000.00",20/03/2015,CAP,FM CONWAY LTD                 
304,,,Mitcham Town Centre                     ,CE104FP,New Construction Conversion and Renovation,,B4,Contractor - Site works                 ,901.45,27/02/2015,CAP,FM CONWAY LTD                 
305,,,Mitcham Town Centre                     ,CE104FP,New Construction Conversion and Renovation,,B5,Suppliers - Site works                  ,"11,532.00",27/03/2015,CAP,FM CONWAY LTD                 
306,,,Mitcham Town Centre                     ,CE104FP,New Construction Conversion and Renovation,,B5,Suppliers - Site works                  ,"28,477.00",27/02/2015,CAP,FM CONWAY LTD                 
307,,,Mitcham Town Centre                     ,CE104FP,New Construction Conversion and Renovation,,B5,Suppliers - Site works                  ,"1,416.00",05/02/2015,CAP,THAMES WATER UTILITIES LTD    
308,,,Mitcham Town Centre                     ,CE104FP,New Construction Conversion and Renovation,,B5,Suppliers - Site works                  ,"2,342.25",05/02/2015,CAP,THAMES WATER UTILITIES LTD    
309,,,A298/A238 Strategic Corridor            ,CE104FQ,New Construction Conversion and Renovation,,B4,Contractor - Site works                 ,"50,000.00",18/03/2015,CAP,FM CONWAY LTD                 
310,,,A298/A238 Strategic Corridor            ,CE104FQ,New Construction Conversion and Renovation,,B4,Contractor - Site works                 ,843.67,27/02/2015,CAP,MAY GURNEY LTD T/A CARTLEDGE  
311,,,A298/A238 Strategic Corridor            ,CE104FQ,New Construction Conversion and Renovation,,B6,Other Costs - Site works                ,"139,560.00",19/03/2015,CAP,TRANSPORT FOR LONDON          
312,,,A298/A238 Strategic Corridor            ,CE104FQ,New Construction Conversion and Renovation,,B6,Other Costs - Site works                ,900,10/02/2015,CAP,UK POWER NETWORKS (OPERATIONS)
313,,,Casualty Reduction & Schools            ,CE104RA,New Construction Conversion and Renovation,,B4,Contractor - Site works                 ,"25,000.00",20/03/2015,CAP,FM CONWAY LTD                 
314,,,Casualty Reduction & Schools            ,CE104RA,New Construction Conversion and Renovation,,B4,Contractor - Site works                 ,"25,853.12",20/03/2015,CAP,FM CONWAY LTD                 
315,,,Casualty Reduction & Schools            ,CE104RA,New Construction Conversion and Renovation,,B6,Other Costs - Site works                ,"2,341.95",10/03/2015,CAP,TRANSPORT FOR LONDON          
316,,,Cycle Improvements                      ,CE104RM,Other Capital Expenditure,,E4,TFL Other                               ,"3,210.00",20/02/2015,CAP,SUSTRANS LIMITED              
317,,,Cycle Improvements                      ,CE104RM,Other Capital Expenditure,,E4,TFL Other                               ,"3,562.50",05/03/2015,CAP,TRANSPORT INITIATIVES LLP     
318,,,The Broadway-Russell to Merton          ,CE105FO,New Construction Conversion and Renovation,,B4,Contractor - Site works                 ,"8,409.56",26/03/2015,CAP,FM CONWAY LTD                 
319,,,Central Road                            ,CE105FS,New Construction Conversion and Renovation,,B4,Contractor - Site works                 ,"55,897.85",25/03/2015,CAP,FM CONWAY LTD                 
320,,,Central Road                            ,CE105FS,New Construction Conversion and Renovation,,B4,Contractor - Site works                 ,"160,000.00",25/03/2015,CAP,FM CONWAY LTD                 
321,,,Coombe Lane                             ,CE105FT,New Construction Conversion and Renovation,,B4,Contractor - Site works                 ,"85,000.00",25/03/2015,CAP,FM CONWAY LTD                 
322,,,Parkside                                ,CE105FU,New Construction Conversion and Renovation,,B4,Contractor - Site works                 ,"40,310.80",25/03/2015,CAP,FM CONWAY LTD                 
323,,,King George Rec Play Area               ,CE110CB,New Construction Conversion and Renovation,,B4,Contractor - Site works                 ,"8,580.00",24/03/2015,CAP,REDACTED
324,,,Sir Joseph Hood Crazy Golf              ,CE110CF,New Construction Conversion and Renovation,,B4,Contractor - Site works                 ,"2,870.00",02/02/2015,CAP,THE CRESCENT FENCING CO.      
325,,,Wimbledon Park Crazy Golf               ,CE110CG,New Construction Conversion and Renovation,,B4,Contractor - Site works                 ,"3,553.50",12/03/2015,CAP,FORGEN RENEWABLES LIMITED     
326,,,Nelson Gardens Community Space          ,CE110CJ,New Construction Conversion and Renovation,,B4,Contractor - Site works                 ,"2,892.00",13/03/2015,CAP,REDACTED
327,,,Nelson Gardens Community Space          ,CE110CJ,New Construction Conversion and Renovation,,B4,Contractor - Site works                 ,"1,640.00",10/03/2015,CAP,TAYLOR BUILDING COMPANY LTD   
328,,,Tamworth Paddling Pool                  ,CE110CL,New Construction Conversion and Renovation,,B4,Contractor - Site works                 ,"8,539.00",26/03/2015,CAP,USTIGATE LTD                  
329,,,"B596a&b,B625a-c Crckt Grn Area          ",CE110SE,New Construction Conversion and Renovation,,B4,Contractor - Site works                 ,"9,790.00",24/03/2015,CAP,REDACTED
330,,,Outdoor Gyms PH Funding                 ,CE110SH,New Construction Conversion and Renovation,,B4,Contractor - Site works                 ,"29,988.00",20/03/2015,CAP,PARK LEISURE LTD              
331,,,Outdoor Gyms PH Funding                 ,CE110SH,New Construction Conversion and Renovation,,B4,Contractor - Site works                 ,"18,309.00",20/03/2015,CAP,PARK LEISURE LTD              
332,,,Pollution PH Funding                    ,CE110SJ,New Construction Conversion and Renovation,,B2,Site Surveys D&S Structure              ,"3,800.00",18/02/2015,CAP,REDACTED
333,,,Pollution PH Funding                    ,CE110SJ,New Construction Conversion and Renovation,,B4,Contractor - Site works                 ,"5,000.00",13/03/2015,CAP,TRANSF'M L/SCAPE DESIGN & CONS
334,,,B662 Brenley Close                      ,CE137FF,New Construction Conversion and Renovation,,B4,Contractor - Site works                 ,"8,000.00",18/03/2015,CAP,FM CONWAY LTD                 
335,,,B662 Brenley Close                      ,CE137FF,New Construction Conversion and Renovation,,B4,Contractor - Site works                 ,"5,000.00",18/03/2015,CAP,FM CONWAY LTD                 
336,,,Traffic Schemes                         ,CE142FA,New Construction Conversion and Renovation,,B4,Contractor - Site works                 ,"60,000.00",20/03/2015,CAP,FM CONWAY LTD                 
337,,,Traffic Schemes                         ,CE142FA,New Construction Conversion and Renovation,,B4,Contractor - Site works                 ,"14,500.00",18/03/2015,CAP,FM CONWAY LTD                 
338,,,Traffic Schemes                         ,CE142FA,New Construction Conversion and Renovation,,B4,Contractor - Site works                 ,"10,000.00",20/03/2015,CAP,FM CONWAY LTD                 
339,,,Traffic Schemes                         ,CE142FA,New Construction Conversion and Renovation,,B4,Contractor - Site works                 ,"3,000.00",18/03/2015,CAP,FM CONWAY LTD                 
340,,,BELVEDERES & RIDGWAY PLACE TRA    ,CE142FB,New Construction Conversion and Renovation,,B4,Contractor - Site works                 ,"15,000.00",24/03/2015,CAP,FM CONWAY LTD                 
341,,,WHEELIE BINS - PILOT 2,CE151AA,Vehicles Plant Equipment and Machinery,,D3,Equipment                               ,"11,250.00",18/03/2015,CAP,CRAEMER UK LTD                
342,,,WHEELIE BINS - PILOT 2,CE151AA,Vehicles Plant Equipment and Machinery,,D3,Equipment                               ,"2,893.80",23/03/2015,CAP,CRAEMER UK LTD                
343,,,WHEELIE BINS - PILOT 2,CE151AA,Vehicles Plant Equipment and Machinery,,D3,Equipment                               ,"10,494.00",18/03/2015,CAP,CRAEMER UK LTD                
344,,,WHEELIE BINS - PILOT 2,CE151AA,Vehicles Plant Equipment and Machinery,,D3,Equipment                               ,"10,897.20",18/03/2015,CAP,CRAEMER UK LTD                
345,,,Civic Centre refurbishment              ,CF001AB,Vehicles Plant Equipment and Machinery,,D5,Software                                ,"48,821.14",24/03/2015,CAP,AUDITEL RENTAL & SERVICE LTD  
346,,,Civic Centre Windows                    ,CF001AK,New Construction Conversion and Renovation,,B4,Contractor - Site works                 ,"1,001.21",10/03/2015,CAP,HAZLEMERE WINDOW CO LIMITED   
347,,,Civic Centre Windows                    ,CF001AK,New Construction Conversion and Renovation,,B4,Contractor - Site works                 ,"30,662.55",10/03/2015,CAP,HAZLEMERE WINDOW CO LIMITED   
348,,,Civic Centre Windows                    ,CF001AK,New Construction Conversion and Renovation,,B4,Contractor - Site works                 ,"7,491.83",10/03/2015,CAP,HAZLEMERE WINDOW CO LIMITED   
349,,,Civic Centre Windows                    ,CF001AK,New Construction Conversion and Renovation,,B4,Contractor - Site works                 ,"28,000.00",10/03/2015,CAP,HAZLEMERE WINDOW CO LIMITED   
350,,,Civic Centre Windows                    ,CF001AK,New Construction Conversion and Renovation,,B4,Contractor - Site works                 ,"3,661.53",25/03/2015,CAP,ENERGY SAVING LIGHTING (UK) LT
351,,,Civic Centre- Upgrading lifts           ,CF001AL,New Construction Conversion and Renovation,,B4,Contractor - Site works                 ,"58,867.13",09/03/2015,CAP,AXIS ELEVATORS LTD            
352,,,Civic Centre- Upgrading lifts           ,CF001AL,New Construction Conversion and Renovation,,B4,Contractor - Site works                 ,"26,332.10",26/02/2015,CAP,AXIS ELEVATORS LTD            
353,,,Civic Centre- Upgrading lifts           ,CF001AL,Vehicles Plant Equipment and Machinery,,D3,Equipment                               ,"3,574.36",24/02/2015,CAP,SPECIALIST COMPUTER CENT. PLC 
354,,,Civic Centre- Upgrading lifts           ,CF001AL,Vehicles Plant Equipment and Machinery,,D5,Software                                ,"21,740.00",02/03/2015,CAP,ORGANISED COMPUTER SYSTEMS LTD
355,,,Civic Centre- Upgrading lifts           ,CF001AL,Vehicles Plant Equipment and Machinery,,D5,Software                                ,"22,280.00",09/02/2015,CAP,ORGANISED COMPUTER SYSTEMS LTD
356,,,Repair and Maintenance                  ,CF004SA,New Construction Conversion and Renovation,,B4,Contractor - Site works                 ,"37,336.50",26/02/2015,CAP,SALTASH ENTERPRISES LTD       
357,,,St Mary's expansion                     ,CS008RA,New Construction Conversion and Renovation,,B1,Consultants Fees D&S Structure          ,"4,152.00",05/03/2015,CAP,NPS PROPERTY CONSULTANTS LTD  
358,,,St Mary's expansion                     ,CS008RA,New Construction Conversion and Renovation,,B4,Contractor - Site works                 ,"101,918.00",20/02/2015,CAP,MANSELL CONSTRUCTION SERVICES 
359,,,Hillcross School Expansion              ,CS020AC,New Construction Conversion and Renovation,,B1,Consultants Fees D&S Structure          ,"1,925.00",10/03/2015,CAP,STACE LLP                     
360,,,Hillcross School Expansion              ,CS020AC,New Construction Conversion and Renovation,,B1,Consultants Fees D&S Structure          ,"1,925.00",12/03/2015,CAP,STACE LLP                     
361,,,Hillcross School Expansion              ,CS020AC,New Construction Conversion and Renovation,,B1,Consultants Fees D&S Structure          ,"17,220.00",05/03/2015,CAP,CURL LA TOURELLE ARCHITECTS   
362,,,Hillcross School Expansion              ,CS020AC,New Construction Conversion and Renovation,,B4,Contractor - Site works                 ,"342,870.37",05/03/2015,CAP,MANSELL CONSTRUCTION SERVICES 
363,,,Merton Abbey Temp Accomodation          ,CS022AC,New Construction Conversion and Renovation,,B1,Consultants Fees D&S Structure          ,"2,938.87",27/02/2015,CAP,PELLINGS LLP                  
364,,,Merton Abbey Temp Accomodation          ,CS022AC,New Construction Conversion and Renovation,,B1,Consultants Fees D&S Structure          ,"2,938.87",20/03/2015,CAP,PELLINGS LLP                  
365,,,Merton Abbey Temp Accomodation          ,CS022AC,New Construction Conversion and Renovation,,B2,Site Surveys D&S Structure              ,717.5,27/02/2015,CAP,KEEGANS LIMITED               
366,,,Merton Abbey Temp Accomodation          ,CS022AC,New Construction Conversion and Renovation,,B4,Contractor - Site works                 ,"194,389.66",02/03/2015,CAP,MANSELL CONSTRUCTION SERVICES 
367,,,Merton Abbey Temp Accomodation          ,CS022AC,New Construction Conversion and Renovation,,B4,Contractor - Site works                 ,"283,409.74",20/03/2015,CAP,MANSELL CONSTRUCTION SERVICES 
368,,,Pelham School Expansion                 ,CS023AC,New Construction Conversion and Renovation,,B1,Consultants Fees D&S Structure          ,"7,216.00",27/02/2015,CAP,HAVERSTOCK ASSOCIATES LLP     
369,,,Pelham School Expansion                 ,CS023AC,New Construction Conversion and Renovation,,B1,Consultants Fees D&S Structure          ,"1,975.00",12/03/2015,CAP,STACE LLP                     
370,,,Pelham School Expansion                 ,CS023AC,New Construction Conversion and Renovation,,B1,Consultants Fees D&S Structure          ,"7,215.00",26/03/2015,CAP,HAVERSTOCK ASSOCIATES LLP     
371,,,Pelham School Expansion                 ,CS023AC,New Construction Conversion and Renovation,,B1,Consultants Fees D&S Structure          ,"1,975.00",10/03/2015,CAP,STACE LLP                     
372,,,Pelham School Expansion                 ,CS023AC,New Construction Conversion and Renovation,,B4,Contractor - Site works                 ,"185,760.10",05/03/2015,CAP,MANSELL CONSTRUCTION SERVICES 
373,,,Dundonald expansion                     ,CS031AC,New Construction Conversion and Renovation,,B1,Consultants Fees D&S Structure          ,"1,570.00",28/02/2015,CAP,SYNERGY CPC LLP               
374,,,Dundonald expansion                     ,CS031AC,New Construction Conversion and Renovation,,B1,Consultants Fees D&S Structure          ,"1,050.00",26/02/2015,CAP,AREA LANDSCAPE ARCHITECTS     
375,,,Dundonald expansion                     ,CS031AC,New Construction Conversion and Renovation,,B1,Consultants Fees D&S Structure          ,"11,512.00",27/02/2015,CAP,HAVERSTOCK ASSOCIATES LLP     
376,,,Dundonald expansion                     ,CS031AC,New Construction Conversion and Renovation,,B1,Consultants Fees D&S Structure          ,"8,634.00",26/03/2015,CAP,HAVERSTOCK ASSOCIATES LLP     
377,,,Dundonald expansion                     ,CS031AC,New Construction Conversion and Renovation,,B3,Other Expenses D&S Structure            ,763,12/03/2015,CAP,THAMES WATER UTILITIES LTD    
378,,,Dundonald expansion                     ,CS031AC,New Construction Conversion and Renovation,,B4,Contractor - Site works                 ,"72,000.00",17/03/2015,CAP,FM CONWAY LTD                 
379,,,Dundonald expansion                     ,CS031AC,New Construction Conversion and Renovation,,B6,Other Costs - Site works                ,"4,220.26",23/03/2015,CAP,ACTIVE SECURITY GROUP         
380,,,Free School Meals                       ,CS033AB,New Construction Conversion and Renovation,,B2,Site Surveys D&S Structure              ,960,27/01/2015,CAP,LUCION ENVIRONMENTAL LTD      
381,,,Free School Meals                       ,CS033AB,Vehicles Plant Equipment and Machinery,,D3,Equipment                               ,"3,520.00",27/02/2015,CAP,DF20 LTD                      
382,,,Poplar Permanent Expansion              ,CS034AB,New Construction Conversion and Renovation,,B1,Consultants Fees D&S Structure          ,"3,212.12",20/03/2015,CAP,PELLINGS LLP                  
383,,,Poplar Permanent Expansion              ,CS034AB,New Construction Conversion and Renovation,,B1,Consultants Fees D&S Structure          ,"3,312.12",27/02/2015,CAP,PELLINGS LLP                  
384,,,Poplar Permanent Expansion              ,CS034AB,New Construction Conversion and Renovation,,B4,Contractor - Site works                 ,"349,079.81",24/02/2015,CAP,MANSELL CONSTRUCTION SERVICES 
385,,,Singlegate expansion                    ,CS049AA,New Construction Conversion and Renovation,,B1,Consultants Fees D&S Structure          ,"15,139.20",27/02/2015,CAP,ATKINS LIMITED                
386,,,Singlegate expansion                    ,CS049AA,New Construction Conversion and Renovation,,B1,Consultants Fees D&S Structure          ,"2,600.00",10/03/2015,CAP,ATKINS LIMITED                
387,,,Singlegate expansion                    ,CS049AA,New Construction Conversion and Renovation,,B1,Consultants Fees D&S Structure          ,"43,761.93",27/02/2015,CAP,ATKINS LIMITED                
388,,,Singlegate expansion                    ,CS049AA,New Construction Conversion and Renovation,,B4,Contractor - Site works                 ,"201,420.50",20/02/2015,CAP,MANSELL CONSTRUCTION SERVICES 
389,,,Singlegate expansion                    ,CS049AA,New Construction Conversion and Renovation,,B4,Contractor - Site works                 ,"155,254.32",19/03/2015,CAP,MANSELL CONSTRUCTION SERVICES 
390,,,Schs Cap Maint & Accessibility          ,CS080SD,New Construction Conversion and Renovation,,B4,Contractor - Site works                 ,973.95,25/02/2015,CAP,MORTON FAIRVIEW ELEC SERVICES 
391,,,Schs Cap Maint & Accessibility          ,CS080SD,New Construction Conversion and Renovation,,B4,Contractor - Site works                 ,"12,165.29",09/03/2015,CAP,T BROWN LTD                   
392,,,Schs Cap Maint & Accessibility          ,CS080SD,New Construction Conversion and Renovation,,B4,Contractor - Site works                 ,"5,981.77",06/03/2015,CAP,SALTASH ENTERPRISES LTD       
393,,,Schs Cap Maint & Accessibility          ,CS080SD,New Construction Conversion and Renovation,,B4,Contractor - Site works                 ,"2,750.00",03/03/2015,CAP,SALTASH ENTERPRISES LTD       
394,,,Schs Cap Maint & Accessibility          ,CS080SD,New Construction Conversion and Renovation,,B4,Contractor - Site works                 ,"10,120.01",09/03/2015,CAP,SALTASH ENTERPRISES LTD       
395,,,Schs Cap Maint & Accessibility          ,CS080SD,New Construction Conversion and Renovation,,B4,Contractor - Site works                 ,"20,000.00",18/03/2015,CAP,R DURTNELL & SONS LTD         
396,,,Lonesome - Main Heating                 ,CS091AD,New Construction Conversion and Renovation,,B4,Contractor - Site works                 ,"1,193.87",25/03/2015,CAP,T BROWN GROUP LTD             
397,,,The Sherwood-Boiler&Perim Fnc           ,CS091AF,New Construction Conversion and Renovation,,B4,Contractor - Site works                 ,"1,859.25",25/03/2015,CAP,T BROWN GROUP LTD             
398,,,Perseid                                 ,CS092AA,New Construction Conversion and Renovation,,B1,Consultants Fees D&S Structure          ,"8,354.82",10/03/2015,CAP,NPS PROPERTY CONSULTANTS LTD  
399,,,Perseid                                 ,CS092AA,New Construction Conversion and Renovation,,B4,Contractor - Site works                 ,"1,195.10",20/03/2015,CAP,C FLETCHER SONS & CO LTD      
400,,,Perseid                                 ,CS092AA,New Construction Conversion and Renovation,,B4,Contractor - Site works                 ,"115,308.38",18/03/2015,CAP,R DURTNELL & SONS LTD         
401,,,Perseid                                 ,CS092AA,New Construction Conversion and Renovation,,B4,Contractor - Site works                 ,"98,853.78",03/03/2015,CAP,R DURTNELL & SONS LTD         
402,,,Disaster recovery                       ,CT003EA,Vehicles Plant Equipment and Machinery,,D3,Equipment                               ,"3,501.00",26/02/2015,CAP,ON365.CO.UK                   
403,,,Disaster recovery                       ,CT003EA,Vehicles Plant Equipment and Machinery,,D3,Equipment                               ,"1,340.16",13/03/2015,CAP,MARQUEST LIMITED              
404,,,Disaster recovery                       ,CT003EA,Vehicles Plant Equipment and Machinery,,D3,Equipment                               ,"45,058.42",12/02/2015,CAP,SPECIALIST COMPUTER CENT. PLC 
405,,,Disaster recovery                       ,CT003EA,Vehicles Plant Equipment and Machinery,,D3,Equipment                               ,"7,012.68",09/02/2015,CAP,ORGANISED COMPUTER SYSTEMS LTD
406,,,Disaster recovery                       ,CT003EA,Vehicles Plant Equipment and Machinery,,D3,Equipment                               ,926.96,13/03/2015,CAP,MARQUEST LIMITED              
407,,,Disaster recovery                       ,CT003EA,Other Capital Expenditure,,E3,Miscellaneous Capital Expendit          ,"4,333.00",25/03/2015,CAP,SYNETRIX LIMITED              
408,,,Disaster recovery                       ,CT003EA,Other Capital Expenditure,,E3,Miscellaneous Capital Expendit          ,865,24/03/2015,CAP,SYNETRIX LIMITED              
409,,,Disaster recovery                       ,CT003EA,Other Capital Expenditure,,E3,Miscellaneous Capital Expendit          ,"6,920.00",20/03/2015,CAP,SYNETRIX LIMITED              
410,,,IT Equipment                            ,CT006EA,Vehicles Plant Equipment and Machinery,,D3,Equipment                               ,501.7,27/03/2015,CAP,MISCO                         
411,,,IT Equipment                            ,CT006EA,Vehicles Plant Equipment and Machinery,,D5,Software                                ,"4,900.00",12/02/2015,CAP,ZOHO CORPORATION PRIVATE      
412,,,Replacement Social Care System          ,CT007EA,Other Capital Expenditure,,E3,Miscellaneous Capital Expendit          ,"1,095.00",26/02/2015,CAP,NET-CTRL                      
413,Central Services,Council tax collection,Local Taxation Services,E02100,Supplies & Services           ,Prntng Stnry Gen Off Exp      ,DE03,Stationery                              ,"2,690.00",03/03/2015,REV,ENCORE ENVELOPES LIMITED      
414,Central Services,Council tax collection,Local Taxation Services,E02100,Supplies & Services           ,Services                      ,DF03,Consultants                             ,"1,290.00",06/03/2015,REV,GEMINI CONSULTANTS            
415,Central Services,Council tax collection,Local Taxation Services,E02100,Supplies & Services           ,Services                      ,DF11,Counsel's Fees                          ,"1,178.32",17/03/2015,REV,HMCTS                         
416,Central Services,Council tax collection,Local Taxation Services,E02100,Supplies & Services           ,Services                      ,DF11,Counsel's Fees                          ,500,18/03/2015,REV,REDACTED
417,Central Services,Council tax collection,Local Taxation Services,E02100,Supplies & Services           ,Comms and Computing           ,DG02,Software Licences                       ,"1,500.00",02/03/2015,REV,ONESTEP SOLUTIONS PLC         
418,Central Services,Council tax collection,Local Taxation Services,E02100,Supplies & Services           ,Comms and Computing           ,DG09,Computer Purchases - Misc               ,"1,905.00",05/03/2015,REV,INFORM CPI LTD                
419,Central Services,Council tax collection,Local Taxation Services,E02100,Supplies & Services           ,Comms and Computing           ,DG09,Computer Purchases - Misc               ,"7,161.00",13/02/2015,REV,CIVICA UK LIMITED             
420,Central Services,Council tax collection,Local Taxation Services,E02100,Supplies & Services           ,Comms and Computing           ,DG09,Computer Purchases - Misc               ,"1,406.25",13/02/2015,REV,CIVICA UK LIMITED             
421,Central Services,Council tax collection,Local Taxation Services,E02100,Supplies & Services           ,Comms and Computing           ,DG09,Computer Purchases - Misc               ,"4,800.00",26/02/2015,REV,INFORM CPI LTD                
422,Central Services,Council tax collection,Local Taxation Services,E02100,Supplies & Services           ,Comms and Computing           ,DG09,Computer Purchases - Misc               ,725.63,26/03/2015,REV,CIVICA UK LIMITED             
423,Central Services,Council tax collection,Local Taxation Services,E02100,Supplies & Services           ,Comms and Computing           ,DG09,Computer Purchases - Misc               ,725,27/02/2015,REV,MAG:NET SOLUTIONS             
424,Central Services,Council tax collection,Local Taxation Services,E02100,Supplies & Services           ,Comms and Computing           ,DG09,Computer Purchases - Misc               ,"2,041.88",26/03/2015,REV,CIVICA UK LIMITED             
425,Central Services,Council tax collection,Local Taxation Services,E02100,Supplies & Services           ,Comms and Computing           ,DG09,Computer Purchases - Misc               ,"1,869.00",27/02/2015,REV,BLAZIE                        
426,Central Services,Council tax collection,Local Taxation Services,E02100,Third Party Payments          ,Private Contractors           ,EH01,Miscellaneous Agency Services           ,711.16,01/03/2015,REV,COMMERCIAL COLLECTION SERVICES
427,Central Services,Council tax collection,Local Taxation Bailiffs,E02101,Supplies & Services           ,Services                      ,DF18,Bailiffs' fees                          ,758.1,03/03/2015,REV,QUARTIX                       
428,Housing Services,HB Administration,Local Welfare Support,E02123,Transfer Payments             ,Housing Benefits              ,FA95,Other Payments                          ,662.61,19/02/2015,REV,THE VINE PROJECT              
429,Housing Services,HB Administration,Local Welfare Support,E02123,Transfer Payments             ,Housing Benefits              ,FA95,Other Payments                          ,678.77,05/03/2015,REV,THE VINE PROJECT              
430,Housing Services,HB Administration,Local Welfare Support,E02123,Transfer Payments             ,Housing Benefits              ,FA95,Other Payments                          ,544.49,25/02/2015,REV,THE VINE PROJECT              
431,Central Services,SupS Payroll,Payroll,E02140,Third Party Payments          ,Private Contractors           ,EH10,Contract Payments                       ,"5,882.80",06/03/2015,REV,LONDON BOROUGH OF SUTTON      
432,Central Services,SupS Payroll,Payroll,E02140,Third Party Payments          ,Private Contractors           ,EH10,Contract Payments                       ,"13,273.80",06/03/2015,REV,LONDON BOROUGH OF SUTTON      
433,Central Services,SupS Payroll,Payroll,E02140,Third Party Payments          ,Private Contractors           ,EH10,Contract Payments                       ,"12,238.35",17/03/2015,REV,LONDON BOROUGH OF SUTTON      
434,Central Services,SupS Payroll,Payroll,E02140,Third Party Payments          ,Private Contractors           ,EH10,Contract Payments                       ,"5,766.89",18/03/2015,REV,LONDON BOROUGH OF SUTTON      
435,Central Services,SupS Payroll,Payroll,E02140,Third Party Payments          ,Private Contractors           ,EH10,Contract Payments                       ,"18,515.98",13/03/2015,REV,LONDON BOROUGH OF SUTTON      
436,Central Services,SupS Payroll,Payroll,E02140,Third Party Payments          ,Private Contractors           ,EH10,Contract Payments                       ,637.5,16/03/2015,REV,LONDON BOROUGH OF SUTTON      
437,Central Services,SupS Payroll,Trinity Project,E02141,Supplies & Services           ,Services                      ,DF03,Consultants                             ,"3,280.00",06/03/2015,REV,LONDON BOROUGH OF SUTTON      
438,Central Services,SupS Payroll,Trinity Project,E02141,Supplies & Services           ,Services                      ,DF03,Consultants                             ,"6,560.00",06/03/2015,REV,LONDON BOROUGH OF SUTTON      
439,Central Services,SupS Pensions,Pensions,E02160,Third Party Payments          ,Other Local Authorities       ,EB01,Payments to OLAs                        ,"33,252.00",27/01/2015,REV,WANDSWORTH CORPORATION        
440,Central Services,SupS Facilities,Post Room,E02220,Supplies & Services           ,Equip Furniture/Materials     ,DA01,Equipment - R & M                       ,"2,743.62",16/03/2015,REV,NEOPOST LIMITED               
441,Central Services,SupS Facilities,Post Room,E02220,Supplies & Services           ,Equip Furniture/Materials     ,DA01,Equipment - R & M                       ,864,17/03/2015,REV,NEOPOST FINANCE LIMITED       
442,Central Services,SupS Facilities,Post Room,E02220,Supplies & Services           ,Comms and Computing           ,DG04,Postage - General                       ,579.42,23/03/2015,REV,STREETWISE COURIERS           
443,Central Services,SupS Facilities,Post Room,E02220,Supplies & Services           ,Comms and Computing           ,DG04,Postage - General                       ,635.26,28/02/2015,REV,STREETWISE COURIERS           
444,Central Services,SupS Facilities,Post Room,E02220,Supplies & Services           ,Comms and Computing           ,DG04,Postage - General                       ,698.71,16/03/2015,REV,STREETWISE COURIERS           
445,Central Services,SupS Facilities,Post Room,E02220,Supplies & Services           ,Comms and Computing           ,DG04,Postage - General                       ,960.23,09/03/2015,REV,STREETWISE COURIERS           
446,Central Services,SupS Facilities,Post Room,E02220,Supplies & Services           ,Comms and Computing           ,DG04,Postage - General                       ,559.98,16/02/2015,REV,STREETWISE COURIERS           
447,Central Services,SupS Facilities,Security Services,E02221,Employees                     ,Direct Employee Expenses      ,AA17,Agency Staff & Casual Paymts            ,"1,929.92",01/03/2015,REV,SIGHT & SOUND                 
448,Central Services,SupS Facilities,Security Services,E02221,Employees                     ,Direct Employee Expenses      ,AA17,Agency Staff & Casual Paymts            ,"1,983.15",01/03/2015,REV,SIGHT & SOUND                 
449,Central Services,SupS Facilities,Security Services,E02221,Employees                     ,Direct Employee Expenses      ,AA17,Agency Staff & Casual Paymts            ,"2,012.40",01/03/2015,REV,SIGHT & SOUND                 
450,Central Services,SupS Facilities,Security Services,E02221,Employees                     ,Direct Employee Expenses      ,AA17,Agency Staff & Casual Paymts            ,"1,884.28",01/03/2015,REV,SIGHT & SOUND                 
451,Central Services,SupS Facilities,Security Services,E02221,Employees                     ,Direct Employee Expenses      ,AA17,Agency Staff & Casual Paymts            ,"2,340.00",01/03/2015,REV,SIGHT & SOUND                 
452,Central Services,SupS Facilities,Civic Centre,E02222,Premises Related Expenditure  ,RepairsAlterations&MtceOfBldgs,BA01,DDM - General Building                  ,960,21/03/2015,REV,KH FLOORING LTD               
453,Central Services,SupS Facilities,Civic Centre,E02222,Premises Related Expenditure  ,RepairsAlterations&MtceOfBldgs,BA05,DDM - Electrical                        ,650,24/03/2015,REV,SSD LIMITED                   
454,Central Services,SupS Facilities,Civic Centre,E02222,Premises Related Expenditure  ,RepairsAlterations&MtceOfBldgs,BA05,DDM - Electrical                        ,"1,625.00",24/03/2015,REV,SSD LIMITED                   
455,Central Services,SupS Facilities,Civic Centre,E02222,Premises Related Expenditure  ,RepairsAlterations&MtceOfBldgs,BA29,BUILD MAINT MGT FEES                    ,"1,756.20",31/03/2015,REV,UNIQUE OFFICE SOLUTIONS LTD   
456,Central Services,SupS Facilities,Civic Centre,E02222,Premises Related Expenditure  ,RepairsAlterations&MtceOfBldgs,BA29,BUILD MAINT MGT FEES                    ,"2,222.34",31/03/2015,REV,UNIQUE OFFICE SOLUTIONS LTD   
457,Central Services,SupS Facilities,Civic Centre,E02222,Premises Related Expenditure  ,RepairsAlterations&MtceOfBldgs,BA29,BUILD MAINT MGT FEES                    ,"4,177.47",31/03/2015,REV,UNIQUE OFFICE SOLUTIONS LTD   
458,Central Services,SupS Facilities,Civic Centre,E02222,Premises Related Expenditure  ,RepairsAlterations&MtceOfBldgs,BA29,BUILD MAINT MGT FEES                    ,"2,239.60",19/02/2015,REV,UNIQUE OFFICE SOLUTIONS LTD   
459,Central Services,SupS Facilities,Civic Centre,E02222,Premises Related Expenditure  ,RepairsAlterations&MtceOfBldgs,BA29,BUILD MAINT MGT FEES                    ,"3,919.30",19/02/2015,REV,UNIQUE OFFICE SOLUTIONS LTD   
460,Central Services,SupS Facilities,Civic Centre,E02222,Premises Related Expenditure  ,RepairsAlterations&MtceOfBldgs,BA29,BUILD MAINT MGT FEES                    ,"1,631.60",31/03/2015,REV,UNIQUE OFFICE SOLUTIONS LTD   
461,Central Services,SupS Facilities,Civic Centre,E02222,Premises Related Expenditure  ,RepairsAlterations&MtceOfBldgs,BA29,BUILD MAINT MGT FEES                    ,"1,836.22",31/03/2015,REV,UNIQUE OFFICE SOLUTIONS LTD   
462,Central Services,SupS Facilities,Civic Centre,E02222,Premises Related Expenditure  ,RepairsAlterations&MtceOfBldgs,BA29,BUILD MAINT MGT FEES                    ,"11,171.60",31/03/2015,REV,UNIQUE OFFICE SOLUTIONS LTD   
463,Central Services,SupS Facilities,Civic Centre,E02222,Premises Related Expenditure  ,RepairsAlterations&MtceOfBldgs,BA29,BUILD MAINT MGT FEES                    ,930,25/02/2015,REV,FORBO FLOORING UK LTD         
464,Central Services,SupS Facilities,Civic Centre,E02222,Premises Related Expenditure  ,RepairsAlterations&MtceOfBldgs,BA29,BUILD MAINT MGT FEES                    ,"1,508.10",19/02/2015,REV,UNIQUE OFFICE SOLUTIONS LTD   
465,Central Services,SupS Facilities,Civic Centre,E02222,Premises Related Expenditure  ,RepairsAlterations&MtceOfBldgs,BA29,BUILD MAINT MGT FEES                    ,"5,137.71",31/03/2015,REV,UNIQUE OFFICE SOLUTIONS LTD   
466,Central Services,SupS Facilities,Civic Centre,E02222,Premises Related Expenditure  ,RepairsAlterations&MtceOfBldgs,BA29,BUILD MAINT MGT FEES                    ,"11,000.00",31/03/2015,REV,UNIQUE OFFICE SOLUTIONS LTD   
467,Central Services,SupS Facilities,Civic Centre,E02222,Premises Related Expenditure  ,RepairsAlterations&MtceOfBldgs,BA29,BUILD MAINT MGT FEES                    ,"1,291.40",19/02/2015,REV,UNIQUE OFFICE SOLUTIONS LTD   
468,Central Services,SupS Facilities,Civic Centre,E02222,Premises Related Expenditure  ,RepairsAlterations&MtceOfBldgs,BA84,Asbestos                                ,"3,960.00",12/12/2014,REV,LUCION ENVIRONMENTAL LTD      
469,Central Services,SupS Facilities,Civic Centre,E02222,Supplies & Services           ,Equip Furniture/Materials     ,DA02,Op. Leasing Equipment                   ,"9,722.00",13/03/2015,REV,GREENWORKS                    
470,Central Services,SupS Facilities,Civic Centre,E02222,Supplies & Services           ,Equip Furniture/Materials     ,DA09,Equip-Purchases                         ,"1,067.50",26/03/2015,REV,AVELEC SOLUTIONS              
471,Central Services,SupS Facilities,Facilities,E02231,Premises Related Expenditure  ,RepairsAlterations&MtceOfBldgs,BA01,DDM - General Building                  ,685,10/03/2015,REV,SUNA SUPPLIES LTD.            
472,Central Services,SupS Facilities,Facilities,E02231,Premises Related Expenditure  ,RepairsAlterations&MtceOfBldgs,BA02,ENERGY CONSERVATION                     ,"6,999.48",16/03/2015,REV,BERGEN ENERGI                 
473,Central Services,SupS Facilities,Facilities,E02231,Premises Related Expenditure  ,RepairsAlterations&MtceOfBldgs,BA02,ENERGY CONSERVATION                     ,"1,917.00",01/03/2015,REV,BERGEN ENERGI                 
474,Central Services,SupS Facilities,Facilities,E02231,Premises Related Expenditure  ,RepairsAlterations&MtceOfBldgs,BA02,ENERGY CONSERVATION                     ,824,01/12/2014,REV,ENERGY SAVING LIGHTING (UK) LT
475,Central Services,SupS Facilities,Facilities,E02231,Premises Related Expenditure  ,RepairsAlterations&MtceOfBldgs,BA02,ENERGY CONSERVATION                     ,"1,749.87",27/01/2015,REV,BERGEN ENERGI                 
476,Central Services,SupS Facilities,Facilities,E02231,Premises Related Expenditure  ,RepairsAlterations&MtceOfBldgs,BA02,ENERGY CONSERVATION                     ,"3,013.19",25/03/2015,REV,ENERGY SAVING LIGHTING (UK) LT
477,Central Services,SupS Facilities,Facilities,E02231,Premises Related Expenditure  ,RepairsAlterations&MtceOfBldgs,BA02,ENERGY CONSERVATION                     ,"2,497.11",09/03/2015,REV,EA ENERGY SOLUTIONS LIMITED   
478,Central Services,SupS Facilities,Facilities,E02231,Premises Related Expenditure  ,RepairsAlterations&MtceOfBldgs,BA02,ENERGY CONSERVATION                     ,"6,022.91",19/03/2015,REV,MAY GURNEY LTD T/A CARTLEDGE  
479,Central Services,SupS Facilities,Facilities,E02231,Premises Related Expenditure  ,RepairsAlterations&MtceOfBldgs,BA02,ENERGY CONSERVATION                     ,725,01/12/2014,REV,ENERGY SAVING LIGHTING (UK) LT
480,Central Services,SupS Facilities,Facilities,E02231,Premises Related Expenditure  ,RepairsAlterations&MtceOfBldgs,BA29,Build Maint Mgt Fees                    ,"6,576.00",25/03/2015,REV,ON365.CO.UK                   
481,Central Services,SupS Facilities,Facilities,E02231,Premises Related Expenditure  ,RepairsAlterations&MtceOfBldgs,BA29,Build Maint Mgt Fees                    ,"1,000.00",16/02/2015,REV,PRIORITY RISK LTD             
482,Central Services,SupS Facilities,Facilities,E02231,Premises Related Expenditure  ,RepairsAlterations&MtceOfBldgs,BA29,Build Maint Mgt Fees                    ,"10,500.00",04/03/2015,REV,FRONTLINE DATA LIMITED        
483,Central Services,SupS Facilities,Facilities,E02231,Premises Related Expenditure  ,Energy Costs                  ,BB02,Electricity                             ,"22,117.07",08/01/2015,REV,NPOWER                        
484,Central Services,SupS Facilities,Facilities,E02231,Premises Related Expenditure  ,Energy Costs                  ,BB02,Electricity                             ,"3,070.62",08/01/2015,REV,NPOWER                        
485,Central Services,SupS Facilities,Facilities,E02231,Premises Related Expenditure  ,Energy Costs                  ,BB02,Electricity                             ,"12,640.36",07/01/2015,REV,NPOWER                        
486,Central Services,SupS Facilities,Facilities,E02231,Premises Related Expenditure  ,Energy Costs                  ,BB02,Electricity                             ,"2,441.21",25/12/2014,REV,NPOWER                        
487,Central Services,SupS Facilities,Facilities,E02231,Premises Related Expenditure  ,Energy Costs                  ,BB02,Electricity                             ,"3,070.61",06/02/2015,REV,NPOWER                        
488,Central Services,SupS Facilities,Facilities,E02231,Premises Related Expenditure  ,Energy Costs                  ,BB02,Electricity                             ,"14,084.57",07/01/2015,REV,NPOWER                        
489,Central Services,SupS Facilities,Facilities,E02231,Supplies & Services           ,Equip Furniture/Materials     ,DA04,Materials                               ,"28,601.60",20/03/2015,REV,MARK GROUP                    
490,Central Services,SupS Facilities,Facilities,E02231,Supplies & Services           ,Equip Furniture/Materials     ,DA04,Materials                               ,"62,384.72",17/03/2015,REV,MARK GROUP                    
491,Central Services,SupS Facilities,Facilities,E02231,Supplies & Services           ,Equip Furniture/Materials     ,DA04,Materials                               ,"38,357.54",17/03/2015,REV,MARK GROUP                    
492,Central Services,SupS Facilities,Facilities,E02231,Supplies & Services           ,Services                      ,DF09,Miscellaneous Fees                      ,"30,000.00",20/03/2015,REV,MARK GROUP                    
493,Central Services,SupS Facilities,Facilities,E02231,Supplies & Services           ,Services                      ,DF09,Miscellaneous Fees                      ,"53,688.82",20/03/2015,REV,MARK GROUP                    
494,Central Services,SupS Facilities,Facilities,E02231,Supplies & Services           ,Services                      ,DF09,Miscellaneous Fees                      ,"2,304.85",17/03/2015,REV,MARK GROUP                    
495,Central Services,SupS Facilities,Facilities,E02231,Supplies & Services           ,Services                      ,DF09,Miscellaneous Fees                      ,"30,000.00",20/03/2015,REV,MARK GROUP                    
496,Central Services,SupS Facilities,Facilities,E02231,Supplies & Services           ,Services                      ,DF09,Miscellaneous Fees                      ,"9,205.18",18/03/2015,REV,STARK SOFTWARE INTERNATIONAL  
497,Central Services,SupS Facilities,Facilities,E02231,Supplies & Services           ,Services                      ,DF09,Miscellaneous Fees                      ,"79,987.34",17/03/2015,REV,MARK GROUP                    
498,Central Services,SupS Facilities,Facilities,E02231,Supplies & Services           ,Services                      ,DF09,Miscellaneous Fees                      ,"1,165.04",19/03/2015,REV,MAY GURNEY LTD T/A CARTLEDGE  
499,Central Services,SupS Facilities,Facilities,E02231,Supplies & Services           ,Services                      ,DF09,Miscellaneous Fees                      ,"13,020.81",25/03/2015,REV,MARK GROUP                    
500,Central Services,SupS Facilities,Facilities,E02231,Supplies & Services           ,Services                      ,DF09,Miscellaneous Fees                      ,"3,851.84",11/03/2015,REV,MARK GROUP                    
501,Central Services,SupS Facilities,FM External Fees,E02239,Premises Related Expenditure  ,RepairsAlterations&MtceOfBldgs,BA29,Build Maint Mgt Fees                    ,"15,322.05",25/03/2015,REV,COMPLEMENT CONSULTING LIMITED 
502,Central Services,SupS Facilities,Corporate Services Buildings,E02240,Premises Related Expenditure  ,RepairsAlterations&MtceOfBldgs,BA01,DDM - General Building                  ,"3,196.00",02/03/2015,REV,SAFEGUARD PEST CONTROL LTD    
503,Central Services,SupS Facilities,Corporate Services Buildings,E02240,Premises Related Expenditure  ,RepairsAlterations&MtceOfBldgs,BA01,DDM - General Building                  ,"1,020.00",12/12/2014,REV,LUCION ENVIRONMENTAL LTD      
504,Central Services,SupS Facilities,Corporate Services Buildings,E02240,Premises Related Expenditure  ,RepairsAlterations&MtceOfBldgs,BA01,DDM - General Building                  ,"1,130.00",09/03/2015,REV,KH FLOORING LTD               
505,Central Services,SupS Facilities,Corporate Services Buildings,E02240,Premises Related Expenditure  ,RepairsAlterations&MtceOfBldgs,BA01,DDM - General Building                  ,798,24/03/2015,REV,SALTASH ENTERPRISES LTD       
506,Central Services,SupS Facilities,Corporate Services Buildings,E02240,Premises Related Expenditure  ,RepairsAlterations&MtceOfBldgs,BA01,DDM - General Building                  ,885.73,13/02/2015,REV,SALTASH ENTERPRISES LTD       
507,Central Services,SupS Facilities,Corporate Services Buildings,E02240,Premises Related Expenditure  ,RepairsAlterations&MtceOfBldgs,BA01,DDM - General Building                  ,"7,324.90",17/03/2015,REV,MARK GROUP                    
508,Central Services,SupS Facilities,Corporate Services Buildings,E02240,Premises Related Expenditure  ,RepairsAlterations&MtceOfBldgs,BA01,DDM - General Building                  ,"7,480.00",21/03/2015,REV,KH FLOORING LTD               
509,Central Services,SupS Facilities,Corporate Services Buildings,E02240,Premises Related Expenditure  ,RepairsAlterations&MtceOfBldgs,BA03,DDM - Mechanical                        ,"1,027.59",19/02/2015,REV,EUROPA NATIONWIDE TECH.SER.LTD
510,Central Services,SupS Facilities,Corporate Services Buildings,E02240,Premises Related Expenditure  ,RepairsAlterations&MtceOfBldgs,BA03,DDM - Mechanical                        ,"3,875.62",24/02/2015,REV,EUROPA NATIONWIDE TECH.SER.LTD
511,Central Services,SupS Facilities,Corporate Services Buildings,E02240,Premises Related Expenditure  ,RepairsAlterations&MtceOfBldgs,BA03,DDM - Mechanical                        ,504,19/02/2015,REV,TREND CONTROL SYSTEMS         
512,Central Services,SupS Facilities,Corporate Services Buildings,E02240,Premises Related Expenditure  ,RepairsAlterations&MtceOfBldgs,BA03,DDM - Mechanical                        ,629.56,19/02/2015,REV,EUROPA NATIONWIDE TECH.SER.LTD
513,Central Services,SupS Facilities,Corporate Services Buildings,E02240,Premises Related Expenditure  ,RepairsAlterations&MtceOfBldgs,BA03,DDM - Mechanical                        ,"3,875.62",16/01/2015,REV,EUROPA NATIONWIDE TECH.SER.LTD
514,Central Services,SupS Facilities,Corporate Services Buildings,E02240,Premises Related Expenditure  ,RepairsAlterations&MtceOfBldgs,BA03,DDM - Mechanical                        ,500,19/02/2015,REV,EUROPA NATIONWIDE TECH.SER.LTD
515,Central Services,SupS Facilities,Corporate Services Buildings,E02240,Premises Related Expenditure  ,RepairsAlterations&MtceOfBldgs,BA05,DDM - Electrical                        ,540,27/02/2015,REV,VTECH SOLUTIONS UK LTD        
516,Central Services,SupS Facilities,Corporate Services Buildings,E02240,Premises Related Expenditure  ,RepairsAlterations&MtceOfBldgs,BA05,DDM - Electrical                        ,531.95,19/02/2015,REV,EUROPA NATIONWIDE TECH.SER.LTD
517,Central Services,SupS Facilities,Corporate Services Buildings,E02240,Premises Related Expenditure  ,RepairsAlterations&MtceOfBldgs,BA05,DDM - Electrical                        ,"1,051.10",19/02/2015,REV,EUROPA NATIONWIDE TECH.SER.LTD
518,Central Services,SupS Facilities,Corporate Services Buildings,E02240,Premises Related Expenditure  ,RepairsAlterations&MtceOfBldgs,BA29,Build Maint Mgt Fees                    ,"2,518.61",24/02/2015,REV,EUROPA NATIONWIDE TECH.SER.LTD
519,Central Services,SupS Facilities,Corporate Services Buildings,E02240,Premises Related Expenditure  ,RepairsAlterations&MtceOfBldgs,BA29,Build Maint Mgt Fees                    ,"4,950.00",05/03/2015,REV,LONDON BOROUGH HARINGEY       
520,Central Services,SupS Facilities,Corporate Services Buildings,E02240,Premises Related Expenditure  ,Energy Costs                  ,BB02,Electricity                             ,519.76,02/03/2015,REV,SCOTTISHPOWER                 
521,Central Services,SupS Facilities,Corporate Services Buildings,E02240,Premises Related Expenditure  ,Energy Costs                  ,BB03,Gas (incl. Butane)                      ,535.56,24/03/2015,REV,GAZPROM MARKETING&TRADING LTD 
522,Central Services,SupS Facilities,Corporate Services Buildings,E02240,Premises Related Expenditure  ,Energy Costs                  ,BB03,Gas (incl. Butane)                      ,567.79,03/03/2015,REV,GAZPROM MARKETING&TRADING LTD 
523,Central Services,SupS Facilities,Corporate Services Buildings,E02240,Premises Related Expenditure  ,Energy Costs                  ,BB03,Gas (incl. Butane)                      ,"5,512.22",03/03/2015,REV,GAZPROM MARKETING&TRADING LTD 
524,Central Services,SupS Facilities,Corporate Services Buildings,E02240,Premises Related Expenditure  ,Water Services                ,BE01,Use of Water (Metered)                  ,661.29,27/02/2015,REV,SUTTON AND EAST SURREY WATER  
525,Central Services,SupS Facilities,Corporate Services Buildings,E02240,Premises Related Expenditure  ,Water Services                ,BE01,Use of Water (Metered)                  ,660.17,27/02/2015,REV,SUTTON AND EAST SURREY WATER  
526,Childrens & Education Services,Strategic Management,PDC,E02254,Premises Related Expenditure  ,Energy Costs                  ,BB02,Electricity                             ,716.05,27/02/2015,REV,SCOTTISHPOWER                 
527,Childrens & Education Services,Strategic Management,PDC,E02254,Premises Related Expenditure  ,Energy Costs                  ,BB03,Gas (incl. Butane)                      ,"1,240.40",03/03/2015,REV,GAZPROM MARKETING&TRADING LTD 
528,Childrens & Education Services,Strategic Management,PDC,E02254,Supplies & Services           ,Equip Furniture/Materials     ,DA09,Equip-Purchases                         ,"3,659.00",09/03/2015,REV,PJ HARVEY & CO LTD            
529,Childrens & Education Services,Strategic Management,PDC,E02254,Supplies & Services           ,Comms and Computing           ,DG50,Other IT Expenditure                    ,"5,598.00",04/02/2015,REV,MM-ICT LIMITED                
530,Childrens & Education Services,Strategic Management,CSF Buildings,E02256,Premises Related Expenditure  ,RepairsAlterations&MtceOfBldgs,BA01,DDM - General Building                  ,500,24/02/2015,REV,SALTASH ENTERPRISES LTD       
531,Childrens & Education Services,Strategic Management,CSF Buildings,E02256,Premises Related Expenditure  ,RepairsAlterations&MtceOfBldgs,BA01,DDM - General Building                  ,"1,352.00",16/03/2015,REV,SALTASH ENTERPRISES LTD       
532,Childrens & Education Services,Strategic Management,CSF Buildings,E02256,Premises Related Expenditure  ,RepairsAlterations&MtceOfBldgs,BA01,DDM - General Building                  ,"2,262.50",26/03/2015,REV,STP SOLUTIONS                 
533,Childrens & Education Services,Strategic Management,CSF Buildings,E02256,Premises Related Expenditure  ,RepairsAlterations&MtceOfBldgs,BA01,DDM - General Building                  ,973.92,22/12/2014,REV,FIRST CHOICE FACILITIES PLC   
534,Childrens & Education Services,Strategic Management,CSF Buildings,E02256,Premises Related Expenditure  ,RepairsAlterations&MtceOfBldgs,BA05,DDM - Electrical                        ,665.43,19/02/2015,REV,EUROPA NATIONWIDE TECH.SER.LTD
535,Adult Social Care,OP 65 & Over Day Care,Pollards Hill Day Centre,E02270,Premises Related Expenditure  ,RepairsAlterations&MtceOfBldgs,BA06,Repairs & Maintenance General           ,940,27/03/2015,REV,INDEPTH HYGIENE SERVICES LTD  
536,Adult Social Care,OP 65 & Over Day Care,Pollards Hill Day Centre,E02270,Premises Related Expenditure  ,Cleaning and Domestic Supplies,BH01,Cleaning Materials                      ,703.68,23/02/2015,REV,NERCON LTD                    
537,Adult Social Care,OP 65 & Over Day Care,Pollards Hill Day Centre,E02270,Premises Related Expenditure  ,Cleaning and Domestic Supplies,BH03,Cleaning Services                       ,"1,421.80",19/03/2015,REV,BIRKIN CLEANING SERVICES LTD  
538,Adult Social Care,OP 65 & Over Day Care,Pollards Hill Day Centre,E02270,Premises Related Expenditure  ,Cleaning and Domestic Supplies,BH03,Cleaning Services                       ,"1,540.02",19/03/2015,REV,BIRKIN CLEANING SERVICES LTD  
539,Adult Social Care,OP 65 & Over Day Care,Pollards Hill Day Centre,E02270,Premises Related Expenditure  ,Cleaning and Domestic Supplies,BH03,Cleaning Services                       ,"1,673.61",19/03/2015,REV,BIRKIN CLEANING SERVICES LTD  
540,Adult Social Care,OP 65 & Over Day Care,Pollards Hill Day Centre,E02270,Premises Related Expenditure  ,Cleaning and Domestic Supplies,BH03,Cleaning Services                       ,816.35,01/03/2015,REV,BIRKIN CLEANING SERVICES LTD  
541,Adult Social Care,OP 65 & Over Day Care,Pollards Hill Day Centre,E02270,Premises Related Expenditure  ,Cleaning and Domestic Supplies,BH03,Cleaning Services                       ,"1,239.08",01/03/2015,REV,BIRKIN CLEANING SERVICES LTD  
542,Adult Social Care,OP 65 & Over Day Care,Pollards Hill Day Centre,E02270,Premises Related Expenditure  ,Cleaning and Domestic Supplies,BH03,Cleaning Services                       ,"1,421.80",01/03/2015,REV,BIRKIN CLEANING SERVICES LTD  
543,Adult Social Care,OP 65 & Over Day Care,Pollards Hill Day Centre,E02270,Premises Related Expenditure  ,Cleaning and Domestic Supplies,BH03,Cleaning Services                       ,"1,421.80",01/02/2015,REV,BIRKIN CLEANING SERVICES LTD  
544,Adult Social Care,OP 65 & Over Day Care,Pollards Hill Day Centre,E02270,Premises Related Expenditure  ,Cleaning and Domestic Supplies,BH03,Cleaning Services                       ,"1,540.02",01/02/2015,REV,BIRKIN CLEANING SERVICES LTD  
545,Adult Social Care,OP 65 & Over Day Care,Pollards Hill Day Centre,E02270,Premises Related Expenditure  ,Cleaning and Domestic Supplies,BH03,Cleaning Services                       ,"1,673.61",01/02/2015,REV,BIRKIN CLEANING SERVICES LTD  
546,Adult Social Care,OP 65 & Over Day Care,Pollards Hill Day Centre,E02270,Premises Related Expenditure  ,Cleaning and Domestic Supplies,BH03,Cleaning Services                       ,"6,596.17",01/02/2015,REV,BIRKIN CLEANING SERVICES LTD  
547,Adult Social Care,OP 65 & Over Day Care,Pollards Hill Day Centre,E02270,Premises Related Expenditure  ,Cleaning and Domestic Supplies,BH03,Cleaning Services                       ,"3,093.61",01/02/2015,REV,BIRKIN CLEANING SERVICES LTD  
548,Adult Social Care,OP 65 & Over Day Care,Pollards Hill Day Centre,E02270,Premises Related Expenditure  ,Cleaning and Domestic Supplies,BH03,Cleaning Services                       ,"1,222.20",19/03/2015,REV,BIRKIN CLEANING SERVICES LTD  
549,Adult Social Care,OP 65 & Over Day Care,Pollards Hill Day Centre,E02270,Premises Related Expenditure  ,Cleaning and Domestic Supplies,BH03,Cleaning Services                       ,835.04,01/02/2015,REV,BIRKIN CLEANING SERVICES LTD  
550,Adult Social Care,OP 65 & Over Day Care,Pollards Hill Day Centre,E02270,Premises Related Expenditure  ,Cleaning and Domestic Supplies,BH03,Cleaning Services                       ,835.04,19/03/2015,REV,BIRKIN CLEANING SERVICES LTD  
551,Adult Social Care,OP 65 & Over Day Care,Pollards Hill Day Centre,E02270,Premises Related Expenditure  ,Cleaning and Domestic Supplies,BH03,Cleaning Services                       ,"1,492.52",01/02/2015,REV,BIRKIN CLEANING SERVICES LTD  
552,Adult Social Care,OP 65 & Over Day Care,Pollards Hill Day Centre,E02270,Premises Related Expenditure  ,Cleaning and Domestic Supplies,BH03,Cleaning Services                       ,"6,596.17",01/03/2015,REV,BIRKIN CLEANING SERVICES LTD  
553,Adult Social Care,OP 65 & Over Day Care,Pollards Hill Day Centre,E02270,Premises Related Expenditure  ,Cleaning and Domestic Supplies,BH03,Cleaning Services                       ,"3,093.61",01/03/2015,REV,BIRKIN CLEANING SERVICES LTD  
554,Adult Social Care,OP 65 & Over Day Care,Pollards Hill Day Centre,E02270,Premises Related Expenditure  ,Cleaning and Domestic Supplies,BH03,Cleaning Services                       ,"3,093.61",19/03/2015,REV,BIRKIN CLEANING SERVICES LTD  
555,Adult Social Care,OP 65 & Over Day Care,Pollards Hill Day Centre,E02270,Premises Related Expenditure  ,Cleaning and Domestic Supplies,BH03,Cleaning Services                       ,816.35,19/03/2015,REV,BIRKIN CLEANING SERVICES LTD  
556,Adult Social Care,OP 65 & Over Day Care,Pollards Hill Day Centre,E02270,Premises Related Expenditure  ,Cleaning and Domestic Supplies,BH03,Cleaning Services                       ,"1,239.08",19/03/2015,REV,BIRKIN CLEANING SERVICES LTD  
557,Adult Social Care,OP 65 & Over Day Care,Pollards Hill Day Centre,E02270,Premises Related Expenditure  ,Cleaning and Domestic Supplies,BH03,Cleaning Services                       ,"6,596.17",19/03/2015,REV,BIRKIN CLEANING SERVICES LTD  
558,Adult Social Care,OP 65 & Over Day Care,Pollards Hill Day Centre,E02270,Premises Related Expenditure  ,Cleaning and Domestic Supplies,BH03,Cleaning Services                       ,657.48,19/03/2015,REV,BIRKIN CLEANING SERVICES LTD  
559,Adult Social Care,OP 65 & Over Day Care,Pollards Hill Day Centre,E02270,Premises Related Expenditure  ,Cleaning and Domestic Supplies,BH03,Cleaning Services                       ,835.04,19/03/2015,REV,BIRKIN CLEANING SERVICES LTD  
560,Adult Social Care,OP 65 & Over Day Care,Pollards Hill Day Centre,E02270,Premises Related Expenditure  ,Cleaning and Domestic Supplies,BH03,Cleaning Services                       ,"1,540.02",01/03/2015,REV,BIRKIN CLEANING SERVICES LTD  
561,Adult Social Care,OP 65 & Over Day Care,Pollards Hill Day Centre,E02270,Premises Related Expenditure  ,Cleaning and Domestic Supplies,BH03,Cleaning Services                       ,"1,673.61",01/03/2015,REV,BIRKIN CLEANING SERVICES LTD  
562,Adult Social Care,OP 65 & Over Day Care,Pollards Hill Day Centre,E02270,Premises Related Expenditure  ,Cleaning and Domestic Supplies,BH03,Cleaning Services                       ,"1,222.20",01/02/2015,REV,BIRKIN CLEANING SERVICES LTD  
563,Adult Social Care,OP 65 & Over Day Care,Pollards Hill Day Centre,E02270,Premises Related Expenditure  ,Cleaning and Domestic Supplies,BH03,Cleaning Services                       ,"1,239.08",01/02/2015,REV,BIRKIN CLEANING SERVICES LTD  
564,Adult Social Care,OP 65 & Over Day Care,Pollards Hill Day Centre,E02270,Premises Related Expenditure  ,Cleaning and Domestic Supplies,BH03,Cleaning Services                       ,835.04,01/03/2015,REV,BIRKIN CLEANING SERVICES LTD  
565,Adult Social Care,OP 65 & Over Day Care,Pollards Hill Day Centre,E02270,Premises Related Expenditure  ,Cleaning and Domestic Supplies,BH03,Cleaning Services                       ,"1,492.52",01/03/2015,REV,BIRKIN CLEANING SERVICES LTD  
566,Adult Social Care,OP 65 & Over Day Care,Pollards Hill Day Centre,E02270,Premises Related Expenditure  ,Cleaning and Domestic Supplies,BH03,Cleaning Services                       ,"1,222.20",01/03/2015,REV,BIRKIN CLEANING SERVICES LTD  
567,Cultural Env Reg&Plan Services,Parks & Open Spaces,E & R Buildings,E02344,Premises Related Expenditure  ,RepairsAlterations&MtceOfBldgs,BA01,DDM - General Building                  ,722.06,20/02/2015,REV,SALTASH ENTERPRISES LTD       
568,Cultural Env Reg&Plan Services,Parks & Open Spaces,E & R Buildings,E02344,Premises Related Expenditure  ,RepairsAlterations&MtceOfBldgs,BA03,DDM - Mechanical                        ,525.06,24/02/2015,REV,EUROPA NATIONWIDE TECH.SER.LTD
569,Cultural Env Reg&Plan Services,Parks & Open Spaces,E & R Buildings,E02344,Premises Related Expenditure  ,RepairsAlterations&MtceOfBldgs,BA03,DDM - Mechanical                        ,525.06,16/01/2015,REV,EUROPA NATIONWIDE TECH.SER.LTD
570,Cultural Env Reg&Plan Services,Parks & Open Spaces,E & R Buildings,E02344,Premises Related Expenditure  ,RepairsAlterations&MtceOfBldgs,BA03,DDM - Mechanical                        ,502.88,24/02/2015,REV,EUROPA NATIONWIDE TECH.SER.LTD
571,Cultural Env Reg&Plan Services,Parks & Open Spaces,E & R Buildings,E02344,Premises Related Expenditure  ,RepairsAlterations&MtceOfBldgs,BA03,DDM - Mechanical                        ,502.88,16/01/2015,REV,EUROPA NATIONWIDE TECH.SER.LTD
572,Adult Social Care,PS u65 Day Care,C & H Buildings,E02345,Premises Related Expenditure  ,RepairsAlterations&MtceOfBldgs,BA01,DDM - General Building                  ,"1,176.72",09/03/2015,REV,SALTASH ENTERPRISES LTD       
573,Adult Social Care,PS u65 Day Care,C & H Buildings,E02345,Premises Related Expenditure  ,RepairsAlterations&MtceOfBldgs,BA02,Energy Conservation                     ,898.5,25/03/2015,REV,ENERGY SAVING LIGHTING (UK) LT
574,Cultural Env Reg&Plan Services,Parks & Open Spaces,Leisure Buildings,E02350,Premises Related Expenditure  ,RepairsAlterations&MtceOfBldgs,BA01,DDM - General Building                  ,500,17/03/2015,REV,SALTASH ENTERPRISES LTD       
575,Cultural Env Reg&Plan Services,Parks & Open Spaces,Leisure Buildings,E02350,Premises Related Expenditure  ,RepairsAlterations&MtceOfBldgs,BA01,DDM - General Building                  ,"2,603.80",17/03/2015,REV,SALTASH ENTERPRISES LTD       
576,Cultural Env Reg&Plan Services,Parks & Open Spaces,Leisure Buildings,E02350,Premises Related Expenditure  ,RepairsAlterations&MtceOfBldgs,BA01,DDM - General Building                  ,640,20/01/2015,REV,TAYLOR BUILDING COMPANY LTD   
577,Cultural Env Reg&Plan Services,Parks & Open Spaces,Leisure Buildings,E02350,Premises Related Expenditure  ,RepairsAlterations&MtceOfBldgs,BA03,DDM - Mechanical                        ,546.02,16/01/2015,REV,EUROPA NATIONWIDE TECH.SER.LTD
578,Cultural Env Reg&Plan Services,Parks & Open Spaces,Leisure Buildings,E02350,Premises Related Expenditure  ,RepairsAlterations&MtceOfBldgs,BA03,DDM - Mechanical                        ,546.02,24/02/2015,REV,EUROPA NATIONWIDE TECH.SER.LTD
579,Cultural Env Reg&Plan Services,Parks & Open Spaces,Leisure Buildings,E02350,Premises Related Expenditure  ,RepairsAlterations&MtceOfBldgs,BA05,DDM - Electrical                        ,523.53,17/02/2015,REV,EDMUNDSON ELECTRICAL LTD      
580,Cultural Env Reg&Plan Services,Parks & Open Spaces,Leisure Buildings,E02350,Premises Related Expenditure  ,RepairsAlterations&MtceOfBldgs,BA90,Water Hygiene                           ,518.87,24/02/2015,REV,SALTASH ENTERPRISES LTD       
581,Central Services,SupS DOF,AD RESOURCES,E04061,Supplies & Services           ,Services                      ,DF03,CONSULTANTS                             ,"27,595.53",27/03/2015,REV,PRICEWATERHOUSE COOPERS       
582,Central Services,SupS DOF,AD RESOURCES,E04061,Supplies & Services           ,Services                      ,DF03,CONSULTANTS                             ,"9,200.00",02/03/2015,REV,PUBLIC SECTOR CONSULTANTS     
583,Central Services,SupS DOF,AD RESOURCES,E04061,Supplies & Services           ,Grants and Subscriptions      ,DJ04,SUBSCRIPTIONS                           ,"2,100.00",06/03/2015,REV,ICHABODS INDUSTRIES LIMITED   
584,Central Services,SupS  Risk and Insurance,Insurance Premiums & Funding,E05161,Supplies & Services           ,Services                      ,DF74,Insurance Premiums                      ,768.75,28/02/2015,REV,ZURICH INSURANCE COMPANY      
585,Central Services,SupS Corporate Finance,Corporate Accountancy,E06209,Supplies & Services           ,Equip Furniture/Materials     ,DA01,Equipment - R & M                       ,576,17/02/2015,REV,PREMIER OFFICE & PRINT SUPP LT
586,Central Services,SupS Corporate Finance,Corporate Accountancy,E06209,Supplies & Services           ,Services                      ,DF58,Audit Fee                               ,"8,000.00",06/02/2015,REV,ERNST & YOUNG LLP             
587,Central Services,SupS Corporate Finance,Corporate Accountancy,E06209,Supplies & Services           ,Services                      ,DF58,Audit Fee                               ,"10,000.00",25/02/2015,REV,ERNST & YOUNG LLP             
588,Central Services,SupS Strategic Finance,Business Planning,E06221,Employees                     ,Direct Employee Expenses      ,AA17,Agency Staff & Casual Paymts            ,"1,750.00",18/03/2015,REV,HAYS RECRUITING EXPERTS       
589,Central Services,SupS Strategic Finance,Business Planning,E06221,Employees                     ,Direct Employee Expenses      ,AA17,Agency Staff & Casual Paymts            ,"1,750.00",11/03/2015,REV,HAYS RECRUITING EXPERTS       
590,Central Services,SupS Strategic Finance,Business Planning,E06221,Employees                     ,Direct Employee Expenses      ,AA17,Agency Staff & Casual Paymts            ,"1,750.00",25/03/2015,REV,HAYS RECRUITING EXPERTS       
591,Central Services,SupS Strategic Finance,Treasury & Insurance,E06222,Employees                     ,Direct Employee Expenses      ,AA17,Agency Staff & Casual Paymts            ,"4,700.00",08/03/2015,REV,REDACTED
592,Central Services,SupS Strategic Finance,Treasury & Insurance,E06222,Employees                     ,Direct Employee Expenses      ,AA17,Agency Staff & Casual Paymts            ,"7,050.00",24/03/2015,REV,REDACTED
593,Central Services,GENERATED ACCOUNT,Parking Cash Collect'n Contrct,E06225,Third Party Payments          ,Private Contractors           ,EH02,Miscellaneous Hired Services            ,950,30/11/2014,REV,BANKING AUTOMATION LTD        
594,Central Services,GENERATED ACCOUNT,Parking Cash Collect'n Contrct,E06225,Third Party Payments          ,Private Contractors           ,EH02,Miscellaneous Hired Services            ,599.85,28/02/2015,REV,BANKING AUTOMATION LTD        
595,Central Services,GENERATED ACCOUNT,Establishments' Cash Collect'n,E06226,Third Party Payments          ,Private Contractors           ,EH02,Miscellaneous Hired Services            ,"8,494.86",28/02/2015,REV,BANKING AUTOMATION LTD        
596,Central Services,SupS DOF,Service Accountancy,E06227,Employees                     ,Direct Employee Expenses      ,AA17,Agency Staff & Casual Paymts            ,"6,440.00",18/03/2015,REV,REDACTED
597,Central Services,SupS DOF,Service Accountancy,E06227,Employees                     ,Direct Employee Expenses      ,AA17,Agency Staff & Casual Paymts            ,"6,900.00",23/02/2015,REV,REDACTED
598,Central Services,SupS DOF,Service Accountancy,E06227,Transfer Payments             ,Housing Benefits              ,FA50,Burial and Cremation                    ,"1,410.50",12/03/2015,REV,F.W. PAINE                    
599,Central Services,SupS Legal,AD CORPORATE GOVERNANCE,E10279,Supplies & Services           ,Catering                      ,DB50,Refreshments                            ,512,23/03/2015,REV,GOSTO FINO PORTUGAL PATISSERIE
600,Central Services,SupS Legal,AD CORPORATE GOVERNANCE,E10279,Supplies & Services           ,Grants and Subscriptions      ,DJ04,Subscriptions                           ,"4,145.00",12/03/2015,REV,CIPFA                         
601,Central Services,SupS Legal,AD CORPORATE GOVERNANCE,E10279,Supplies & Services           ,Grants and Subscriptions      ,DJ04,Subscriptions                           ,"1,201.30",12/03/2015,REV,PUBLIC CONCERN AT WORK        
602,Central Services,SupS Legal,Legal Services,E10282,Employees                     ,Direct Employee Expenses      ,AA17,Agency Staff & Casual Paymts            ,"2,687.00",31/01/2015,REV,REDACTED
603,Central Services,SupS Legal,Legal Services,E10282,Employees                     ,Direct Employee Expenses      ,AA17,Agency Staff & Casual Paymts            ,946,28/02/2015,REV,REDACTED
604,Central Services,Registration of electors,Electoral Registration,E10285,Employees                     ,Direct Employee Expenses      ,AA17,Agency Staff & Casual Paymts            ,"8,866.00",07/07/2014,REV,REDACTED
605,Central Services,Registration of electors,Electoral Registration,E10285,Supplies & Services           ,Prntng Stnry Gen Off Exp      ,DE03,Stationery                              ,690,09/03/2015,REV,VIGLEN LIMITED                
606,Central Services,Registration of electors,Electoral Registration,E10285,Supplies & Services           ,Prntng Stnry Gen Off Exp      ,DE03,Stationery                              ,787.1,31/01/2015,REV,FINANCIAL DATA MANAGEMENT PLC 
607,Central Services,Registration of electors,Electoral Registration,E10285,Supplies & Services           ,Comms and Computing           ,DG04,Postage - General                       ,533.75,31/01/2015,REV,FINANCIAL DATA MANAGEMENT PLC 
608,Central Services,Registration of electors,Electoral Registration,E10285,Supplies & Services           ,Comms and Computing           ,DG04,Postage - General                       ,879.12,28/02/2015,REV,FINANCIAL DATA MANAGEMENT PLC 
609,Central Services,SupS Legal,Shared Legal Service,E10288,Employees                     ,Indirect Employee Expenses    ,AB02,Recruitment Adverts                     ,"1,622.50",10/03/2015,REV,PENNA COMMUNICATIONS (NO 2 A/C
610,Central Services,SupS Legal,Shared Legal Service,E10288,Supplies & Services           ,Prntng Stnry Gen Off Exp      ,DE30,General Office Expense                  ,510.25,28/02/2015,REV,WINCANTON RECORDS MANAGEMENT  
611,Central Services,SupS Legal,Shared Legal Service,E10288,Supplies & Services           ,Services                      ,DF11,Counsel's Fees                          ,"1,089.00",30/09/2014,REV,REDACTED
612,Central Services,SupS Legal,Shared Legal Service,E10288,Supplies & Services           ,Comms and Computing           ,DG02,Software Licences                       ,"5,500.00",09/03/2015,REV,LEXIS NEXIS                   
613,Central Services,SupS Legal,Shared Legal Service,E10288,Supplies & Services           ,Comms and Computing           ,DG08,Computer Hardware                       ,933.42,06/02/2015,REV,SPECIALIST COMPUTER CENT. PLC 
614,Central Services,SupS Legal,Shared Legal Service,E10288,Supplies & Services           ,Comms and Computing           ,DG08,Computer Hardware                       ,933.42,20/02/2015,REV,SPECIALIST COMPUTER CENT. PLC 
615,Central Services,SupS Legal,Richmond Legal,E10289,Supplies & Services           ,Services                      ,DF11,Counsel's Fees                          ,"1,050.00",30/03/2015,REV,REDACTED
616,Central Services,SupS Legal,Richmond Legal,E10289,Supplies & Services           ,Services                      ,DF11,Counsel's Fees                          ,"1,750.00",30/03/2015,REV,REDACTED
617,Central Services,SupS Legal,Richmond Legal,E10289,Supplies & Services           ,Services                      ,DF11,Counsel's Fees                          ,700,30/03/2015,REV,REDACTED
618,Central Services,SupS Legal,Richmond Legal,E10289,Supplies & Services           ,Services                      ,DF11,Counsel's Fees                          ,525,30/03/2015,REV,REDACTED
619,Central Services,SupS Legal,Richmond Legal,E10289,Supplies & Services           ,Services                      ,DF11,Counsel's Fees                          ,"3,350.00",13/02/2015,REV,REDACTED
620,Central Services,SupS Legal,Richmond Legal,E10289,Supplies & Services           ,Services                      ,DF11,Counsel's Fees                          ,"1,000.00",31/12/2014,REV,REDACTED
621,Central Services,SupS Legal,Richmond Legal,E10289,Supplies & Services           ,Services                      ,DF11,Counsel's Fees                          ,"3,200.00",26/02/2015,REV,REDACTED
622,Central Services,SupS Legal,Richmond Legal,E10289,Supplies & Services           ,Services                      ,DF11,Counsel's Fees                          ,"6,537.50",13/03/2015,REV,REDACTED
623,Central Services,SupS Legal,Richmond Legal,E10289,Supplies & Services           ,Services                      ,DF11,Counsel's Fees                          ,"1,225.00",30/03/2015,REV,REDACTED
624,Central Services,SupS Legal,Richmond Legal,E10289,Supplies & Services           ,Services                      ,DF11,Counsel's Fees                          ,"1,050.00",30/03/2015,REV,REDACTED
625,Central Services,SupS Legal,Richmond Legal,E10289,Supplies & Services           ,Services                      ,DF11,Counsel's Fees                          ,"1,725.00",17/03/2015,REV,REDACTED
626,Central Services,SupS Legal,Richmond Legal,E10289,Supplies & Services           ,Services                      ,DF95,Services from Provider                  ,"6,007.00",28/02/2015,REV,SHARPE PRITCHARD SOLICITORS   
627,Central Services,SupS Legal,Richmond Legal,E10289,Supplies & Services           ,Services                      ,DF95,Services from Provider                  ,"4,515.80",30/11/2014,REV,SHARPE PRITCHARD SOLICITORS   
628,Central Services,SupS Legal,Richmond Legal,E10289,Supplies & Services           ,Services                      ,DF95,Services from Provider                  ,"11,993.00",31/01/2015,REV,SHARPE PRITCHARD SOLICITORS   
629,Central Services,SupS Legal,Richmond Legal,E10289,Supplies & Services           ,Services                      ,DF95,Services from Provider                  ,"9,258.00",28/02/2015,REV,SHARPE PRITCHARD SOLICITORS   
630,Central Services,SupS Legal,Richmond Legal,E10289,Supplies & Services           ,Services                      ,DF95,Services from Provider                  ,"6,000.00",29/11/2013,REV,REDACTED
631,Central Services,SupS Legal,Richmond Legal,E10289,Supplies & Services           ,Services                      ,DF95,Services from Provider                  ,"4,079.98",31/01/2015,REV,SHARPE PRITCHARD SOLICITORS   
632,Central Services,SupS Legal,Richmond Legal,E10289,Supplies & Services           ,Services                      ,DF95,Services from Provider                  ,"2,131.00",31/01/2015,REV,SHARPE PRITCHARD SOLICITORS   
633,Central Services,SupS Legal,Richmond Legal,E10289,Supplies & Services           ,Services                      ,DF95,Services from Provider                  ,"7,688.22",31/10/2014,REV,SHARPE PRITCHARD SOLICITORS   
634,Central Services,SupS Legal,Richmond Legal,E10289,Supplies & Services           ,Services                      ,DF95,Services from Provider                  ,"2,594.00",31/10/2014,REV,SHARPE PRITCHARD SOLICITORS   
635,Central Services,SupS Legal,Richmond Legal,E10289,Supplies & Services           ,Services                      ,DF95,Services from Provider                  ,"3,216.00",30/11/2014,REV,SHARPE PRITCHARD SOLICITORS   
636,Central Services,SupS Legal,K&S Shared Legal                        ,E10291,Employees                     ,Indirect Employee Expenses    ,AB02,Recruitment Adverts                     ,"1,622.50",10/03/2015,REV,PENNA COMMUNICATIONS (NO 2 A/C
637,Central Services,SupS Legal,K&S Shared Legal                        ,E10291,Supplies & Services           ,Services                      ,DF95,Services from Provider                  ,"2,168.00",23/03/2015,REV,REDACTED
638,Central Services,SupS Legal,K&S Shared Legal                        ,E10291,Supplies & Services           ,Comms and Computing           ,DG08,Computer Hardware                       ,933.42,20/02/2015,REV,SPECIALIST COMPUTER CENT. PLC 
639,Central Services,SupS Legal,K&S Shared Legal                        ,E10291,Supplies & Services           ,Comms and Computing           ,DG08,Computer Hardware                       ,933.42,06/02/2015,REV,SPECIALIST COMPUTER CENT. PLC 
640,Central Services,SupS Legal,K&S Shared Legal                        ,E10291,Supplies & Services           ,Expenses                      ,DH16,Compensation Payments                   ,"13,201.07",23/03/2015,REV,LONDON BOROUGH OF SUTTON      
641,Central Services,SupS Legal,Kingston Legal                          ,E10292,Supplies & Services           ,Services                      ,DF11,Counsel's Fees                          ,"1,000.00",22/01/2015,REV,REDACTED
642,Central Services,SupS Legal,Sutton Legal                            ,E10293,Supplies & Services           ,Services                      ,DF11,Counsel's Fees                          ,840,19/02/2015,REV,REDACTED
643,Central Services,SupS Legal,Sutton Legal                            ,E10293,Supplies & Services           ,Services                      ,DF11,Counsel's Fees                          ,"1,116.25",24/02/2015,REV,REDACTED
644,Central Services,SupS Legal,Sutton Legal                            ,E10293,Supplies & Services           ,Services                      ,DF11,Counsel's Fees                          ,"1,250.00",07/11/2014,REV,REDACTED
645,Central Services,SupS Legal,Sutton Legal                            ,E10293,Supplies & Services           ,Services                      ,DF11,Counsel's Fees                          ,"1,155.00",19/02/2015,REV,REDACTED
646,Central Services,SupS Legal,Sutton Legal                            ,E10293,Supplies & Services           ,Services                      ,DF11,Counsel's Fees                          ,"1,075.00",20/11/2014,REV,REDACTED
647,Central Services,SupS Legal,Sutton Legal                            ,E10293,Supplies & Services           ,Services                      ,DF11,Counsel's Fees                          ,"3,500.00",21/11/2014,REV,REDACTED
648,Central Services,SupS Legal,Sutton Legal                            ,E10293,Supplies & Services           ,Services                      ,DF11,Counsel's Fees                          ,"1,825.00",23/01/2015,REV,REDACTED
649,Central Services,SupS Legal,Sutton Legal                            ,E10293,Supplies & Services           ,Services                      ,DF11,Counsel's Fees                          ,610,27/02/2015,REV,REDACTED
650,Central Services,SupS Legal,Sutton Legal                            ,E10293,Supplies & Services           ,Services                      ,DF11,Counsel's Fees                          ,902.5,04/02/2015,REV,REDACTED
651,Central Services,SupS Legal,Sutton Legal                            ,E10293,Supplies & Services           ,Services                      ,DF11,Counsel's Fees                          ,520,22/01/2015,REV,REDACTED
652,Central Services,SupS Legal,Sutton Legal                            ,E10293,Supplies & Services           ,Services                      ,DF11,Counsel's Fees                          ,840,24/03/2015,REV,REDACTED
653,Central Services,SupS Legal,Sutton Legal                            ,E10293,Supplies & Services           ,Services                      ,DF11,Counsel's Fees                          ,750,06/03/2015,REV,REDACTED
654,Central Services,SupS Legal,Sutton Legal                            ,E10293,Supplies & Services           ,Services                      ,DF11,Counsel's Fees                          ,"2,253.75",10/02/2015,REV,REDACTED
655,Central Services,SupS Legal,Sutton Legal                            ,E10293,Supplies & Services           ,Services                      ,DF11,Counsel's Fees                          ,"1,130.00",12/03/2015,REV,REDACTED
656,Central Services,SupS Legal,Sutton Legal                            ,E10293,Supplies & Services           ,Services                      ,DF11,Counsel's Fees                          ,"3,000.00",24/03/2015,REV,REDACTED
657,Central Services,SupS Legal,Sutton Legal                            ,E10293,Supplies & Services           ,Services                      ,DF11,Counsel's Fees                          ,"1,260.00",31/03/2015,REV,REDACTED
658,Central Services,SupS Legal,Sutton Legal                            ,E10293,Supplies & Services           ,Services                      ,DF11,Counsel's Fees                          ,"1,800.00",23/07/2014,REV,REDACTED
659,Central Services,SupS Legal,Sutton Legal                            ,E10293,Supplies & Services           ,Services                      ,DF11,Counsel's Fees                          ,"5,060.00",04/12/2014,REV,REDACTED
660,Central Services,SupS Legal,Sutton Legal                            ,E10293,Supplies & Services           ,Services                      ,DF11,Counsel's Fees                          ,510,09/03/2015,REV,REDACTED
661,Central Services,SupS Legal,Sutton Legal                            ,E10293,Supplies & Services           ,Services                      ,DF11,Counsel's Fees                          ,"2,925.00",05/02/2015,REV,REDACTED
662,Central Services,SupS Legal,Sutton Legal                            ,E10293,Supplies & Services           ,Services                      ,DF11,Counsel's Fees                          ,"2,012.50",01/12/2014,REV,REDACTED
663,Central Services,SupS Legal,Sutton Legal                            ,E10293,Supplies & Services           ,Services                      ,DF11,Counsel's Fees                          ,510,12/03/2015,REV,REDACTED
664,Central Services,SupS Legal,Sutton Legal                            ,E10293,Supplies & Services           ,Services                      ,DF11,Counsel's Fees                          ,522.5,25/02/2015,REV,REDACTED
665,Central Services,SupS Legal,Sutton Legal                            ,E10293,Supplies & Services           ,Services                      ,DF11,Counsel's Fees                          ,570,11/02/2015,REV,REDACTED
666,Central Services,SupS Legal,Sutton Legal                            ,E10293,Supplies & Services           ,Services                      ,DF11,Counsel's Fees                          ,"1,850.00",03/03/2015,REV,REDACTED
667,Central Services,SupS Legal,Sutton Legal                            ,E10293,Supplies & Services           ,Services                      ,DF11,Counsel's Fees                          ,740,17/02/2015,REV,REDACTED
668,Central Services,SupS Legal,Sutton Legal                            ,E10293,Supplies & Services           ,Services                      ,DF11,Counsel's Fees                          ,"5,000.00",12/03/2015,REV,REDACTED
669,Central Services,SupS Legal,Sutton Legal                            ,E10293,Supplies & Services           ,Services                      ,DF11,Counsel's Fees                          ,"1,662.50",12/01/2015,REV,REDACTED
670,Central Services,SupS Legal,Sutton Legal                            ,E10293,Supplies & Services           ,Services                      ,DF11,Counsel's Fees                          ,"1,087.50",24/03/2015,REV,REDACTED
671,Central Services,SupS Legal,Sutton Legal                            ,E10293,Supplies & Services           ,Services                      ,DF11,Counsel's Fees                          ,958.75,18/03/2015,REV,REDACTED
672,Central Services,SupS Legal,Sutton Legal                            ,E10293,Supplies & Services           ,Services                      ,DF11,Counsel's Fees                          ,"1,110.00",30/01/2015,REV,REDACTED
673,Central Services,SupS Legal,Sutton Legal                            ,E10293,Supplies & Services           ,Services                      ,DF11,Counsel's Fees                          ,"3,490.00",17/02/2015,REV,REDACTED
674,Central Services,SupS Legal,Sutton Legal                            ,E10293,Supplies & Services           ,Services                      ,DF11,Counsel's Fees                          ,965,09/03/2015,REV,REDACTED
675,Central Services,SupS Legal,Sutton Legal                            ,E10293,Supplies & Services           ,Services                      ,DF11,Counsel's Fees                          ,"10,762.50",16/03/2015,REV,REDACTED
676,Central Services,SupS Legal,Sutton Legal                            ,E10293,Supplies & Services           ,Services                      ,DF11,Counsel's Fees                          ,"2,875.00",24/03/2015,REV,REDACTED
677,Central Services,SupS Legal,Sutton Legal                            ,E10293,Supplies & Services           ,Services                      ,DF11,Counsel's Fees                          ,575,03/03/2015,REV,REDACTED
678,Central Services,SupS Legal,Sutton Legal                            ,E10293,Supplies & Services           ,Services                      ,DF11,Counsel's Fees                          ,"2,500.00",01/12/2014,REV,REDACTED
679,Central Services,SupS Legal,Sutton Legal                            ,E10293,Supplies & Services           ,Services                      ,DF11,Counsel's Fees                          ,"2,536.67",05/03/2015,REV,REDACTED
680,Central Services,SupS Legal,Sutton Legal                            ,E10293,Supplies & Services           ,Services                      ,DF11,Counsel's Fees                          ,900,06/11/2014,REV,REDACTED
681,Central Services,SupS Legal,Sutton Legal                            ,E10293,Supplies & Services           ,Services                      ,DF11,Counsel's Fees                          ,"1,467.50",24/03/2015,REV,REDACTED
682,Central Services,SupS Legal,Sutton Legal                            ,E10293,Supplies & Services           ,Services                      ,DF11,Counsel's Fees                          ,645,12/02/2015,REV,REDACTED
683,Central Services,SupS Legal,Sutton Legal                            ,E10293,Supplies & Services           ,Services                      ,DF11,Counsel's Fees                          ,650,15/09/2014,REV,REDACTED
684,Central Services,SupS Legal,Sutton Legal                            ,E10293,Supplies & Services           ,Services                      ,DF11,Counsel's Fees                          ,850,12/03/2015,REV,REDACTED
685,Central Services,SupS Legal,Sutton Legal                            ,E10293,Supplies & Services           ,Services                      ,DF11,Counsel's Fees                          ,"1,360.00",17/02/2015,REV,REDACTED
686,Central Services,SupS Legal,Sutton Legal                            ,E10293,Supplies & Services           ,Services                      ,DF11,Counsel's Fees                          ,"1,870.00",19/01/2015,REV,REDACTED
687,Central Services,SupS Legal,Sutton Legal                            ,E10293,Supplies & Services           ,Services                      ,DF11,Counsel's Fees                          ,"1,487.50",16/03/2015,REV,REDACTED
688,Central Services,SupS Legal,Sutton Legal                            ,E10293,Supplies & Services           ,Services                      ,DF11,Counsel's Fees                          ,"1,616.25",10/02/2015,REV,REDACTED
689,Central Services,SupS Legal,Sutton Legal                            ,E10293,Supplies & Services           ,Services                      ,DF11,Counsel's Fees                          ,"1,000.00",02/02/2015,REV,REDACTED
690,Central Services,SupS Legal,Sutton Legal                            ,E10293,Supplies & Services           ,Services                      ,DF11,Counsel's Fees                          ,"9,900.00",04/03/2015,REV,REDACTED
691,Central Services,SupS Legal,Sutton Legal                            ,E10293,Supplies & Services           ,Services                      ,DF14,Doctors and Other Fees                  ,"2,697.90",02/01/2015,REV,CF SOCIAL WORK                
692,Central Services,SupS Legal,Sutton Legal                            ,E10293,Supplies & Services           ,Services                      ,DF14,Doctors and Other Fees                  ,675,19/02/2015,REV,REDACTED
693,Central Services,SupS Legal,Sutton Legal                            ,E10293,Supplies & Services           ,Services                      ,DF14,Doctors and Other Fees                  ,888.4,26/07/2014,REV,REDACTED
694,Central Services,SupS Legal,Sutton Legal                            ,E10293,Supplies & Services           ,Services                      ,DF14,Doctors and Other Fees                  ,918,07/11/2014,REV,REDACTED
695,Central Services,SupS Legal,Sutton Legal                            ,E10293,Supplies & Services           ,Services                      ,DF14,Doctors and Other Fees                  ,612.5,10/03/2015,REV,COMM.DRUG SERV.FOR SOUTHLONDON
696,Central Services,SupS Legal,Sutton Legal                            ,E10293,Supplies & Services           ,Services                      ,DF14,Doctors and Other Fees                  ,"1,653.24",10/02/2015,REV,THE PSYCHOLOGICAL SERVICE     
697,Central Services,SupS Legal,Sutton Legal                            ,E10293,Supplies & Services           ,Services                      ,DF14,Doctors and Other Fees                  ,"1,748.00",07/12/2014,REV,SECECETRA EXPERT SERVICES     
698,Central Services,SupS Legal,Sutton Legal                            ,E10293,Supplies & Services           ,Services                      ,DF14,Doctors and Other Fees                  ,"2,718.70",02/01/2015,REV,CF SOCIAL WORK                
699,Central Services,SupS Legal,Sutton Legal                            ,E10293,Supplies & Services           ,Services                      ,DF14,Doctors and Other Fees                  ,"3,756.10",09/03/2015,REV,DOMESTIC VIOLENCE INTERVENTION
700,Central Services,SupS Legal,Sutton Legal                            ,E10293,Supplies & Services           ,Services                      ,DF14,Doctors and Other Fees                  ,707.8,05/02/2015,REV,CF SOCIAL WORK                
701,Central Services,SupS Legal,Sutton Legal                            ,E10293,Supplies & Services           ,Services                      ,DF14,Doctors and Other Fees                  ,"1,248.20",11/03/2015,REV,SECECETRA EXPERT SERVICES     
702,Central Services,SupS Legal,Sutton Legal                            ,E10293,Supplies & Services           ,Services                      ,DF14,Doctors and Other Fees                  ,"3,202.50",18/02/2015,REV,REDACTED
703,Central Services,SupS Legal,Sutton Legal                            ,E10293,Supplies & Services           ,Services                      ,DF14,Doctors and Other Fees                  ,"1,134.00",20/02/2015,REV,REDACTED
704,Central Services,SupS Legal,Sutton Legal                            ,E10293,Supplies & Services           ,Services                      ,DF95,Services from Provider                  ,"1,014.00",03/02/2015,REV,REDACTED
705,Central Services,SupS Legal,Sutton Legal                            ,E10293,Supplies & Services           ,Services                      ,DF95,Services from Provider                  ,792.09,02/02/2015,REV,STILWELL & HARBY              
706,Central Services,SupS Legal,Achieving for Children (AFC),E10295,Supplies & Services           ,Services                      ,DF11,Counsel's Fees                          ,520,11/03/2015,REV,REDACTED
707,Central Services,SupS Legal,Achieving for Children (AFC),E10295,Supplies & Services           ,Services                      ,DF11,Counsel's Fees                          ,517.5,23/03/2015,REV,REDACTED
708,Central Services,SupS Legal,Achieving for Children (AFC),E10295,Supplies & Services           ,Services                      ,DF11,Counsel's Fees                          ,550,25/02/2015,REV,REDACTED
709,Central Services,SupS Legal,Achieving for Children (AFC),E10295,Supplies & Services           ,Services                      ,DF11,Counsel's Fees                          ,510,11/03/2015,REV,REDACTED
710,Central Services,SupS Legal,Achieving for Children (AFC),E10295,Supplies & Services           ,Services                      ,DF11,Counsel's Fees                          ,500,12/03/2015,REV,REDACTED
711,Central Services,SupS Legal,Achieving for Children (AFC),E10295,Supplies & Services           ,Services                      ,DF11,Counsel's Fees                          ,875,02/03/2015,REV,REDACTED
712,Central Services,SupS Legal,Achieving for Children (AFC),E10295,Supplies & Services           ,Services                      ,DF11,Counsel's Fees                          ,520,05/03/2015,REV,REDACTED
713,Central Services,SupS Legal,Achieving for Children (AFC),E10295,Supplies & Services           ,Services                      ,DF11,Counsel's Fees                          ,735,24/03/2015,REV,REDACTED
714,Central Services,SupS Legal,Achieving for Children (AFC),E10295,Supplies & Services           ,Services                      ,DF11,Counsel's Fees                          ,"1,800.00",11/02/2015,REV,REDACTED
715,Central Services,SupS Legal,Achieving for Children (AFC),E10295,Supplies & Services           ,Services                      ,DF11,Counsel's Fees                          ,"1,250.00",09/03/2015,REV,REDACTED
716,Central Services,SupS Legal,Achieving for Children (AFC),E10295,Supplies & Services           ,Services                      ,DF11,Counsel's Fees                          ,520,17/03/2015,REV,REDACTED
717,Central Services,SupS Legal,Achieving for Children (AFC),E10295,Supplies & Services           ,Services                      ,DF11,Counsel's Fees                          ,"1,030.00",11/02/2015,REV,REDACTED
718,Central Services,SupS Legal,Achieving for Children (AFC),E10295,Supplies & Services           ,Services                      ,DF11,Counsel's Fees                          ,"1,030.00",09/03/2015,REV,REDACTED
719,Central Services,SupS Legal,Achieving for Children (AFC),E10295,Supplies & Services           ,Services                      ,DF11,Counsel's Fees                          ,"5,635.00",26/03/2015,REV,REDACTED
720,Central Services,SupS Legal,Achieving for Children (AFC),E10295,Supplies & Services           ,Services                      ,DF11,Counsel's Fees                          ,"1,210.00",05/02/2015,REV,REDACTED
721,Central Services,SupS Legal,Achieving for Children (AFC),E10295,Supplies & Services           ,Services                      ,DF11,Counsel's Fees                          ,520,19/02/2015,REV,REDACTED
722,Central Services,SupS Legal,Achieving for Children (AFC),E10295,Supplies & Services           ,Services                      ,DF11,Counsel's Fees                          ,810,24/03/2015,REV,REDACTED
723,Central Services,SupS Legal,Achieving for Children (AFC),E10295,Supplies & Services           ,Services                      ,DF11,Counsel's Fees                          ,"1,250.00",04/03/2015,REV,REDACTED
724,Central Services,SupS Legal,Achieving for Children (AFC),E10295,Supplies & Services           ,Services                      ,DF11,Counsel's Fees                          ,540,24/03/2015,REV,REDACTED
725,Central Services,SupS Legal,Achieving for Children (AFC),E10295,Supplies & Services           ,Services                      ,DF11,Counsel's Fees                          ,"1,250.00",06/03/2015,REV,REDACTED
726,Central Services,SupS Legal,Achieving for Children (AFC),E10295,Supplies & Services           ,Services                      ,DF11,Counsel's Fees                          ,650,25/02/2015,REV,REDACTED
727,Central Services,SupS Legal,Achieving for Children (AFC),E10295,Supplies & Services           ,Services                      ,DF11,Counsel's Fees                          ,"4,250.00",25/03/2015,REV,REDACTED
728,Central Services,SupS Legal,Achieving for Children (AFC),E10295,Supplies & Services           ,Services                      ,DF11,Counsel's Fees                          ,520,05/03/2015,REV,REDACTED
729,Central Services,SupS Legal,Achieving for Children (AFC),E10295,Supplies & Services           ,Services                      ,DF11,Counsel's Fees                          ,"1,745.00",30/09/2014,REV,REDACTED
730,Central Services,SupS Legal,Achieving for Children (AFC),E10295,Supplies & Services           ,Services                      ,DF11,Counsel's Fees                          ,562.5,16/02/2015,REV,REDACTED
731,Central Services,SupS Legal,Achieving for Children (AFC),E10295,Supplies & Services           ,Services                      ,DF11,Counsel's Fees                          ,"3,250.00",17/02/2015,REV,REDACTED
732,Central Services,SupS Legal,Achieving for Children (AFC),E10295,Supplies & Services           ,Services                      ,DF14,Doctors and Other Fees                  ,"1,101.75",07/06/2013,REV,SECECETRA EXPERT SERVICES     
733,Central Services,SupS Legal,Achieving for Children (AFC),E10295,Supplies & Services           ,Services                      ,DF14,Doctors and Other Fees                  ,912.6,10/03/2015,REV,PARENTING PROFILES LTD        
734,Central Services,SupS Legal,Achieving for Children (AFC),E10295,Supplies & Services           ,Services                      ,DF14,Doctors and Other Fees                  ,800.83,02/02/2015,REV,REDACTED
735,Central Services,SupS Legal,Achieving for Children (AFC),E10295,Supplies & Services           ,Services                      ,DF14,Doctors and Other Fees                  ,"1,853.00",28/02/2015,REV,REDACTED
736,Central Services,SupS Legal,Achieving for Children (AFC),E10295,Supplies & Services           ,Services                      ,DF14,Doctors and Other Fees                  ,526,12/02/2015,REV,REDACTED
737,Central Services,SupS Legal,Achieving for Children (AFC),E10295,Supplies & Services           ,Services                      ,DF14,Doctors and Other Fees                  ,675,03/03/2015,REV,REDACTED
738,Central Services,SupS Legal,Achieving for Children (AFC),E10295,Supplies & Services           ,Services                      ,DF14,Doctors and Other Fees                  ,756,19/03/2015,REV,REDACTED
739,Central Services,SupS Legal,Achieving for Children (AFC),E10295,Supplies & Services           ,Services                      ,DF14,Doctors and Other Fees                  ,945.4,11/03/2015,REV,REDACTED
740,Central Services,SupS Legal,Achieving for Children (AFC),E10295,Supplies & Services           ,Services                      ,DF95,Services from Provider                  ,"4,425.00",29/01/2015,REV,WARD HADAWAY                  
741,Central Services,SupS Legal,Achieving for Children (AFC),E10295,Supplies & Services           ,Services                      ,DF95,Services from Provider                  ,"2,693.95",31/01/2015,REV,SYMBOL FAMILY SUPPORT SERVICES
742,Central Services,SupS Legal,Achieving for Children (AFC),E10295,Supplies & Services           ,Services                      ,DF95,Services from Provider                  ,"6,700.00",05/03/2015,REV,CORAL COMMUNITY ASSESSMENTS   
743,Central Services,SupS Legal,Achieving for Children (AFC),E10295,Supplies & Services           ,Services                      ,DF95,Services from Provider                  ,"5,051.00",29/01/2015,REV,WARD HADAWAY                  
744,Central Services,SupS Legal,Achieving for Children (AFC),E10295,Supplies & Services           ,Services                      ,DF95,Services from Provider                  ,"1,618.30",06/03/2015,REV,RWA (UK)                      
745,Central Services,SupS Payroll,Coroners Courts,E11300,Third Party Payments          ,Joint Authorities             ,EC11,SW Inner London Coroners Crt C          ,"56,007.00",25/02/2015,REV,CITY OF WESTMINSTER           
746,Central Services,SupS IT,Social Care Info System (SCI)           ,E14357,Employees                     ,Direct Employee Expenses      ,AA17,Agency Staff & Casual Paymts            ,"1,815.00",18/02/2015,REV,HAYS RECRUITING EXPERTS       
747,Central Services,SupS IT,Social Care Info System (SCI)           ,E14357,Employees                     ,Direct Employee Expenses      ,AA17,Agency Staff & Casual Paymts            ,"1,210.00",25/03/2015,REV,HAYS RECRUITING EXPERTS       
748,Central Services,SupS IT,Social Care Info System (SCI)           ,E14357,Employees                     ,Direct Employee Expenses      ,AA17,Agency Staff & Casual Paymts            ,"7,182.40",03/03/2015,REV,REDACTED
749,Central Services,SupS IT,Social Care Info System (SCI)           ,E14357,Employees                     ,Direct Employee Expenses      ,AA17,Agency Staff & Casual Paymts            ,"2,420.00",04/03/2015,REV,HAYS RECRUITING EXPERTS       
750,Central Services,SupS IT,Social Care Info System (SCI)           ,E14357,Employees                     ,Direct Employee Expenses      ,AA17,Agency Staff & Casual Paymts            ,"2,420.00",25/02/2015,REV,HAYS RECRUITING EXPERTS       
751,Central Services,SupS IT,Social Care Info System (SCI)           ,E14357,Employees                     ,Direct Employee Expenses      ,AA17,Agency Staff & Casual Paymts            ,"1,815.00",11/02/2015,REV,HAYS RECRUITING EXPERTS       
752,Central Services,SupS IT,Social Care Info System (SCI)           ,E14357,Employees                     ,Direct Employee Expenses      ,AA17,Agency Staff & Casual Paymts            ,"1,512.50",11/03/2015,REV,HAYS RECRUITING EXPERTS       
753,Central Services,SupS IT,Social Care Info System (SCI)           ,E14357,Employees                     ,Direct Employee Expenses      ,AA17,Agency Staff & Casual Paymts            ,"2,420.00",18/03/2015,REV,HAYS RECRUITING EXPERTS       
754,Central Services,SupS IT,Social Care Info System (SCI)           ,E14357,Employees                     ,Direct Employee Expenses      ,AA17,Agency Staff & Casual Paymts            ,"7,182.40",03/03/2015,REV,REDACTED
755,Central Services,SupS IT,AD Business Improvement,E14358,Supplies & Services           ,Comms and Computing           ,DG08,Computer Hardware                       ,552,03/03/2015,REV,VIGLEN LIMITED                
756,Central Services,SupS IT,Corp Saving-Print Strategy,E14359,Supplies & Services           ,Equip Furniture/Materials     ,DA77,Photocopier Rental                      ,"50,977.60",25/03/2015,REV,ALTODIGITAL NETWORKS LTD      
757,Central Services,SupS IT,Corp Saving-Print Strategy,E14359,Supplies & Services           ,Equip Furniture/Materials     ,DA77,Photocopier Rental                      ,"5,281.41",25/03/2015,REV,ALTODIGITAL NETWORKS LTD      
758,Central Services,SupS IT,Corp Saving-Print Strategy,E14359,Supplies & Services           ,Prntng Stnry Gen Off Exp      ,DE06,MULTI-FUNCTIONAL PRINTERS               ,"42,511.22",25/03/2015,REV,ALTODIGITAL NETWORKS LTD      
759,Central Services,SupS IT,BI IT Projects,E14360,Employees                     ,Direct Employee Expenses      ,AA17,Agency Staff & Casual Paymts            ,"3,420.00",18/02/2015,REV,MERIDIAN BUSINESS SUPPORT LTD 
760,Central Services,SupS IT,BI IT Projects,E14360,Employees                     ,Direct Employee Expenses      ,AA17,Agency Staff & Casual Paymts            ,"1,900.00",04/03/2015,REV,MERIDIAN BUSINESS SUPPORT LTD 
761,Central Services,SupS IT,BI IT Projects,E14360,Employees                     ,Direct Employee Expenses      ,AA17,Agency Staff & Casual Paymts            ,560,03/02/2015,REV,MERIDIAN BUSINESS SUPPORT LTD 
762,Central Services,SupS IT,BI IT Projects,E14360,Employees                     ,Direct Employee Expenses      ,AA17,Agency Staff & Casual Paymts            ,"1,340.00",25/02/2015,REV,MERIDIAN BUSINESS SUPPORT LTD 
763,Central Services,SupS IT,BI IT Projects,E14360,Employees                     ,Direct Employee Expenses      ,AA17,Agency Staff & Casual Paymts            ,"1,340.00",03/02/2015,REV,MERIDIAN BUSINESS SUPPORT LTD 
764,Central Services,SupS IT,BI IT Projects,E14360,Employees                     ,Direct Employee Expenses      ,AA17,Agency Staff & Casual Paymts            ,"1,900.00",10/03/2015,REV,MERIDIAN BUSINESS SUPPORT LTD 
765,Central Services,SupS IT,BI IT Projects,E14360,Supplies & Services           ,Services                      ,DF03,Consultants                             ,"10,350.00",27/02/2015,REV,OLM SYSTEMS                   
766,Central Services,SupS IT,AD I&T,E14363,Employees                     ,Direct Employee Expenses      ,AA17,Agency Staff & Casual Paymts            ,"11,900.00",24/03/2015,REV,GATENBY SANDERSON             
767,Central Services,SupS IT,AD I&T,E14363,Employees                     ,Direct Employee Expenses      ,AA17,Agency Staff & Casual Paymts            ,"11,305.00",24/02/2015,REV,GATENBY SANDERSON             
768,Central Services,SupS IT,AD I&T,E14363,Supplies & Services           ,Comms and Computing           ,DG16,Distributed & Network Purchase          ,675,10/02/2015,REV,NETWORLD UK                   
769,Central Services,SupS IT,Strategy & Quality,E14365,Supplies & Services           ,Services                      ,DF03,Consultants                             ,"9,065.00",30/03/2015,REV,LUCION ENVIRONMENTAL LTD      
770,Central Services,SupS IT,Strategy & Quality,E14365,Supplies & Services           ,Services                      ,DF03,Consultants                             ,"1,870.00",30/01/2015,REV,LUCION ENVIRONMENTAL LTD      
771,Central Services,SupS IT,Systems & Projects,E14366,Employees                     ,Direct Employee Expenses      ,AA17,Agency Staff & Casual Paymts            ,"1,500.10",13/03/2015,REV,NUMBER 10 INTERIM LTD         
772,Central Services,SupS IT,Systems & Projects,E14366,Employees                     ,Direct Employee Expenses      ,AA17,Agency Staff & Casual Paymts            ,514.32,26/03/2015,REV,NUMBER 10 INTERIM LTD         
773,Central Services,SupS IT,Systems & Projects,E14366,Employees                     ,Direct Employee Expenses      ,AA17,Agency Staff & Casual Paymts            ,"2,828.76",20/02/2015,REV,NUMBER 10 INTERIM LTD         
774,Central Services,SupS IT,Systems & Projects,E14366,Employees                     ,Direct Employee Expenses      ,AA17,Agency Staff & Casual Paymts            ,"4,500.30",09/03/2015,REV,NUMBER 10 INTERIM LTD         
775,Central Services,SupS IT,Systems & Projects,E14366,Employees                     ,Direct Employee Expenses      ,AA17,Agency Staff & Casual Paymts            ,"1,100.00",21/03/2015,REV,REDACTED
776,Central Services,SupS IT,Systems & Projects,E14366,Employees                     ,Direct Employee Expenses      ,AA17,Agency Staff & Casual Paymts            ,"3,000.20",13/03/2015,REV,NUMBER 10 INTERIM LTD         
777,Central Services,SupS IT,Systems & Projects,E14366,Employees                     ,Direct Employee Expenses      ,AA17,Agency Staff & Casual Paymts            ,"1,500.10",17/03/2015,REV,NUMBER 10 INTERIM LTD         
778,Central Services,SupS IT,Systems & Projects,E14366,Employees                     ,Direct Employee Expenses      ,AA17,Agency Staff & Casual Paymts            ,"2,957.34",27/03/2015,REV,NUMBER 10 INTERIM LTD         
779,Central Services,SupS IT,Systems & Projects,E14366,Employees                     ,Direct Employee Expenses      ,AA17,Agency Staff & Casual Paymts            ,985.78,26/03/2015,REV,NUMBER 10 INTERIM LTD         
780,Central Services,SupS IT,Systems & Projects,E14366,Employees                     ,Direct Employee Expenses      ,AA17,Agency Staff & Casual Paymts            ,"1,100.00",13/03/2015,REV,REDACTED
781,Central Services,SupS IT,Systems & Projects,E14366,Supplies & Services           ,Services                      ,DF03,Consultants                             ,"1,400.00",02/03/2015,REV,MARCUS DONALD PEOPLE LTD      
782,Central Services,SupS IT,Systems & Projects,E14366,Supplies & Services           ,Services                      ,DF03,Consultants                             ,"2,520.00",09/02/2015,REV,MARCUS DONALD PEOPLE LTD      
783,Central Services,SupS IT,Systems & Projects,E14366,Supplies & Services           ,Services                      ,DF03,Consultants                             ,"1,400.00",16/02/2015,REV,MARCUS DONALD PEOPLE LTD      
784,Central Services,SupS IT,Systems & Projects,E14366,Supplies & Services           ,Services                      ,DF03,Consultants                             ,"1,400.00",23/02/2015,REV,MARCUS DONALD PEOPLE LTD      
785,Central Services,SupS IT,Systems & Projects,E14366,Supplies & Services           ,Services                      ,DF03,Consultants                             ,"1,400.00",23/03/2015,REV,MARCUS DONALD PEOPLE LTD      
786,Central Services,SupS IT,Systems & Projects,E14366,Supplies & Services           ,Services                      ,DF03,Consultants                             ,"1,400.00",11/03/2015,REV,MARCUS DONALD PEOPLE LTD      
787,Central Services,SupS IT,Systems & Projects,E14366,Supplies & Services           ,Services                      ,DF03,Consultants                             ,"1,400.00",16/03/2015,REV,MARCUS DONALD PEOPLE LTD      
788,Central Services,SupS IT,Systems & Projects,E14366,Supplies & Services           ,Comms and Computing           ,DG02,Software Licences                       ,"8,000.00",13/02/2015,REV,FIBONACCI LTD                 
789,Central Services,SupS IT,Systems & Projects,E14366,Supplies & Services           ,Comms and Computing           ,DG07,Computer Software                       ,856.26,13/02/2015,REV,CIVICA UK LIMITED             
790,Central Services,SupS IT,Systems & Projects,E14366,Supplies & Services           ,Comms and Computing           ,DG07,Computer Software                       ,"15,616.40",13/02/2015,REV,CIVICA UK LIMITED             
791,Central Services,SupS IT,Systems & Projects,E14366,Supplies & Services           ,Comms and Computing           ,DG07,Computer Software                       ,"1,112.31",13/03/2015,REV,SOFTCAT LTD                   
792,Central Services,SupS IT,Systems & Projects,E14366,Supplies & Services           ,Comms and Computing           ,DG08,Computer Hardware                       ,"1,040.00",04/03/2015,REV,VIGLEN LIMITED                
793,Central Services,SupS IT,Systems & Projects,E14366,Supplies & Services           ,Comms and Computing           ,DG15,Network Maintenance                     ,"40,348.33",05/03/2015,REV,CIVICA UK LIMITED             
794,Central Services,SupS IT,Systems & Projects,E14366,Supplies & Services           ,Comms and Computing           ,DG50,Other IT Expenditure                    ,"7,285.00",10/03/2015,REV,ASH INFORMATION SYSTEMS LTD   
795,Central Services,SupS IT,Systems & Projects,E14366,Supplies & Services           ,Comms and Computing           ,DG50,Other IT Expenditure                    ,"2,783.00",10/03/2015,REV,ASH INFORMATION SYSTEMS LTD   
796,Central Services,SupS IT,Systems & Projects,E14366,Supplies & Services           ,Comms and Computing           ,DG61,Computer Servs Special                  ,"92,551.96",18/02/2015,REV,PITNEY BOWES SOFTWARE LTD     
797,Central Services,SupS IT,Systems & Projects,E14366,Supplies & Services           ,Comms and Computing           ,DG63,Software Licences - Data                ,765.99,26/01/2015,REV,CIVICA UK LIMITED             
798,Central Services,SupS IT,Systems & Projects,E14366,Supplies & Services           ,Comms and Computing           ,DG65,Application Licences                    ,"3,735.81",20/02/2015,REV,OPEN TEXT UK LTD              
799,Central Services,SupS IT,Operations & Telecomms,E14367,Employees                     ,Direct Employee Expenses      ,AA17,Agency Staff & Casual Paymts            ,"4,200.00",27/02/2015,REV,REDACTED
800,Central Services,SupS IT,Operations & Telecomms,E14367,Supplies & Services           ,Comms and Computing           ,DG14,Telephones - Mobile                     ,"1,096.20",28/02/2015,REV,O2 (UK) LIMITED               
801,Central Services,SupS IT,Operations & Telecomms,E14367,Supplies & Services           ,Comms and Computing           ,DG14,Telephones - Mobile                     ,"1,094.55",28/02/2015,REV,O2 (UK) LIMITED               
802,Central Services,SupS IT,Operations & Telecomms,E14367,Supplies & Services           ,Comms and Computing           ,DG14,Telephones - Mobile                     ,"1,603.00",05/02/2015,REV,EVERYTHING EVERYWHERE         
803,Central Services,SupS IT,Operations & Telecomms,E14367,Supplies & Services           ,Comms and Computing           ,DG15,Network Maintenance                     ,591.67,28/02/2015,REV,CISILION LTD                  
804,Central Services,SupS IT,Operations & Telecomms,E14367,Supplies & Services           ,Comms and Computing           ,DG15,Network Maintenance                     ,"1,169.01",28/02/2015,REV,CISILION LTD                  
805,Central Services,SupS IT,Operations & Telecomms,E14367,Supplies & Services           ,Comms and Computing           ,DG15,Network Maintenance                     ,"3,999.00",13/03/2015,REV,MARQUEST LIMITED              
806,Central Services,SupS IT,Operations & Telecomms,E14367,Supplies & Services           ,Comms and Computing           ,DG15,Network Maintenance                     ,"7,503.00",25/03/2015,REV,SYNETRIX LIMITED              
807,Central Services,SupS IT,Operations & Telecomms,E14367,Supplies & Services           ,Comms and Computing           ,DG15,Network Maintenance                     ,"3,755.75",19/03/2015,REV,MARQUEST LIMITED              
808,Central Services,SupS IT,Operations & Telecomms,E14367,Supplies & Services           ,Comms and Computing           ,DG54,Corporate Telephones                    ,"5,587.40",17/03/2015,REV,ORANGE P'MENT PRO'SING AIRTIME
809,Central Services,SupS IT,Operations & Telecomms,E14367,Supplies & Services           ,Comms and Computing           ,DG54,Corporate Telephones                    ,"2,376.87",02/03/2015,REV,COLT TELECOMMUNICATIONS       
810,Central Services,SupS IT,Operations & Telecomms,E14367,Supplies & Services           ,Comms and Computing           ,DG54,Corporate Telephones                    ,"4,768.56",17/02/2015,REV,ORANGE P'MENT PRO'SING AIRTIME
811,Central Services,SupS IT,Operations & Telecomms,E14367,Supplies & Services           ,Comms and Computing           ,DG54,Corporate Telephones                    ,"47,122.37",27/02/2015,REV,BRITISH TELECOMMUNICATIONS PLC
812,Central Services,SupS IT,Operations & Telecomms,E14367,Supplies & Services           ,Comms and Computing           ,DG54,Corporate Telephones                    ,"3,611.45",04/03/2015,REV,T MOBILE (UK)                 
813,Central Services,SupS IT,Distributed Services,E14368,Supplies & Services           ,Comms and Computing           ,DG63,Software Licences - Data                ,"154,675.00",23/12/2014,REV,INSIGHT DIRECT (UK) LTD       
814,Central Services,SupS IT,Distributed Services,E14368,Supplies & Services           ,Comms and Computing           ,DG63,Software Licences - Data                ,599,24/03/2015,REV,V-SUB SOLUTIONS               
815,Central Services,SupS IT,Distributed Services,E14368,Supplies & Services           ,Comms and Computing           ,DG63,Software Licences - Data                ,604.8,24/03/2015,REV,V-SUB SOLUTIONS               
816,Central Services,SupS IT,Distributed Services,E14368,Supplies & Services           ,Comms and Computing           ,DG63,Software Licences - Data                ,"1,270.00",23/03/2015,REV,VERISEC LIMITED               
817,Central Services,SupS IT,Distributed Services,E14368,Supplies & Services           ,Comms and Computing           ,DG63,Software Licences - Data                ,"2,804.00",09/03/2015,REV,TIMEWATCH PLC                 
818,Central Services,SupS IT,Distributed Services,E14368,Supplies & Services           ,Comms and Computing           ,DG63,Software Licences - Data                ,"4,652.00",02/03/2015,REV,ORGANISED COMPUTER SYSTEMS LTD
819,Central Services,SupS IT,Distributed Services,E14368,Supplies & Services           ,Comms and Computing           ,DG63,Software Licences - Data                ,"7,000.00",23/03/2015,REV,VERISEC LIMITED               
820,Central Services,SupS IT,Distributed Services,E14368,Supplies & Services           ,Comms and Computing           ,DG63,Software Licences - Data                ,"5,569.84",09/02/2015,REV,ORGANISED COMPUTER SYSTEMS LTD
821,Central Services,SupS IT,Distributed Services,E14368,Supplies & Services           ,Comms and Computing           ,DG63,Software Licences - Data                ,"1,412.28",12/02/2015,REV,ORGANISED COMPUTER SYSTEMS LTD
822,Central Services,SupS IT,Distributed Services,E14368,Supplies & Services           ,Comms and Computing           ,DG65,Application Licences                    ,"16,380.00",24/03/2015,REV,SOFTCAT LTD                   
823,Central Services,SupS IT,Corp Saving-IT Consolidation,E14370,Premises Related Expenditure  ,RepairsAlterations&MtceOfBldgs,BA01,DDM - General Building                  ,"1,560.36",27/02/2015,REV,REDACTED
824,Central Services,SupS IT,Corp Saving-IT Consolidation,E14370,Premises Related Expenditure  ,RepairsAlterations&MtceOfBldgs,BA01,DDM - General Building                  ,"9,331.00",11/03/2015,REV,SALTASH ENTERPRISES LTD       
825,Central Services,SupS IT,Corp Saving-IT Consolidation,E14370,Premises Related Expenditure  ,RepairsAlterations&MtceOfBldgs,BA01,DDM - General Building                  ,"7,199.62",26/03/2015,REV,SALTASH ENTERPRISES LTD       
826,Central Services,SupS IT,Corp Saving-IT Consolidation,E14370,Premises Related Expenditure  ,RepairsAlterations&MtceOfBldgs,BA01,DDM - General Building                  ,"6,342.50",20/01/2015,REV,TAYLOR BUILDING COMPANY LTD   
827,Central Services,SupS IT,Corp Saving-IT Consolidation,E14370,Premises Related Expenditure  ,RepairsAlterations&MtceOfBldgs,BA01,DDM - General Building                  ,"7,912.00",19/03/2015,REV,SALTASH ENTERPRISES LTD       
828,Central Services,SupS IT,Corp Saving-IT Consolidation,E14370,Premises Related Expenditure  ,RepairsAlterations&MtceOfBldgs,BA01,DDM - General Building                  ,"2,332.43",26/03/2015,REV,SALTASH ENTERPRISES LTD       
829,Central Services,SupS IT,Corp Saving-IT Consolidation,E14370,Premises Related Expenditure  ,RepairsAlterations&MtceOfBldgs,BA01,DDM - General Building                  ,"30,136.88",26/03/2015,REV,SALTASH ENTERPRISES LTD       
830,Central Services,SupS IT,Corp Saving-IT Consolidation,E14370,Premises Related Expenditure  ,RepairsAlterations&MtceOfBldgs,BA01,DDM - General Building                  ,"23,737.00",26/03/2015,REV,SALTASH ENTERPRISES LTD       
831,Central Services,SupS IT,Corp Saving-IT Consolidation,E14370,Premises Related Expenditure  ,RepairsAlterations&MtceOfBldgs,BA01,DDM - General Building                  ,"5,957.88",09/03/2015,REV,SALTASH ENTERPRISES LTD       
832,Central Services,SupS IT,Corp Saving-IT Consolidation,E14370,Premises Related Expenditure  ,RepairsAlterations&MtceOfBldgs,BA01,DDM - General Building                  ,"21,905.97",09/03/2015,REV,SALTASH ENTERPRISES LTD       
833,Central Services,SupS IT,Corp Saving-IT Consolidation,E14370,Premises Related Expenditure  ,RepairsAlterations&MtceOfBldgs,BA01,DDM - General Building                  ,"9,331.00",23/03/2015,REV,SALTASH ENTERPRISES LTD       
834,Central Services,SupS IT,Corp Saving-IT Consolidation,E14370,Premises Related Expenditure  ,RepairsAlterations&MtceOfBldgs,BA01,DDM - General Building                  ,"27,342.35",26/03/2015,REV,SALTASH ENTERPRISES LTD       
835,Central Services,SupS IT,Corp Saving-IT Consolidation,E14370,Premises Related Expenditure  ,RepairsAlterations&MtceOfBldgs,BA01,DDM - General Building                  ,"7,199.62",26/03/2015,REV,SALTASH ENTERPRISES LTD       
836,Central Services,SupS IT,Corp Saving-IT Consolidation,E14370,Premises Related Expenditure  ,RepairsAlterations&MtceOfBldgs,BA01,DDM - General Building                  ,"1,313.00",09/03/2015,REV,SALTASH ENTERPRISES LTD       
837,Central Services,SupS IT,Corp Saving-IT Consolidation,E14370,Premises Related Expenditure  ,RepairsAlterations&MtceOfBldgs,BA01,DDM - General Building                  ,"2,065.00",09/03/2015,REV,SALTASH ENTERPRISES LTD       
838,Central Services,SupS IT,Corp Saving-IT Consolidation,E14370,Premises Related Expenditure  ,RepairsAlterations&MtceOfBldgs,BA01,DDM - General Building                  ,"12,617.12",26/03/2015,REV,SALTASH ENTERPRISES LTD       
839,Central Services,SupS IT,Corp Saving-IT Consolidation,E14370,Premises Related Expenditure  ,RepairsAlterations&MtceOfBldgs,BA02,Energy Conservation                     ,"108,945.18",25/03/2015,REV,ENERGY SAVING LIGHTING (UK) LT
840,Central Services,SupS IT,Corp Saving-IT Consolidation,E14370,Premises Related Expenditure  ,RepairsAlterations&MtceOfBldgs,BA03,DDM - Mechanical                        ,"2,413.04",17/02/2015,REV,EUROPA NATIONWIDE TECH.SER.LTD
841,Central Services,SupS IT,Corp Saving-IT Consolidation,E14370,Premises Related Expenditure  ,RepairsAlterations&MtceOfBldgs,BA03,DDM - Mechanical                        ,"9,290.00",27/02/2015,REV,EUROPA NATIONWIDE TECH.SER.LTD
842,Central Services,SupS IT,Corp Saving-IT Consolidation,E14370,Premises Related Expenditure  ,RepairsAlterations&MtceOfBldgs,BA03,DDM - Mechanical                        ,"3,165.30",27/02/2015,REV,EUROPA NATIONWIDE TECH.SER.LTD
843,Central Services,SupS IT,Corp Saving-IT Consolidation,E14370,Premises Related Expenditure  ,RepairsAlterations&MtceOfBldgs,BA03,DDM - Mechanical                        ,"2,039.40",24/03/2015,REV,EUROPA NATIONWIDE TECH.SER.LTD
844,Central Services,SupS IT,Corp Saving-IT Consolidation,E14370,Premises Related Expenditure  ,RepairsAlterations&MtceOfBldgs,BA03,DDM - Mechanical                        ,"10,796.00",17/02/2015,REV,EUROPA NATIONWIDE TECH.SER.LTD
845,Central Services,SupS IT,Corp Saving-IT Consolidation,E14370,Premises Related Expenditure  ,RepairsAlterations&MtceOfBldgs,BA03,DDM - Mechanical                        ,"16,401.40",27/02/2015,REV,EUROPA NATIONWIDE TECH.SER.LTD
846,Central Services,SupS IT,Corp Saving-IT Consolidation,E14370,Premises Related Expenditure  ,RepairsAlterations&MtceOfBldgs,BA03,DDM - Mechanical                        ,"14,074.50",24/03/2015,REV,EUROPA NATIONWIDE TECH.SER.LTD
847,Central Services,SupS IT,No longer used,E14371,Employees                     ,Direct Employee Expenses      ,AA17,Agency Staff & Casual Paymts            ,"3,390.00",04/03/2015,REV,HAYS RECRUITING EXPERTS       
848,Central Services,SupS IT,No longer used,E14371,Employees                     ,Direct Employee Expenses      ,AA17,Agency Staff & Casual Paymts            ,"3,390.00",04/03/2015,REV,HAYS RECRUITING EXPERTS       
849,Central Services,SupS IT,No longer used,E14371,Employees                     ,Direct Employee Expenses      ,AA17,Agency Staff & Casual Paymts            ,"1,810.00",04/02/2015,REV,HAYS RECRUITING EXPERTS       
850,Central Services,SupS IT,No longer used,E14371,Employees                     ,Direct Employee Expenses      ,AA17,Agency Staff & Casual Paymts            ,"3,390.00",04/03/2015,REV,HAYS RECRUITING EXPERTS       
851,Central Services,SupS IT,No longer used,E14371,Employees                     ,Direct Employee Expenses      ,AA17,Agency Staff & Casual Paymts            ,"12,000.00",18/03/2015,REV,MILESTONES COMMUNICATIONS LTD 
852,Central Services,SupS IT,No longer used,E14371,Employees                     ,Direct Employee Expenses      ,AA17,Agency Staff & Casual Paymts            ,"1,580.00",04/02/2015,REV,HAYS RECRUITING EXPERTS       
853,Central Services,SupS IT,No longer used,E14371,Employees                     ,Direct Employee Expenses      ,AA17,Agency Staff & Casual Paymts            ,"3,390.00",18/03/2015,REV,HAYS RECRUITING EXPERTS       
854,Central Services,SupS IT,No longer used,E14371,Employees                     ,Direct Employee Expenses      ,AA17,Agency Staff & Casual Paymts            ,"3,390.00",13/03/2015,REV,HAYS RECRUITING EXPERTS       
855,Central Services,SupS IT,No longer used,E14371,Employees                     ,Direct Employee Expenses      ,AA17,Agency Staff & Casual Paymts            ,"3,390.00",04/03/2015,REV,HAYS RECRUITING EXPERTS       
856,Central Services,SupS IT,No longer used,E14371,Employees                     ,Direct Employee Expenses      ,AA17,Agency Staff & Casual Paymts            ,"12,600.00",04/02/2015,REV,MILESTONES COMMUNICATIONS LTD 
857,Central Services,SupS IT,No longer used,E14371,Supplies & Services           ,Services                      ,DF03,Consultants                             ,"10,700.00",23/02/2015,REV,V4 SERVICES LIMITED           
858,Central Services,SupS IT,No longer used,E14371,Supplies & Services           ,Services                      ,DF03,Consultants                             ,"1,700.00",19/02/2015,REV,REDQUADRANT LTD               
859,Central Services,SupS IT,No longer used,E14371,Supplies & Services           ,Services                      ,DF03,Consultants                             ,"10,155.00",11/03/2015,REV,V4 SERVICES LIMITED           
860,Central Services,SupS IT,Business Systems - Deptl Supt,E14377,Supplies & Services           ,Comms and Computing           ,DG15,Network Maintenance                     ,"4,855.80",18/03/2015,REV,AJP SOLUTIONS                 
861,Central Services,SupS IT,Business Systems - Deptl Supt,E14377,Supplies & Services           ,Comms and Computing           ,DG57,Licences Microsoft Select               ,"252,215.82",20/03/2015,REV,CIVICA SERVICES LTD           
862,Highways & Transport Services,Hwys/Rds (struct) not split,Surf Water Drainage,G00123,Third Party Payments          ,Private Contractors           ,EH56,Carriageway/Fway Maint                  ,"1,900.34",27/02/2015,REV,FM CONWAY LTD                 
863,Highways & Transport Services,Repair prin/oth rds not split,Carriageway Patching,G00125,Third Party Payments          ,Private Contractors           ,EH56,Carriageway/Fway Maint                  ,"27,003.11",24/03/2015,REV,FM CONWAY LTD                 
864,Highways & Transport Services,Repair prin/oth rds not split,Carriageway Patching,G00125,Third Party Payments          ,Private Contractors           ,EH56,Carriageway/Fway Maint                  ,"6,407.17",18/03/2015,REV,FM CONWAY LTD                 
865,Highways & Transport Services,Repair prin/oth rds not split,Carriageway Patching,G00125,Third Party Payments          ,Private Contractors           ,EH56,Carriageway/Fway Maint                  ,"1,036.07",27/02/2015,REV,FM CONWAY LTD                 
866,Highways & Transport Services,Repair prin/oth rds not split,Carriageway Patching,G00125,Third Party Payments          ,Private Contractors           ,EH56,Carriageway/Fway Maint                  ,"26,373.58",20/03/2015,REV,FM CONWAY LTD                 
867,Highways & Transport Services,Repair prin/oth rds not split,Carriageway Patching,G00125,Third Party Payments          ,Private Contractors           ,EH56,Carriageway/Fway Maint                  ,"18,000.00",26/03/2015,REV,FM CONWAY LTD                 
868,Highways & Transport Services,Repair prin/oth rds not split,Walk Sheets,G00127,Third Party Payments          ,Private Contractors           ,EH56,Carriageway/Fway Maint                  ,"12,093.20",04/03/2015,REV,FM CONWAY LTD                 
869,Highways & Transport Services,Repair prin/oth rds not split,Walk Sheets,G00127,Third Party Payments          ,Private Contractors           ,EH56,Carriageway/Fway Maint                  ,"9,084.00",04/03/2015,REV,FM CONWAY LTD                 
870,Highways & Transport Services,Repair prin/oth rds not split,Walk Sheets,G00127,Third Party Payments          ,Private Contractors           ,EH56,Carriageway/Fway Maint                  ,"4,396.16",20/03/2015,REV,FM CONWAY LTD                 
871,Highways & Transport Services,Repair prin/oth rds not split,Walk Sheets,G00127,Third Party Payments          ,Private Contractors           ,EH56,Carriageway/Fway Maint                  ,"59,519.89",18/03/2015,REV,FM CONWAY LTD                 
872,Highways & Transport Services,Repair prin/oth rds not split,Walk Sheets,G00127,Third Party Payments          ,Private Contractors           ,EH56,Carriageway/Fway Maint                  ,"16,542.18",27/02/2015,REV,FM CONWAY LTD                 
873,Highways & Transport Services,Repair prin/oth rds not split,Walk Sheets,G00127,Third Party Payments          ,Private Contractors           ,EH56,Carriageway/Fway Maint                  ,"2,088.22",04/03/2015,REV,FM CONWAY LTD                 
874,Highways & Transport Services,Repair prin/oth rds not split,Walk Sheets,G00127,Third Party Payments          ,Private Contractors           ,EH56,Carriageway/Fway Maint                  ,"2,906.80",04/03/2015,REV,FM CONWAY LTD                 
875,Highways & Transport Services,Hwys/Rds (struct) not split,"Br., H'ways & Struct",G00128,Premises Related Expenditure  ,RepairsAlterations&MtceOfBldgs,BA59,Periodic Inspections                    ,"1,750.00",19/03/2015,REV,HYDER CONSULTING (UK) LTD     
876,Highways & Transport Services,Hwys/Rds (struct) not split,"Br., H'ways & Struct",G00128,Premises Related Expenditure  ,RepairsAlterations&MtceOfBldgs,BA59,Periodic Inspections                    ,"10,662.84",19/03/2015,REV,HYDER CONSULTING (UK) LTD     
877,Highways & Transport Services,Hwys/Rds (struct) not split,"Br., H'ways & Struct",G00128,Third Party Payments          ,Private Contractors           ,EH56,Carriageway/Fway Maint                  ,"4,322.64",20/03/2015,REV,FM CONWAY LTD                 
878,Highways & Transport Services,Saf mtc prin/oth rds not split,Traffic Signs.,G00160,Third Party Payments          ,Private Contractors           ,EH02,Miscellaneous Hired Services            ,"9,028.42",25/03/2015,REV,FM CONWAY LTD                 
879,Highways & Transport Services,Saf mtc prin/oth rds not split,Traffic Signs.,G00160,Third Party Payments          ,Private Contractors           ,EH02,Miscellaneous Hired Services            ,991.82,24/03/2015,REV,FM CONWAY LTD                 
880,Highways & Transport Services,Saf mtc prin/oth rds not split,Traffic Signs.,G00160,Third Party Payments          ,Private Contractors           ,EH02,Miscellaneous Hired Services            ,"1,951.27",27/02/2015,REV,FM CONWAY LTD                 
881,Highways & Transport Services,0,TRAF & HWYS CAPITAL PROJECTS,G00210,Supplies & Services           ,Services                      ,DF05,Surveys (General)                       ,"6,853.94",12/12/2014,REV,HIGHWAY SURVEYORS             
882,Highways & Transport Services,0,TRAF & HWYS CAPITAL PROJECTS,G00210,Supplies & Services           ,Services                      ,DF05,Surveys (General)                       ,"22,940.71",15/01/2015,REV,HIGHWAY SURVEYORS             
883,Highways & Transport Services,0,TRAF & HWYS CAPITAL PROJECTS,G00210,Supplies & Services           ,Services                      ,DF05,Surveys (General)                       ,"2,100.00",02/02/2015,REV,TRAFFICWATCH (UK) LTD.        
884,Highways & Transport Services,Transport Plg/Policy/Strategy,CPZ implementation & Consultat,G00211,Third Party Payments          ,Private Contractors           ,EH56,Carriageway/Fway Maint                  ,"1,219.89",24/03/2015,REV,FM CONWAY LTD                 
885,Highways & Transport Services,Transport Plg/Policy/Strategy,CPZ implementation & Consultat,G00211,Third Party Payments          ,Private Contractors           ,EH56,Carriageway/Fway Maint                  ,"4,835.01",18/03/2015,REV,FM CONWAY LTD                 
886,Highways & Transport Services,Transport Plg/Policy/Strategy,CPZ implementation & Consultat,G00211,Third Party Payments          ,Private Contractors           ,EH56,Carriageway/Fway Maint                  ,"20,000.00",18/03/2015,REV,FM CONWAY LTD                 
887,Highways & Transport Services,0,Bushy/Waite/Goat Bridges TFL            ,G00215,Supplies & Services           ,Services                      ,DF03,Consultants                             ,"5,700.00",24/03/2015,REV,HYDER CONSULTING (UK) LTD     
888,Highways & Transport Services,Street Lighting.,Street Lighting .,G00260,Premises Related Expenditure  ,Energy Costs                  ,BB02,Electricity                             ,"45,924.25",04/03/2015,REV,SCOTTISHPOWER                 
889,Highways & Transport Services,Street Lighting.,Street Lighting .,G00260,Third Party Payments          ,Private Contractors           ,EH01,Miscellaneous Agency Services           ,"1,215.39",27/02/2015,REV,MAY GURNEY LTD T/A CARTLEDGE  
890,Highways & Transport Services,Street Lighting.,Street Lighting .,G00260,Third Party Payments          ,Private Contractors           ,EH01,Miscellaneous Agency Services           ,671.11,19/03/2015,REV,MAY GURNEY LTD T/A CARTLEDGE  
891,Highways & Transport Services,Street Lighting.,Street Lighting .,G00260,Third Party Payments          ,Private Contractors           ,EH01,Miscellaneous Agency Services           ,642,25/02/2015,REV,UK POWER NETWORKS (OPERATIONS)
892,Highways & Transport Services,Street Lighting.,Street Lighting .,G00260,Third Party Payments          ,Private Contractors           ,EH01,Miscellaneous Agency Services           ,"1,121.43",19/03/2015,REV,MAY GURNEY LTD T/A CARTLEDGE  
893,Highways & Transport Services,Street Lighting.,Street Lighting .,G00260,Third Party Payments          ,Private Contractors           ,EH01,Miscellaneous Agency Services           ,"4,117.41",27/02/2015,REV,MAY GURNEY LTD T/A CARTLEDGE  
894,Highways & Transport Services,Street Lighting.,Street Lighting .,G00260,Third Party Payments          ,Private Contractors           ,EH01,Miscellaneous Agency Services           ,"1,121.43",19/03/2015,REV,MAY GURNEY LTD T/A CARTLEDGE  
895,Highways & Transport Services,Street Lighting.,Street Lighting .,G00260,Third Party Payments          ,Private Contractors           ,EH01,Miscellaneous Agency Services           ,"4,389.59",27/02/2015,REV,MAY GURNEY LTD T/A CARTLEDGE  
896,Highways & Transport Services,Street Lighting.,Street Lighting .,G00260,Third Party Payments          ,Private Contractors           ,EH01,Miscellaneous Agency Services           ,984.39,19/03/2015,REV,MAY GURNEY LTD T/A CARTLEDGE  
897,Highways & Transport Services,Street Lighting.,Street Lighting .,G00260,Third Party Payments          ,Private Contractors           ,EH01,Miscellaneous Agency Services           ,"2,761.65",19/03/2015,REV,MAY GURNEY LTD T/A CARTLEDGE  
898,Highways & Transport Services,Street Lighting.,Street Lighting .,G00260,Third Party Payments          ,Private Contractors           ,EH01,Miscellaneous Agency Services           ,642,18/03/2015,REV,UK POWER NETWORKS (OPERATIONS)
899,Highways & Transport Services,Street Lighting.,Street Lighting .,G00260,Third Party Payments          ,Private Contractors           ,EH01,Miscellaneous Agency Services           ,578.87,27/02/2015,REV,MAY GURNEY LTD T/A CARTLEDGE  
900,Highways & Transport Services,Street Lighting.,Street Lighting .,G00260,Third Party Payments          ,Private Contractors           ,EH01,Miscellaneous Agency Services           ,"6,772.61",27/02/2015,REV,MAY GURNEY LTD T/A CARTLEDGE  
901,Highways & Transport Services,Street Lighting.,Street Lighting .,G00260,Third Party Payments          ,Private Contractors           ,EH01,Miscellaneous Agency Services           ,"11,219.07",27/02/2015,REV,MAY GURNEY LTD T/A CARTLEDGE  
902,Highways & Transport Services,Street Lighting.,Street Lighting .,G00260,Third Party Payments          ,Private Contractors           ,EH01,Miscellaneous Agency Services           ,990,20/03/2015,REV,FM CONWAY LTD                 
903,Highways & Transport Services,Off-street parking,Car Parks (Unloc),G00291,Premises Related Expenditure  ,RepairsAlterations&MtceOfBldgs,BA06,REPAIRS & MAINTENANCE GENERAL           ,755.59,27/02/2015,REV,FM CONWAY LTD                 
904,Highways & Transport Services,Off-street parking,Car Parks (Unloc),G00291,Premises Related Expenditure  ,RepairsAlterations&MtceOfBldgs,BA06,REPAIRS & MAINTENANCE GENERAL           ,801.86,20/03/2015,REV,FACTOR 21                     
905,Highways & Transport Services,Off-street parking,Car Parks (Unloc),G00291,Third Party Payments          ,Private Contractors           ,EH02,Miscellaneous Hired Services            ,"3,666.00",28/02/2014,REV,COBALT TELEPHONE TECHNOLOGIES 
906,Highways & Transport Services,Off-street parking,York Close CP,G00298,Premises Related Expenditure  ,Rents                         ,BC01,Miscellaneous Rents                     ,"30,460.50",25/02/2015,REV,TRANSPORT TRADING LTD PROP A/C
907,Highways & Transport Services,Off-street parking,St. Georges Car Park EAST,G00300,Premises Related Expenditure  ,Rents                         ,BC01,Miscellaneous Rents                     ,889.4,17/02/2015,REV,LLOYDS BANK SF NOMINEES LTD   
908,Highways & Transport Services,Off-street parking,St. Georges Car Park WEST M/S,G00302,Premises Related Expenditure  ,Energy Costs                  ,BB02,Electricity                             ,700.86,02/03/2015,REV,SCOTTISHPOWER                 
909,Highways & Transport Services,Off-street parking,St. Georges Car Park WEST M/S,G00302,Premises Related Expenditure  ,Rents                         ,BC01,Miscellaneous Rents                     ,927.14,16/02/2015,REV,SACKVILLE SPF IV (GP) NO 1 LTD
910,Highways & Transport Services,Off-street parking,St. Georges Car Park WEST M/S,G00302,Premises Related Expenditure  ,Rents                         ,BC01,Miscellaneous Rents                     ,"1,201.48",16/02/2015,REV,SACKVILLE SPF IV (GP) NO 1 LTD
911,Highways & Transport Services,Off-street parking,St. Georges Car Park WEST M/S,G00302,Premises Related Expenditure  ,Rents                         ,BC01,Miscellaneous Rents                     ,"1,399.72",06/02/2015,REV,SACKVILLE SPF IV (GP) NO 1 LTD
912,Highways & Transport Services,On-street parking,On Street Parking.,G00311,Premises Related Expenditure  ,RepairsAlterations&MtceOfBldgs,BA06,Repairs & Maintenance General           ,"1,229.79",06/03/2015,REV,FACTOR 21                     
913,Highways & Transport Services,On-street parking,On Street Parking.,G00311,Premises Related Expenditure  ,RepairsAlterations&MtceOfBldgs,BA06,Repairs & Maintenance General           ,619.5,06/03/2015,REV,FACTOR 21                     
914,Highways & Transport Services,On-street parking,On Street Parking.,G00311,Premises Related Expenditure  ,RepairsAlterations&MtceOfBldgs,BA06,Repairs & Maintenance General           ,619.5,06/03/2015,REV,FACTOR 21                     
915,Highways & Transport Services,On-street parking,On Street Parking.,G00311,Premises Related Expenditure  ,RepairsAlterations&MtceOfBldgs,BA06,Repairs & Maintenance General           ,"2,384.47",06/03/2015,REV,FACTOR 21                     
916,Highways & Transport Services,On-street parking,On Street Parking.,G00311,Premises Related Expenditure  ,Rents                         ,BC01,Miscellaneous Rents                     ,"1,399.72",16/02/2015,REV,SACKVILLE SPF IV (GP) NO 1 LTD
917,Highways & Transport Services,Road Safety Education,Road Safety..,G00320,Supplies & Services           ,Grants and Subscriptions      ,DJ04,Subscriptions                           ,"4,000.00",26/03/2015,REV,OPEN CITY                     
918,Highways & Transport Services,Road Safety Education,Road Safety..,G00320,Supplies & Services           ,Grants and Subscriptions      ,DJ04,Subscriptions                           ,500,02/03/2015,REV,HERITAGE OF LONDON TRUST LTD  
919,Highways & Transport Services,Road Safety Education,TFL CAPT SPEND (REV),G00326,Employees                     ,Indirect Employee Expenses    ,AB57,External Training Costs                 ,"6,275.00",20/03/2015,REV,FLEET SOURCE LTD              
920,Highways & Transport Services,CYCLIST TRAINER,CYCLIST TRAINER,G00328,Supplies & Services           ,Equip Furniture/Materials     ,DA09,Equip-Purchases                         ,890,17/03/2015,REV,CYCLEHOOP LTD                 
921,Highways & Transport Services,CYCLIST TRAINER,CYCLIST TRAINER,G00328,Supplies & Services           ,Equip Furniture/Materials     ,DA09,Equip-Purchases                         ,"2,426.18",26/03/2015,REV,F.W.EVANS CYCLES (UK) LTD.    
922,Highways & Transport Services,Parking Enforcement not split,Civil Enforcement Officers,G00330,Supplies & Services           ,Equip Furniture/Materials     ,DA09,Equip-Purchases                         ,850,13/03/2015,REV,IMPERIAL CIVIL ENFORC.SOLUT.  
923,Highways & Transport Services,Parking Enforcement not split,Civil Enforcement Officers,G00330,Supplies & Services           ,Comms and Computing           ,DG09,Computer Purchases - Misc               ,690.2,04/02/2015,REV,MISCO                         
924,Highways & Transport Services,Parking Enforcement not split,Operational Running Costs,G00331,Supplies & Services           ,Equip Furniture/Materials     ,DA04,Materials                               ,"1,199.00",26/02/2015,REV,JD ASSOCIATES                 
925,Highways & Transport Services,Parking Enforcement not split,Operational Running Costs,G00331,Supplies & Services           ,Equip Furniture/Materials     ,DA09,Equip-Purchases                         ,-600,27/02/2015,REV,PARKEON LTD                   
926,Highways & Transport Services,Parking Enforcement not split,Operational Running Costs,G00331,Third Party Payments          ,Other Agencies                ,EJ58,Parking Cttee for London                ,"10,000.00",12/03/2015,REV,HMCTS                         
927,Highways & Transport Services,Repair prin/oth rds not split,Flood Risk Management,G00350,Third Party Payments          ,Private Contractors           ,EH56,Carriageway/Fway Maint                  ,"20,005.17",20/03/2015,REV,FM CONWAY LTD                 
928,Highways & Transport Services,Repair prin/oth rds not split,Flood Risk Management,G00350,Third Party Payments          ,Private Contractors           ,EH56,Carriageway/Fway Maint                  ,"15,000.00",18/03/2015,REV,FM CONWAY LTD                 
929,Highways & Transport Services,Hwys/Rds (struct) not split,Footpath Crossings.,G00390,Third Party Payments          ,Private Contractors           ,EH56,Carriageway/Fway Maint                  ,"3,381.54",27/02/2015,REV,FM CONWAY LTD                 
930,Highways & Transport Services,Hwys/Rds (struct) not split,Footpath Crossings.,G00390,Third Party Payments          ,Private Contractors           ,EH56,Carriageway/Fway Maint                  ,"3,749.62",27/02/2015,REV,FM CONWAY LTD                 
931,Highways & Transport Services,Hwys/Rds (struct) not split,Footpath Crossings.,G00390,Third Party Payments          ,Private Contractors           ,EH56,Carriageway/Fway Maint                  ,"4,248.03",18/03/2015,REV,FM CONWAY LTD                 
932,Highways & Transport Services,Hwys/Rds (struct) not split,Footpath Crossings.,G00390,Third Party Payments          ,Private Contractors           ,EH56,Carriageway/Fway Maint                  ,"8,291.67",27/02/2015,REV,FM CONWAY LTD                 
933,Highways & Transport Services,Hwys/Rds (struct) not split,Footpath Crossings.,G00390,Third Party Payments          ,Private Contractors           ,EH56,Carriageway/Fway Maint                  ,"1,169.52",18/03/2015,REV,FM CONWAY LTD                 
934,Highways & Transport Services,Hwys/Rds (struct) not split,Footpath Crossings.,G00390,Third Party Payments          ,Private Contractors           ,EH56,Carriageway/Fway Maint                  ,"1,614.06",18/03/2015,REV,FM CONWAY LTD                 
935,Highways & Transport Services,Hwys/Rds (struct) not split,Footpath Crossings.,G00390,Third Party Payments          ,Private Contractors           ,EH56,Carriageway/Fway Maint                  ,"3,143.66",18/03/2015,REV,FM CONWAY LTD                 
936,Highways & Transport Services,Hwys/Rds (struct) not split,Footpath Crossings.,G00390,Third Party Payments          ,Private Contractors           ,EH56,Carriageway/Fway Maint                  ,875.93,27/02/2015,REV,MAY GURNEY LTD T/A CARTLEDGE  
937,Highways & Transport Services,Hwys/Rds (struct) not split,Footpath Crossings.,G00390,Third Party Payments          ,Private Contractors           ,EH56,Carriageway/Fway Maint                  ,982.43,18/03/2015,REV,FM CONWAY LTD                 
938,Highways & Transport Services,Hwys/Rds (struct) not split,Footpath Crossings.,G00390,Third Party Payments          ,Private Contractors           ,EH56,Carriageway/Fway Maint                  ,"6,354.52",18/03/2015,REV,FM CONWAY LTD                 
939,Highways & Transport Services,Hwys/Rds (struct) not split,Footpath Crossings.,G00390,Third Party Payments          ,Private Contractors           ,EH56,Carriageway/Fway Maint                  ,"1,062.72",18/03/2015,REV,FM CONWAY LTD                 
940,Cultural Env Reg&Plan Services,Street Clean - Not highways,Graffiti,G00495,Supplies & Services           ,Equip Furniture/Materials     ,DA04,Materials                               ,"1,388.53",26/03/2015,REV,TENSID UK PLC                 
941,Cultural Env Reg&Plan Services,Waste Disposal (not separated),Waste Disposal .,G00550,Third Party Payments          ,Private Contractors           ,EH04,C1 Viridor SLWP Landfill Contract       ,"19,752.40",25/03/2015,REV,KINGSTON CORPORATION          
942,Cultural Env Reg&Plan Services,Waste Disposal (not separated),Waste Disposal .,G00550,Third Party Payments          ,Private Contractors           ,EH04,C1 Viridor SLWP Landfill Contract       ,"2,664.00",13/02/2015,REV,KINGSTON CORPORATION          
943,Cultural Env Reg&Plan Services,Waste Disposal (not separated),Waste Disposal .,G00550,Third Party Payments          ,Private Contractors           ,EH04,C1 Viridor SLWP Landfill Contract       ,"95,729.68",27/03/2015,REV,KINGSTON CORPORATION          
944,Cultural Env Reg&Plan Services,Waste Disposal (not separated),Waste Disposal .,G00550,Third Party Payments          ,Private Contractors           ,EH04,C1 Viridor SLWP Landfill Contract       ,"1,686.56",25/03/2015,REV,KINGSTON CORPORATION          
945,Cultural Env Reg&Plan Services,Waste Disposal (not separated),Waste Disposal .,G00550,Third Party Payments          ,Private Contractors           ,EH04,C1 Viridor SLWP Landfill Contract       ,"242,048.32",27/03/2015,REV,KINGSTON CORPORATION          
946,Cultural Env Reg&Plan Services,Waste Disposal (not separated),Waste Disposal .,G00550,Third Party Payments          ,Private Contractors           ,EH04,C1 Viridor SLWP Landfill Contract       ,"104,221.28",13/02/2015,REV,KINGSTON CORPORATION          
947,Cultural Env Reg&Plan Services,Waste Disposal (not separated),Waste Disposal .,G00550,Third Party Payments          ,Private Contractors           ,EH04,C1 Viridor SLWP Landfill Contract       ,"391,025.76",25/03/2015,REV,KINGSTON CORPORATION          
948,Cultural Env Reg&Plan Services,Waste Disposal (not separated),Waste Disposal .,G00550,Third Party Payments          ,Private Contractors           ,EH04,C1 Viridor SLWP Landfill Contract       ,"295,807.60",13/02/2015,REV,KINGSTON CORPORATION          
949,Cultural Env Reg&Plan Services,Waste Disposal (not separated),Waste Disposal .,G00550,Third Party Payments          ,Private Contractors           ,EH11,SLWP PROCUREMENT COSTS                  ,"83,484.00",24/12/2014,REV,KINGSTON CORPORATION          
950,Cultural Env Reg&Plan Services,Waste Disposal (not separated),Waste Disposal .,G00550,Third Party Payments          ,Private Contractors           ,EH66,Clinical Waste Disposal                 ,746.28,28/02/2015,REV,S.GRUNDON (WASTE) LTD.        
951,Cultural Env Reg&Plan Services,Waste Disposal (not separated),Waste Disposal .,G00550,Third Party Payments          ,Private Contractors           ,EH96,GULLY DISPOSAL                          ,671.35,28/02/2015,REV,CORY ENVIRONMENTAL LIMITED    
952,Cultural Env Reg&Plan Services,Civic Amenity Sites,Garth Road Site,G00580,Third Party Payments          ,Private Contractors           ,EH01,MISCELLANEOUS AGENCY SERVICES           ,"185,183.11",13/02/2015,REV,KINGSTON CORPORATION          
953,Cultural Env Reg&Plan Services,Civic Amenity Sites,Garth Road Site,G00580,Third Party Payments          ,Private Contractors           ,EH01,MISCELLANEOUS AGENCY SERVICES           ,"95,193.91",25/03/2015,REV,KINGSTON CORPORATION          
954,Cultural Env Reg&Plan Services,Civic Amenity Sites,Garth Road Site,G00580,Third Party Payments          ,Private Contractors           ,EH04,Accommodation Based Support             ,770,25/03/2015,REV,KINGSTON CORPORATION          
955,Cultural Env Reg&Plan Services,Civic Amenity Sites,Garth Road Site,G00580,Third Party Payments          ,Private Contractors           ,EH04,Accommodation Based Support             ,660,13/02/2015,REV,KINGSTON CORPORATION          
956,Cultural Env Reg&Plan Services,Civic Amenity Sites,Garth Road Site,G00580,Third Party Payments          ,Private Contractors           ,EH61,Green Waste Disposal                    ,"2,724.65",25/03/2015,REV,KINGSTON CORPORATION          
957,Cultural Env Reg&Plan Services,Civic Amenity Sites,Garth Road Site,G00580,Third Party Payments          ,Private Contractors           ,EH65,TRANSPORT FEE - COMPOST                 ,"1,450.00",29/01/2015,REV,FUELTEK                       
958,Cultural Env Reg&Plan Services,Civic Amenity Sites,Garth Road Site,G00580,Third Party Payments          ,Private Contractors           ,EH65,TRANSPORT FEE - COMPOST                 ,"51,424.97",25/03/2015,REV,KINGSTON CORPORATION          
959,Cultural Env Reg&Plan Services,Civic Amenity Sites,Garth Road Site,G00580,Third Party Payments          ,Private Contractors           ,EH65,TRANSPORT FEE - COMPOST                 ,"38,598.20",25/03/2015,REV,KINGSTON CORPORATION          
960,Cultural Env Reg&Plan Services,Civic Amenity Sites,Garth Road Site,G00580,Third Party Payments          ,Private Contractors           ,EH82,Waste Mangemnt Licence Charges          ,"2,268.24",13/02/2015,REV,KINGSTON CORPORATION          
961,Cultural Env Reg&Plan Services,Public Health,Dog Control.,G00620,Third Party Payments          ,Private Contractors           ,EH02,Miscellaneous Hired Services            ,"2,142.50",05/03/2015,REV,NOAH'S ARK ENVIRONMENTAL SERV.
962,Cultural Env Reg&Plan Services,Recycling (Collection),Recycling Activities,G00640,Supplies & Services           ,Equip Furniture/Materials     ,DA32,Wheeled Bins                            ,"6,048.00",19/02/2015,REV,STRAIGHT PLC                  
963,Cultural Env Reg&Plan Services,Recycling (Collection),Recycling Activities,G00640,Third Party Payments          ,Private Contractors           ,EH03,C3 DRY RECYCLING GATE FEE               ,"-9,203.54",25/03/2015,REV,KINGSTON CORPORATION          
964,Cultural Env Reg&Plan Services,Recycling (Collection),Recycling Activities,G00640,Third Party Payments          ,Private Contractors           ,EH03,C3 DRY RECYCLING GATE FEE               ,"9,748.25",25/03/2015,REV,KINGSTON CORPORATION          
965,Cultural Env Reg&Plan Services,Recycling (Collection),Recycling Activities,G00640,Third Party Payments          ,Private Contractors           ,EH08,SLWP C1 Haulage Dry Recyclable          ,"-4,194.88",13/02/2015,REV,KINGSTON CORPORATION          
966,Cultural Env Reg&Plan Services,Recycling (Collection),Recycling Activities,G00640,Third Party Payments          ,Private Contractors           ,EH08,SLWP C1 Haulage Dry Recyclable          ,"29,695.29",27/03/2015,REV,KINGSTON CORPORATION          
967,Cultural Env Reg&Plan Services,Recycling (Collection),Recycling Activities,G00640,Third Party Payments          ,Private Contractors           ,EH08,SLWP C1 Haulage Dry Recyclable          ,"4,620.00",13/02/2015,REV,KINGSTON CORPORATION          
968,Cultural Env Reg&Plan Services,Recycling (Collection),Recycling Activities,G00640,Third Party Payments          ,Private Contractors           ,EH08,SLWP C1 Haulage Dry Recyclable          ,"35,698.28",13/02/2015,REV,KINGSTON CORPORATION          
969,Cultural Env Reg&Plan Services,Recycling (Collection),Recycling Activities,G00640,Third Party Payments          ,Private Contractors           ,EH08,SLWP C1 Haulage Dry Recyclable          ,"34,539.03",25/03/2015,REV,KINGSTON CORPORATION          
970,Cultural Env Reg&Plan Services,Recycling (Collection),Recycling Activities,G00640,Third Party Payments          ,Private Contractors           ,EH94,C1 DRY RECYCLING ACCEPTANCE & BULK      ,"6,464.97",27/03/2015,REV,KINGSTON CORPORATION          
971,Cultural Env Reg&Plan Services,Recycling (Collection),Recycling Activities,G00640,Third Party Payments          ,Private Contractors           ,EH94,C1 DRY RECYCLING ACCEPTANCE & BULK      ,"7,771.88",13/02/2015,REV,KINGSTON CORPORATION          
972,Cultural Env Reg&Plan Services,Recycling (Collection),Recycling Activities,G00640,Third Party Payments          ,Private Contractors           ,EH94,C1 DRY RECYCLING ACCEPTANCE & BULK      ,-912.47,13/02/2015,REV,KINGSTON CORPORATION          
973,Cultural Env Reg&Plan Services,Recycling (Collection),Recycling Activities,G00640,Third Party Payments          ,Private Contractors           ,EH94,C1 DRY RECYCLING ACCEPTANCE & BULK      ,"7,519.50",25/03/2015,REV,KINGSTON CORPORATION          
974,Cultural Env Reg&Plan Services,Recycling (Collection),Garden Waste Service,G00647,Supplies & Services           ,Clothing Unfrms Laundry       ,DC02,Clothing & Uniforms                     ,"1,886.83",06/02/2015,REV,SAFETY MANAGEMENT             
975,Cultural Env Reg&Plan Services,Recycling (Collection),Garden Waste Service,G00647,Third Party Payments          ,Private Contractors           ,EH61,Green Waste Disposal                    ,"3,227.43",25/03/2015,REV,KINGSTON CORPORATION          
976,Cultural Env Reg&Plan Services,Recycling (Collection),Food Waste Service,G00648,Third Party Payments          ,Private Contractors           ,EH18,SLWP C3 Food Waste Gate Fees            ,"9,007.44",25/03/2015,REV,KINGSTON CORPORATION          
977,Cultural Env Reg&Plan Services,Recycling (Collection),Food Waste Service,G00648,Third Party Payments          ,Private Contractors           ,EH19,SLWP C3 FOOD WASTE HAULAGE              ,"5,610.18",13/02/2015,REV,KINGSTON CORPORATION          
978,Cultural Env Reg&Plan Services,Recycling (Collection),Food Waste Service,G00648,Third Party Payments          ,Private Contractors           ,EH19,SLWP C3 FOOD WASTE HAULAGE              ,"6,386.38",25/03/2015,REV,KINGSTON CORPORATION          
979,Cultural Env Reg&Plan Services,Recycling (Collection),Food Waste Service,G00648,Third Party Payments          ,Private Contractors           ,EH19,SLWP C3 FOOD WASTE HAULAGE              ,"4,986.51",27/03/2015,REV,KINGSTON CORPORATION          
980,Cultural Env Reg&Plan Services,Recycling (Collection),WCSS Recycl Encourgmnt&Incentv          ,G00650,Supplies & Services           ,Prntng Stnry Gen Off Exp      ,DE22,Marketing                               ,724.5,18/03/2015,REV,SUSTAINABLE MERTON            
981,Cultural Env Reg&Plan Services,Recycling (Collection),WCSS Recycl Encourgmnt&Incentv          ,G00650,Supplies & Services           ,Expenses                      ,DH14,Prizes and Awards                       ,"3,000.00",24/03/2015,REV,WARWICK HSE RESIDENTS MANAG'MT
982,Cultural Env Reg&Plan Services,Recycling (Collection),WCSS Recycl Encourgmnt&Incentv          ,G00650,Supplies & Services           ,Expenses                      ,DH14,Prizes and Awards                       ,"1,000.00",26/03/2015,REV,CLIFTON RD RESIDENTS (WIM) LTD
983,Cultural Env Reg&Plan Services,Household Waste Collection,Refuse Collection (Operations),G00661,Transport Related Expenditure ,Direct Transport Costs        ,CA52,Reps Vehicles Ins Claims                ,750,20/03/2015,REV,S.E.T.S SERVICES              
984,Cultural Env Reg&Plan Services,Household Waste Collection,Refuse Collection (Operations),G00661,Transport Related Expenditure ,Direct Transport Costs        ,CA52,Reps Vehicles Ins Claims                ,750,17/12/2014,REV,S.E.T.S SERVICES              
985,Cultural Env Reg&Plan Services,Household Waste Collection,Refuse Collection (Operations),G00661,Supplies & Services           ,Equip Furniture/Materials     ,DA01,Equipment - R & M                       ,"1,197.40",20/03/2015,REV,BELL BRUSH                    
986,Cultural Env Reg&Plan Services,Household Waste Collection,Refuse Collection (Operations),G00661,Supplies & Services           ,Equip Furniture/Materials     ,DA01,Equipment - R & M                       ,"2,565.90",27/02/2015,REV,BELL BRUSH                    
987,Cultural Env Reg&Plan Services,Household Waste Collection,Refuse Collection (Operations),G00661,Supplies & Services           ,Equip Furniture/Materials     ,DA31,Waste Sacks & Bags                      ,"4,966.54",27/01/2015,REV,IMPERIAL POLYTHENE PRODUCTS LT
988,Cultural Env Reg&Plan Services,Household Waste Collection,Refuse Collection (Operations),G00661,Supplies & Services           ,Equip Furniture/Materials     ,DA31,Waste Sacks & Bags                      ,"5,200.00",10/03/2015,REV,IMPERIAL POLYTHENE PRODUCTS LT
989,Cultural Env Reg&Plan Services,Household Waste Collection,Refuse Collection (Operations),G00661,Supplies & Services           ,Equip Furniture/Materials     ,DA32,Wheeled Bins                            ,506.75,20/02/2015,REV,STRAIGHT PLC                  
990,Cultural Env Reg&Plan Services,Household Waste Collection,Refuse Collection (Operations),G00661,Supplies & Services           ,Clothing Unfrms Laundry       ,DC02,Clothing & Uniforms                     ,"7,000.00",06/02/2015,REV,SAFETY MANAGEMENT             
991,Cultural Env Reg&Plan Services,Household Waste Collection,Refuse Collection (Operations),G00661,Supplies & Services           ,Services                      ,DF04,Miscellaneous Expenses                  ,870,16/03/2015,REV,LEWIS ROAD ALLEY GATE SCHEME  
992,Cultural Env Reg&Plan Services,Household Waste Collection,Refuse Collection (Operations),G00661,Supplies & Services           ,Services                      ,DF04,Miscellaneous Expenses                  ,"1,023.30",10/03/2015,REV,WOLSEY CRES. ALLEY GATE SCHEME
993,Cultural Env Reg&Plan Services,Household Waste Collection,Refuse Collection (Operations),G00661,Supplies & Services           ,Services                      ,DF04,Miscellaneous Expenses                  ,"1,539.00",11/03/2015,REV,THE TAMWORTH MANOR ALLEY GATE 
994,Cultural Env Reg&Plan Services,Household Waste Collection,Refuse Collection (Operations),G00661,Supplies & Services           ,Comms and Computing           ,DG08,Computer Hardware                       ,552,12/03/2015,REV,VIGLEN LIMITED                
995,Cultural Env Reg&Plan Services,Street Clean - Not highways,Waste Enforcement,G00680,Supplies & Services           ,Equip Furniture/Materials     ,DA01,Equipment - R & M                       ,"2,400.00",10/03/2015,REV,STH'N BROADCAST & SURVEILLANCE
996,Cultural Env Reg&Plan Services,Street Clean - Not highways,Waste Enforcement,G00680,Third Party Payments          ,Private Contractors           ,EH02,Miscellaneous Hired Services            ,"19,035.64",28/02/2015,REV,KINGDOM SECURITY              
997,Cultural Env Reg&Plan Services,Food Safety,Health & Safety,G00697,Employees                     ,Indirect Employee Expenses    ,AB02,Recruitment Adverts                     ,790,27/02/2015,REV,PENNA COMMUNICATIONS (NO 2 A/C
998,Cultural Env Reg&Plan Services,Food Safety,Health & Safety,G00697,Supplies & Services           ,Equip Furniture/Materials     ,DA58,Education Materials                     ,594,28/01/2015,REV,CHARTERED INST.OF ENVIR.HEALTH
999,Cultural Env Reg&Plan Services,Food Safety,Health & Safety,G00697,Supplies & Services           ,Grants and Subscriptions      ,DJ04,Subscriptions                           ,"1,745.00",05/03/2015,REV,LEXIS NEXIS                   
1000,Cultural Env Reg&Plan Services,Food Safety,Health & Safety,G00697,Third Party Payments          ,Private Contractors           ,EH10,Contract Payments                       ,"8,630.00",17/03/2015,REV,PUBLIC ANALYST SCIENTIFIC SER.
1001,Cultural Env Reg&Plan Services,Housing Standards,AIR QUALITY GRANT (DEFRA) MB,G00732,Supplies & Services           ,Services                      ,DF03,Consultants                             ,500,25/03/2015,REV,ENVIRONMENTAL RESEARCH GROUP  
1002,Cultural Env Reg&Plan Services,Mgt & Support (Env),Waste Management,G00900,Supplies & Services           ,Equip Furniture/Materials     ,DA04,Materials                               ,528.48,13/03/2015,REV,PJ HARVEY & CO LTD            
